TRANS.No,Service Area Categorisation,Service Division Categorisation,Responsible Unit,Unit Code,Expenses Type,Expenses Sub Type,Expense Code,Narrative,Amount,Invoice Date,Cap/Rev,Supplier Name
1,Central Services,SupS Customer Services and Dev,Data protection,A01016,Supplies & Services           ,Services                      ,DF03,Consultants                             ,"1,166.42",10/12/2014,REV,MAKING EXPERIENCES COUNT      
2,Cultural Env Reg&Plan Services,Comm Safety (Crime Reduction),Crime and Strategy Team,A01100,Third Party Payments          ,Private Contractors           ,EH02,Miscellaneous Hired Services            ,"9,942.80",28/08/2014,REV,CORDIS BRIGHT LTD             
3,Cultural Env Reg&Plan Services,Comm Safety (Crime Reduction),CCTV,A01200,Supplies & Services           ,Equip Furniture/Materials     ,DA01,Equipment - R & M                       ,"3,448.84",26/11/2014,REV,EUROVIA INFRASTRUCTURE LTD    
4,Cultural Env Reg&Plan Services,Comm Safety (Crime Reduction),CCTV,A01200,Supplies & Services           ,Comms and Computing           ,DG15,Network Maintenance                     ,"4,417.35",02/12/2014,REV,BT REDCARE                    
5,Central Services,SupS Chief Execs,NON-STATUTORY MARKETING & COMM,A02019,Supplies & Services           ,Services                      ,DF02,Misc Advertising/Publicity              ,510,01/10/2014,REV,TIME & LEISURE                
6,Central Services,SupS Chief Execs,NON-STATUTORY MARKETING & COMM,A02019,Supplies & Services           ,Services                      ,DF02,Misc Advertising/Publicity              ,"1,008.00",15/09/2014,REV,BAAF REGISTERED CHARITY       
7,Central Services,SupS Chief Execs,NON-STATUTORY MARKETING & COMM,A02019,Supplies & Services           ,Services                      ,DF35,Graphic Design                          ,825,27/11/2014,REV,DOMINO 4 LIMITED              
8,Central Services,SupS Chief Execs,NON-STATUTORY MARKETING & COMM,A02019,Supplies & Services           ,Services                      ,DF35,Graphic Design                          ,"5,050.00",02/12/2014,REV,THE BIG IDEA 
9,Central Services,SupS Chief Execs,Press and Public Relations.,A02026,Supplies & Services           ,Prntng Stnry Gen Off Exp      ,DE20,Council Magazine                        ,"3,892.00",21/11/2014,REV,LONDON LETTERBOX MARKETING    
10,Central Services,,Sales and Marketing                     ,A02034,Employees                     ,Indirect Employee Expenses    ,AB02,Recruitment Adverts                     ,"2,940.00",09/12/2014,REV,PENNA COMMUNICATIONS (NO 2 A/C
11,Central Services,,Sales and Marketing                     ,A02034,Employees                     ,Indirect Employee Expenses    ,AB02,Recruitment Adverts                     ,"7,000.00",08/12/2014,REV,ODGERS RAY & BERNDTSON INTERIM
12,CS -Oth Operating Inc & Expend,T/A Corporate Services,Prtng Jobs - Ext Agncy,A03041,Supplies & Services           ,Prntng Stnry Gen Off Exp      ,DE01,External Printing                       ,"2,069.00",24/11/2014,REV,COMMERCIAL COLOUR PRESS       
13,CS -Oth Operating Inc & Expend,T/A Corporate Services,Prtng Jobs - Ext Agncy,A03041,Supplies & Services           ,Prntng Stnry Gen Off Exp      ,DE01,External Printing                       ,746.1,05/12/2014,REV,CLIFFE ENTERPRISE             
14,CS -Oth Operating Inc & Expend,T/A Corporate Services,Prtng Jobs - Ext Agncy,A03041,Supplies & Services           ,Prntng Stnry Gen Off Exp      ,DE01,External Printing                       ,865,09/12/2014,REV,LIMETREE OFFSET LTD           
15,CS -Oth Operating Inc & Expend,T/A Corporate Services,Prtng Jobs - Ext Agncy,A03041,Supplies & Services           ,Prntng Stnry Gen Off Exp      ,DE01,External Printing                       ,"1,281.00",15/12/2014,REV,IMPRESS PRINT SERVICES LTD    
16,CS -Oth Operating Inc & Expend,T/A Corporate Services,PrintUnit-HighVolPhtcopying,A03042,Supplies & Services           ,Equip Furniture/Materials     ,DA06,Paper-Internal Print Jobs               ,636.18,15/12/2014,REV,ANTALIS MCNAUGHTON LIMITED    
17,CS -Oth Operating Inc & Expend,T/A Corporate Services,Translation Services,A04060,Supplies & Services           ,Prntng Stnry Gen Off Exp      ,DE06,MULTI-FUNCTIONAL PRINTERS               ,"2,524.50",01/04/2014,REV,OCE (UK) LTD                  
18,Central Services,SupS Comm and Member Services,COMMERICIAL SERVICES,A04085,Employees                     ,Direct Employee Expenses      ,AA17,Agency Staff & Casual Paymts            ,"3,390.00",26/11/2014,REV,HAYS RECRUITING EXPERTS       
19,Central Services,SupS Comm and Member Services,COMMERICIAL SERVICES,A04085,Employees                     ,Direct Employee Expenses      ,AA17,Agency Staff & Casual Paymts            ,"3,390.00",10/12/2014,REV,HAYS RECRUITING EXPERTS       
20,Central Services,SupS Comm and Member Services,COMMERICIAL SERVICES,A04085,Employees                     ,Direct Employee Expenses      ,AA17,Agency Staff & Casual Paymts            ,"1,360.00",19/11/2014,REV,HAYS RECRUITING EXPERTS       
21,Central Services,SupS Comm and Member Services,COMMERICIAL SERVICES,A04085,Employees                     ,Direct Employee Expenses      ,AA17,Agency Staff & Casual Paymts            ,"3,390.00",12/11/2014,REV,HAYS RECRUITING EXPERTS       
22,Central Services,SupS Comm and Member Services,COMMERICIAL SERVICES,A04085,Employees                     ,Direct Employee Expenses      ,AA17,Agency Staff & Casual Paymts            ,"2,030.00",19/11/2014,REV,HAYS RECRUITING EXPERTS       
23,Central Services,SupS Comm and Member Services,COMMERICIAL SERVICES,A04085,Employees                     ,Direct Employee Expenses      ,AA17,Agency Staff & Casual Paymts            ,"2,712.00",17/12/2014,REV,HAYS RECRUITING EXPERTS       
24,Central Services,SupS Comm and Member Services,COMMERICIAL SERVICES,A04085,Employees                     ,Direct Employee Expenses      ,AA17,Agency Staff & Casual Paymts            ,"3,390.00",03/12/2014,REV,HAYS RECRUITING EXPERTS       
25,Highways & Transport Services,On-street parking,Blue Badge Service,A04088,Supplies & Services           ,Services                      ,DF14,Doctors and Other Fees                  ,600,15/12/2014,REV,LLOYDS TSB COMMERCIAL FINANCE 
26,Central Services,Registn Birth/Death/Marriage,Reg of B. Deaths & Ms,B06143,Supplies & Services           ,Prntng Stnry Gen Off Exp      ,DE03,Stationery                              ,600,02/12/2014,REV,CIVIL CEREMONIES LTD          
27,Central Services,Registn Birth/Death/Marriage,Reg of B. Deaths & Ms,B06143,Supplies & Services           ,Grants and Subscriptions      ,DJ04,Subscriptions                           ,575,05/12/2014,REV,OFFICE OF THE IMMIGRATION     
28,Central Services,SupS Health & Safety,Learning and Development,B06146,Employees                     ,Indirect Employee Expenses    ,AB57,EXTERNAL TRAINING COSTS                 ,749.17,31/10/2014,REV,QWIZDOM UK LTD                
29,Central Services,SupS Health & Safety,Learning and Development,B06146,Employees                     ,Indirect Employee Expenses    ,AB57,EXTERNAL TRAINING COSTS                 ,550,25/11/2014,REV,MSH TRAINING & CONSULTANCY LTD
30,Central Services,SupS Health & Safety,Learning and Development,B06146,Employees                     ,Indirect Employee Expenses    ,AB57,EXTERNAL TRAINING COSTS                 ,"1,282.00",30/10/2014,REV,THE BAIKIE-WOOD CONSULT'CY LTD
31,Central Services,SupS Health & Safety,Learning and Development,B06146,Employees                     ,Indirect Employee Expenses    ,AB57,EXTERNAL TRAINING COSTS                 ,"1,800.00",24/11/2014,REV,CHANGE CONSULTANCY            
32,Central Services,SupS Health & Safety,Learning and Development,B06146,Employees                     ,Indirect Employee Expenses    ,AB57,EXTERNAL TRAINING COSTS                 ,500,10/12/2014,REV,TUTORCARE LTD                 
33,Central Services,SupS Health & Safety,Learning and Development,B06146,Employees                     ,Indirect Employee Expenses    ,AB57,EXTERNAL TRAINING COSTS                 ,"4,000.00",18/12/2014,REV,SKILLSARENA CORPORATE LTD     
34,Central Services,SupS Health & Safety,Learning and Development,B06146,Employees                     ,Indirect Employee Expenses    ,AB57,EXTERNAL TRAINING COSTS                 ,660,11/08/2014,REV,THE INSTITUTE OF LICENSING    
35,Central Services,SupS Health & Safety,Learning and Development,B06146,Employees                     ,Indirect Employee Expenses    ,AB57,EXTERNAL TRAINING COSTS                 ,899,23/11/2014,REV,REDACTED
36,Central Services,SupS Health & Safety,Learning and Development,B06146,Employees                     ,Indirect Employee Expenses    ,AB57,EXTERNAL TRAINING COSTS                 ,"2,250.00",21/11/2014,REV,IDEA                          
37,Central Services,SupS Health & Safety,Learning and Development,B06146,Employees                     ,Indirect Employee Expenses    ,AB57,EXTERNAL TRAINING COSTS                 ,650,24/06/2014,REV,MEDI AID(UK) LTD              
38,Central Services,SupS Health & Safety,Learning and Development,B06146,Employees                     ,Indirect Employee Expenses    ,AB57,EXTERNAL TRAINING COSTS                 ,995,16/12/2014,REV,THE PRESCRIPTION TRAINING COMP
39,Central Services,SupS Health & Safety,Learning and Development,B06146,Employees                     ,Indirect Employee Expenses    ,AB57,EXTERNAL TRAINING COSTS                 ,840,17/11/2014,REV,BASELINE CONSULTING           
40,Central Services,SupS Health & Safety,Learning and Development,B06146,Employees                     ,Indirect Employee Expenses    ,AB57,EXTERNAL TRAINING COSTS                 ,975,13/11/2014,REV,LONDON SCHOOL OF FIRST AID    
41,Central Services,SupS Health & Safety,Learning and Development,B06146,Employees                     ,Indirect Employee Expenses    ,AB57,EXTERNAL TRAINING COSTS                 ,840,03/12/2014,REV,BASELINE CONSULTING           
42,Central Services,SupS Health & Safety,Learning and Development,B06146,Employees                     ,Indirect Employee Expenses    ,AB57,EXTERNAL TRAINING COSTS                 ,675,20/10/2014,REV,HBINFO LTD                    
43,Central Services,SupS Health & Safety,Learning and Development,B06146,Employees                     ,Indirect Employee Expenses    ,AB57,EXTERNAL TRAINING COSTS                 ,975,29/10/2014,REV,MEDI AID(UK) LTD              
44,Central Services,SupS Health & Safety,Learning and Development,B06146,Employees                     ,Indirect Employee Expenses    ,AB57,EXTERNAL TRAINING COSTS                 ,"1,000.00",24/11/2014,REV,TUTORCARE LTD                 
45,Central Services,SupS Health & Safety,Learning and Development,B06146,Employees                     ,Indirect Employee Expenses    ,AB57,EXTERNAL TRAINING COSTS                 ,700,08/12/2014,REV,DODS PARLIAMENTRY COMM LTD    
46,Central Services,SupS Health & Safety,Learning and Development,B06146,Employees                     ,Indirect Employee Expenses    ,AB57,EXTERNAL TRAINING COSTS                 ,550,24/11/2014,REV,MSH TRAINING & CONSULTANCY LTD
47,Central Services,SupS Health & Safety,Learning and Development,B06146,Employees                     ,Indirect Employee Expenses    ,AB57,EXTERNAL TRAINING COSTS                 ,550,24/11/2014,REV,MSH TRAINING & CONSULTANCY LTD
48,Central Services,SupS Health & Safety,Learning and Development,B06146,Employees                     ,Indirect Employee Expenses    ,AB57,EXTERNAL TRAINING COSTS                 ,840,12/11/2014,REV,BASELINE CONSULTING           
49,Central Services,SupS Health & Safety,Learning and Development,B06146,Employees                     ,Indirect Employee Expenses    ,AB57,EXTERNAL TRAINING COSTS                 ,975,29/10/2014,REV,MEDI AID(UK) LTD              
50,Central Services,SupS Health & Safety,Learning and Development,B06146,Employees                     ,Indirect Employee Expenses    ,AB57,EXTERNAL TRAINING COSTS                 ,950,12/12/2014,REV,ASH INFORMATION SYSTEMS LTD   
51,Central Services,SupS Health & Safety,Learning and Development,B06146,Employees                     ,Indirect Employee Expenses    ,AB57,EXTERNAL TRAINING COSTS                 ,"1,715.00",10/09/2014,REV,CIPFA                         
52,Central Services,SupS Health & Safety,Learning and Development,B06146,Employees                     ,Indirect Employee Expenses    ,AB57,EXTERNAL TRAINING COSTS                 ,628.59,17/11/2014,REV,THE BAIKIE-WOOD CONSULT'CY LTD
53,Central Services,SupS Health & Safety,Learning and Development,B06146,Employees                     ,Indirect Employee Expenses    ,AB57,EXTERNAL TRAINING COSTS                 ,949,18/12/2014,REV,SUZY LAMPLUGH TRUST 2014      
54,Central Services,SupS Health & Safety,Learning and Development,B06146,Employees                     ,Indirect Employee Expenses    ,AB57,EXTERNAL TRAINING COSTS                 ,550,04/12/2014,REV,MSH TRAINING & CONSULTANCY LTD
147,,,8 Wilton Road                           ,CC017AA,New Construction Conversion and Renovation,0,B2,Site Surveys D&S Structure              ,850,15/10/2014,CAP,GLENNY LLP                    
148,,,Disabled Facilities Grant               ,CC022RA,Other Capital Expenditure,0,E1,Grants                                  ,"1,164.65",09/12/2014,CAP,STAYING FIRST                 
149,,,Disabled Facilities Grant               ,CC022RA,Other Capital Expenditure,0,E1,Grants                                  ,"17,830.00",20/12/2014,CAP,W C EVANS LTD                 
150,,,Disabled Facilities Grant               ,CC022RA,Other Capital Expenditure,0,E1,Grants                                  ,"5,973.00",20/12/2014,CAP,W C EVANS LTD                 
151,,,Disabled Facilities Grant               ,CC022RA,Other Capital Expenditure,0,E1,Grants                                  ,"5,000.00",20/12/2014,CAP,W C EVANS LTD                 
152,,,Disabled Facilities Grant               ,CC022RA,Other Capital Expenditure,0,E1,Grants                                  ,"5,000.00",20/12/2014,CAP,W C EVANS LTD                 
153,,,Disabled Facilities Grant               ,CC022RA,Other Capital Expenditure,0,E1,Grants                                  ,"15,387.00",09/12/2014,CAP,BELL DECORATING & BUILDING LTD
154,,,Disabled Facilities Grant               ,CC022RA,Other Capital Expenditure,0,E1,Grants                                  ,"12,673.20",09/12/2014,CAP,BELL DECORATING & BUILDING LTD
155,,,Colliers Wd- Regeneration Fund          ,CE006FB,New Construction Conversion and Renovation,0,B3,Other Expenses D&S Structure            ,"12,950.00",26/11/2014,CAP,ROBUS CERAMICS                
156,,,B674a-d Phase 1 Lambton rd              ,CE007CC,New Construction Conversion and Renovation,0,B4,Contractor - Site works                 ,"2,128.45",19/12/2014,CAP,MAY GURNEY LTD T/A CARTLEDGE  
157,,,Parks Investment                        ,CE013SA,New Construction Conversion and Renovation,0,B4,Contractor - Site works                 ,"3,550.00",29/11/2014,CAP,REDDINGTON & SONS             
158,,,Parks Investment                        ,CE013SA,Vehicles Plant Equipment and Machinery,0,D3,Equipment                               ,"5,198.00",26/11/2014,CAP,DAVID OGILVIE ENGINEERING LTD 
159,,,Restoration of South Park Gdns          ,CE015CA,New Construction Conversion and Renovation,0,B4,Contractor - Site works                 ,"49,848.00",26/11/2014,CAP,MOY CONSTRUCTION CO LTD       
160,,,Surface Water Drainage                  ,CE024FA,New Construction Conversion and Renovation,0,B4,Contractor - Site works                 ,"2,470.28",12/12/2014,CAP,FM CONWAY LTD                 
161,,,Surface Water Drainage                  ,CE024FA,New Construction Conversion and Renovation,0,B4,Contractor - Site works                 ,"1,044.67",19/12/2014,CAP,FM CONWAY LTD                 
162,,,Repairs to Footways                     ,CE029FA,New Construction Conversion and Renovation,0,B4,Contractor - Site works                 ,"10,000.00",12/12/2014,CAP,FM CONWAY LTD                 
163,,,Repairs to Footways                     ,CE029FA,New Construction Conversion and Renovation,0,B4,Contractor - Site works                 ,"4,320.00",01/12/2014,CAP,THE CRESCENT FENCING CO.      
164,,,Repairs to Footways                     ,CE029FA,New Construction Conversion and Renovation,0,B4,Contractor - Site works                 ,"1,777.73",12/12/2014,CAP,FM CONWAY LTD                 
165,,,Repairs to Footways                     ,CE029FA,New Construction Conversion and Renovation,0,B4,Contractor - Site works                 ,"2,000.00",12/12/2014,CAP,FM CONWAY LTD                 
166,,,Repairs to Footways                     ,CE029FA,New Construction Conversion and Renovation,0,B4,Contractor - Site works                 ,"35,000.00",05/12/2014,CAP,FM CONWAY LTD                 
167,,,Big Lottery Play Areas                  ,CE044MA,New Construction Conversion and Renovation,0,B4,Contractor - Site works                 ,"8,255.00",02/12/2014,CAP,KC DRAINS LTD                 
168,,,Morden Leisure Centre                   ,CE045AA,New Construction Conversion and Renovation,0,B1,Consultants Fees D&S Structure          ,"4,830.00",04/12/2014,CAP,MATERIALS SCIENCE CONS. LTD   
169,,,Morden Leisure Centre                   ,CE045AA,New Construction Conversion and Renovation,0,B2,Site Surveys D&S Structure              ,"11,036.30",28/11/2014,CAP,ASHDOWN SITE INVESTIGATION    
170,,,St Marks Academy Flood Lights           ,CE056CA,New Construction Conversion and Renovation,0,B4,Contractor - Site works                 ,"2,354.63",16/12/2014,CAP,ETC SPORTS SURFACES LTD       
171,,,Street Lighting Replacement Pr          ,CE068FA,New Construction Conversion and Renovation,0,B4,Contractor - Site works                 ,"1,587.99",19/12/2014,CAP,MAY GURNEY LTD T/A CARTLEDGE  
172,,,Street Lighting Replacement Pr          ,CE068FA,New Construction Conversion and Renovation,0,B4,Contractor - Site works                 ,"4,877.24",19/12/2014,CAP,MAY GURNEY LTD T/A CARTLEDGE  
173,,,Street Lighting Replacement Pr          ,CE068FA,New Construction Conversion and Renovation,0,B4,Contractor - Site works                 ,"1,075.80",28/12/2014,CAP,MAY GURNEY LTD T/A CARTLEDGE  
174,,,Street Lighting Replacement Pr          ,CE068FA,New Construction Conversion and Renovation,0,B4,Contractor - Site works                 ,"21,769.90",28/11/2014,CAP,MAY GURNEY LTD T/A CARTLEDGE  
175,,,Street Lighting Replacement Pr          ,CE068FA,New Construction Conversion and Renovation,0,B4,Contractor - Site works                 ,921.89,28/11/2014,CAP,MAY GURNEY LTD T/A CARTLEDGE  
176,,,Replacement of Fleet Vehicles           ,CE082EA,Vehicles Plant Equipment and Machinery,0,D1,Vehicles                                ,"13,395.00",28/11/2014,CAP,COMMERCIAL SERV'S TRADING LTD 
177,,,Rebuild Wall                            ,CE103MC,New Construction Conversion and Renovation,0,B4,Contractor - Site works                 ,"13,390.50",08/12/2014,CAP,MOY CONSTRUCTION CO LTD       
178,,,Cycle access/parking                    ,CE104FG,New Construction Conversion and Renovation,0,B4,Contractor - Site works                 ,"30,000.00",12/12/2014,CAP,FM CONWAY LTD                 
179,,,Cycle access/parking                    ,CE104FG,New Construction Conversion and Renovation,0,B6,Other Costs - Site works                ,"11,325.59",21/11/2014,CAP,TRANSPORT FOR LONDON          
180,,,Cycle access/parking                    ,CE104FG,Other Capital Expenditure,0,E4,TFL Other                               ,"2,500.00",12/11/2014,CAP,TRANSPORT INITIATIVES LLP     
181,,,Mitcham Town Centre                     ,CE104FP,New Construction Conversion and Renovation,0,B4,Contractor - Site works                 ,"5,608.42",01/12/2014,CAP,FM CONWAY LTD                 
182,,,A298/A238 Strategic Corridor            ,CE104FQ,New Construction Conversion and Renovation,0,B4,Contractor - Site works                 ,"10,000.00",19/12/2014,CAP,FM CONWAY LTD                 
183,,,A298/A238 Strategic Corridor            ,CE104FQ,New Construction Conversion and Renovation,0,B4,Contractor - Site works                 ,"28,000.00",05/12/2014,CAP,FM CONWAY LTD                 
184,,,Morden Rd Kingston Rd to High           ,CE105FQ,New Construction Conversion and Renovation,0,B3,Other Expenses D&S Structure            ,"3,083.07",26/11/2014,CAP,NETWORK RAIL INFRASTRUCTURE LT
185,,,Pollution PH Funding                    ,CE110SJ,New Construction Conversion and Renovation,0,B4,Contractor - Site works                 ,"4,993.30",26/11/2014,CAP,TRANSF'M L/SCAPE DESIGN & CONS
186,,,Pollution PH Funding                    ,CE110SJ,New Construction Conversion and Renovation,0,B4,Contractor - Site works                 ,"2,554.00",26/11/2014,CAP,TRANSF'M L/SCAPE DESIGN & CONS
187,,,Pollution PH Funding                    ,CE110SJ,New Construction Conversion and Renovation,0,B4,Contractor - Site works                 ,"1,754.50",26/11/2014,CAP,TRANSF'M L/SCAPE DESIGN & CONS
188,,,Pollution PH Funding                    ,CE110SJ,New Construction Conversion and Renovation,0,B4,Contractor - Site works                 ,552.5,19/09/2014,CAP,REDLEAF NURSERY               
189,,,Pollution PH Funding                    ,CE110SJ,New Construction Conversion and Renovation,0,B5,Suppliers - Site works                  ,"1,344.60",13/11/2014,CAP,BARCHAM TREES P.L.C.          
190,,,Pollution PH Funding                    ,CE110SJ,New Construction Conversion and Renovation,0,B5,Suppliers - Site works                  ,"2,280.60",19/11/2014,CAP,BARCHAM TREES P.L.C.          
191,,,Pollution PH Funding                    ,CE110SJ,New Construction Conversion and Renovation,0,B5,Suppliers - Site works                  ,"3,316.50",13/11/2014,CAP,BARCHAM TREES P.L.C.          
192,,,Traffic Schemes                         ,CE142FA,New Construction Conversion and Renovation,0,B4,Contractor - Site works                 ,609.91,19/12/2014,CAP,FM CONWAY LTD                 
193,,,Public Halls                            ,CE149AA,New Construction Conversion and Renovation,0,B4,Contractor - Site works                 ,"10,662.34",14/11/2014,CAP,SALTASH ENTERPRISES LTD       
194,,,Public Halls                            ,CE149AA,New Construction Conversion and Renovation,0,B4,Contractor - Site works                 ,"4,000.00",14/11/2014,CAP,SALTASH ENTERPRISES LTD       
195,,,Civic Centre Windows                    ,CF001AK,New Construction Conversion and Renovation,0,B4,Contractor - Site works                 ,"12,479.93",23/12/2014,CAP,HAZLEMERE WINDOW CO LIMITED   
196,,,Gifford House Minor Refurb              ,CF058AC,New Construction Conversion and Renovation,0,B4,Contractor - Site works                 ,"3,859.87",31/10/2014,CAP,WOODLAND COMMERCIAL LTD       
197,,,St Mary's expansion                     ,CS008RA,New Construction Conversion and Renovation,0,B1,Consultants Fees D&S Structure          ,"4,152.00",02/12/2014,CAP,NPS PROPERTY CONSULTANTS LTD  
198,,,St Mary's expansion                     ,CS008RA,New Construction Conversion and Renovation,0,B4,Contractor - Site works                 ,"137,753.00",10/12/2014,CAP,MANSELL CONSTRUCTION SERVICES 
199,,,St Mary's expansion                     ,CS008RA,New Construction Conversion and Renovation,0,B4,Contractor - Site works                 ,"317,881.00",25/11/2014,CAP,MANSELL CONSTRUCTION SERVICES 
200,,,All Saints/ South Wim YCC exp           ,CS008SB,New Construction Conversion and Renovation,0,B4,Contractor - Site works                 ,"3,147.24",02/12/2014,CAP,WANDLE MECHANICAL SERVICES    
201,,,Hillcross School Expansion              ,CS020AC,New Construction Conversion and Renovation,0,B1,Consultants Fees D&S Structure          ,"1,925.00",28/11/2014,CAP,STACE LLP                     
202,,,Hillcross School Expansion              ,CS020AC,New Construction Conversion and Renovation,0,B4,Contractor - Site works                 ,"610,166.03",03/12/2014,CAP,MANSELL CONSTRUCTION SERVICES 
203,,,Merton Abbey Temp Accomodation          ,CS022AC,New Construction Conversion and Renovation,0,B1,Consultants Fees D&S Structure          ,"4,058.44",28/11/2014,CAP,PELLINGS LLP                  
204,,,Merton Abbey Temp Accomodation          ,CS022AC,New Construction Conversion and Renovation,0,B1,Consultants Fees D&S Structure          ,550,20/11/2014,CAP,ASHFORDS                      
205,,,Merton Abbey Temp Accomodation          ,CS022AC,New Construction Conversion and Renovation,0,B2,Site Surveys D&S Structure              ,717.5,30/11/2014,CAP,KEEGANS LIMITED               
206,,,Merton Abbey Temp Accomodation          ,CS022AC,New Construction Conversion and Renovation,0,B2,Site Surveys D&S Structure              ,512.5,31/10/2014,CAP,KEEGANS LIMITED               
207,,,Merton Abbey Temp Accomodation          ,CS022AC,New Construction Conversion and Renovation,0,B4,Contractor - Site works                 ,"283,948.11",20/11/2014,CAP,MANSELL CONSTRUCTION SERVICES 
208,,,Merton Abbey Temp Accomodation          ,CS022AC,New Construction Conversion and Renovation,0,B4,Contractor - Site works                 ,"220,843.92",25/11/2014,CAP,MANSELL CONSTRUCTION SERVICES 
209,,,Pelham School Expansion                 ,CS023AC,New Construction Conversion and Renovation,0,B1,Consultants Fees D&S Structure          ,"1,975.00",28/11/2014,CAP,STACE LLP                     
210,,,Pelham School Expansion                 ,CS023AC,New Construction Conversion and Renovation,0,B1,Consultants Fees D&S Structure          ,"7,215.00",28/11/2014,CAP,HAVERSTOCK ASSOCIATES LLP     
211,,,Pelham School Expansion                 ,CS023AC,New Construction Conversion and Renovation,0,B4,Contractor - Site works                 ,"222,343.12",11/12/2014,CAP,MANSELL CONSTRUCTION SERVICES 
212,,,Dundonald expansion                     ,CS031AC,New Construction Conversion and Renovation,0,B1,Consultants Fees D&S Structure          ,"1,330.00",30/11/2014,CAP,SYNERGY CPC LLP               
213,,,Dundonald expansion                     ,CS031AC,New Construction Conversion and Renovation,0,B1,Consultants Fees D&S Structure          ,"20,080.00",30/11/2014,CAP,HAVERSTOCK ASSOCIATES LLP     
214,,,Dundonald expansion                     ,CS031AC,New Construction Conversion and Renovation,0,B1,Consultants Fees D&S Structure          ,"1,570.00",30/11/2014,CAP,SYNERGY CPC LLP               
215,,,Dundonald expansion                     ,CS031AC,New Construction Conversion and Renovation,0,B1,Consultants Fees D&S Structure          ,"1,000.00",30/09/2014,CAP,SYNERGY CPC LLP               
216,,,Dundonald expansion                     ,CS031AC,New Construction Conversion and Renovation,0,B1,Consultants Fees D&S Structure          ,"2,100.00",28/11/2014,CAP,AREA LANDSCAPE ARCHITECTS     
217,,,Dundonald expansion                     ,CS031AC,New Construction Conversion and Renovation,0,B4,Contractor - Site works                 ,"196,000.00",16/12/2014,CAP,FM CONWAY LTD                 
218,,,Free School Meals                       ,CS033AB,Vehicles Plant Equipment and Machinery,0,D3,Equipment                               ,"4,255.00",17/11/2014,CAP,DF20 LTD                      
219,,,Poplar Permanent Expansion              ,CS034AB,New Construction Conversion and Renovation,0,B1,Consultants Fees D&S Structure          ,"3,312.12",28/11/2014,CAP,PELLINGS LLP                  
220,,,Poplar Permanent Expansion              ,CS034AB,New Construction Conversion and Renovation,0,B2,Site Surveys D&S Structure              ,592.5,30/11/2014,CAP,KEEGANS LIMITED               
221,,,Poplar Permanent Expansion              ,CS034AB,New Construction Conversion and Renovation,0,B4,Contractor - Site works                 ,"408,265.71",19/11/2014,CAP,MANSELL CONSTRUCTION SERVICES 
222,,,Poplar Permanent Expansion              ,CS034AB,New Construction Conversion and Renovation,0,B4,Contractor - Site works                 ,"296,117.28",25/11/2014,CAP,MANSELL CONSTRUCTION SERVICES 
223,,,Singlegate expansion                    ,CS049AA,New Construction Conversion and Renovation,0,B4,Contractor - Site works                 ,"37,316.16",28/11/2014,CAP,BLAKEDOWN L/SCAPES OPERATIONS 
224,,,Singlegate expansion                    ,CS049AA,New Construction Conversion and Renovation,0,B4,Contractor - Site works                 ,"330,838.87",26/11/2014,CAP,MANSELL CONSTRUCTION SERVICES 
225,,,Wimbledon Park expansion                ,CS050AA,New Construction Conversion and Renovation,0,B1,Consultants Fees D&S Structure          ,"4,135.96",02/12/2014,CAP,CURL LA TOURELLE ARCHITECTS   
226,,,Wimbledon Park expansion                ,CS050AA,New Construction Conversion and Renovation,0,B4,Contractor - Site works                 ,"13,393.80",26/11/2014,CAP,KELLY CONTRACTORS UK LTD      
227,,,Wimbledon Park expansion                ,CS050AA,New Construction Conversion and Renovation,0,B6,Other Costs - Site works                ,704,30/11/2014,CAP,ACTIVE SECURITY GROUP         
228,,,Schs Cap Maint & Accessibility          ,CS080SD,New Construction Conversion and Renovation,0,B4,Contractor - Site works                 ,"9,117.36",03/12/2014,CAP,SALTASH ENTERPRISES LTD       
229,,,Schs Cap Maint & Accessibility          ,CS080SD,New Construction Conversion and Renovation,0,B4,Contractor - Site works                 ,"2,970.00",11/12/2014,CAP,TONBRIDGE FENCING LTD         
230,,,Hatfield                                ,CS081SA,New Construction Conversion and Renovation,0,B1,Consultants Fees D&S Structure          ,"3,194.10",02/12/2014,CAP,NPS PROPERTY CONSULTANTS LTD  
231,,,Perseid                                 ,CS092AA,New Construction Conversion and Renovation,0,B1,Consultants Fees D&S Structure          ,"2,154.75",30/11/2014,CAP,NPS PROPERTY CONSULTANTS LTD  
232,,,Perseid                                 ,CS092AA,New Construction Conversion and Renovation,0,B1,Consultants Fees D&S Structure          ,"21,642.75",07/11/2014,CAP,NPS PROPERTY CONSULTANTS LTD  
233,,,Perseid                                 ,CS092AA,New Construction Conversion and Renovation,0,B2,Site Surveys D&S Structure              ,"1,100.00",20/11/2014,CAP,REDHILL ANALYSTS LTD          
234,,,Disaster recovery                       ,CT003EA,Vehicles Plant Equipment and Machinery,0,D3,Equipment                               ,"1,046.00",11/11/2014,CAP,NEC (UK) LTD                  
235,,,IT Equipment                            ,CT006EA,Vehicles Plant Equipment and Machinery,0,D3,Equipment                               ,"32,790.00",23/12/2014,CAP,INSIGHT DIRECT (UK) LTD       
236,,,IT Equipment                            ,CT006EA,Vehicles Plant Equipment and Machinery,0,D3,Equipment                               ,"4,547.10",13/11/2014,CAP,SPECIALIST COMPUTER CENT. PLC 
237,,,IT Equipment                            ,CT006EA,Vehicles Plant Equipment and Machinery,0,D3,Equipment                               ,"46,068.00",23/12/2014,CAP,INSIGHT DIRECT (UK) LTD       
238,,,IT Equipment                            ,CT006EA,Vehicles Plant Equipment and Machinery,0,D3,Equipment                               ,"65,101.00",23/12/2014,CAP,INSIGHT DIRECT (UK) LTD       
239,,,IT Equipment                            ,CT006EA,Vehicles Plant Equipment and Machinery,0,D3,Equipment                               ,"194,676.00",23/12/2014,CAP,INSIGHT DIRECT (UK) LTD       
240,Central Services,Council tax collection,Local Taxation Services,E02100,Supplies & Services           ,Services                      ,DF09,Miscellaneous Fees                      ,"20,000.00",01/12/2014,REV,CRIPPS  LLP                   
241,Central Services,Council tax collection,Local Taxation Services,E02100,Supplies & Services           ,Services                      ,DF11,Counsel's Fees                          ,"1,030.00",10/12/2014,REV,WELBECK LAW LLP               
242,Central Services,Council tax collection,Local Taxation Services,E02100,Supplies & Services           ,Services                      ,DF11,Counsel's Fees                          ,610,10/12/2014,REV,HMCTS                         
243,Central Services,Council tax collection,Local Taxation Services,E02100,Supplies & Services           ,Services                      ,DF11,Counsel's Fees                          ,750,20/11/2014,REV,REDACTED
244,Central Services,Council tax collection,Local Taxation Services,E02100,Supplies & Services           ,Comms and Computing           ,DG09,Computer Purchases - Misc               ,"8,262.00",03/12/2014,REV,CIVICA UK LIMITED             
245,Central Services,Council tax collection,Local Taxation Services,E02100,Supplies & Services           ,Comms and Computing           ,DG09,Computer Purchases - Misc               ,"2,000.00",09/12/2014,REV,CIVICA UK LIMITED             
246,Central Services,Council tax collection,Local Taxation Services,E02100,Third Party Payments          ,Private Contractors           ,EH01,Miscellaneous Agency Services           ,748.19,01/12/2014,REV,COMMERCIAL COLLECTION SERVICES
247,Central Services,Council tax collection,Local Taxation Services,E02100,Third Party Payments          ,Private Contractors           ,EH01,Miscellaneous Agency Services           ,585.49,01/11/2014,REV,COMMERCIAL COLLECTION SERVICES
248,Central Services,Council tax collection,Local Taxation Bailiffs,E02101,Supplies & Services           ,Services                      ,DF18,Bailiffs' fees                          ,705.7,05/12/2014,REV,QUARTIX                       
249,Housing Services,HB Administration,Benefits Administration,E02120,Supplies & Services           ,Comms and Computing           ,DG09,Computer Purchases - Misc               ,585,05/12/2014,REV,CIVICA UK LIMITED             
250,Housing Services,HB Administration,Local Welfare Support,E02123,Transfer Payments             ,Housing Benefits              ,FA95,Other Payments                          ,"9,500.00",18/11/2014,REV,MERTON & LAMBETH CAB LTD      
251,Central Services,SupS Payroll,Payroll,E02140,Third Party Payments          ,Private Contractors           ,EH10,Contract Payments                       ,"12,177.26",10/12/2014,REV,LONDON BOROUGH OF SUTTON      
252,Central Services,SupS Payroll,Payroll,E02140,Third Party Payments          ,Private Contractors           ,EH10,Contract Payments                       ,"5,722.83",10/12/2014,REV,LONDON BOROUGH OF SUTTON      
253,Central Services,SupS Payroll,Trinity Project,E02141,Supplies & Services           ,Services                      ,DF03,Consultants                             ,"3,280.00",05/12/2014,REV,LONDON BOROUGH OF SUTTON      
254,Central Services,SupS Payroll,Trinity Project,E02141,Supplies & Services           ,Services                      ,DF03,Consultants                             ,"3,280.00",05/12/2014,REV,LONDON BOROUGH OF SUTTON      
255,Central Services,SupS Facilities,Post Room,E02220,Supplies & Services           ,Equip Furniture/Materials     ,DA01,Equipment - R & M                       ,982.01,27/09/2014,REV,NEOPOST FINANCE LIMITED       
256,Central Services,SupS Facilities,Post Room,E02220,Supplies & Services           ,Comms and Computing           ,DG04,Postage - General                       ,820.59,30/11/2014,REV,STREETWISE COURIERS           
257,Central Services,SupS Facilities,Post Room,E02220,Supplies & Services           ,Comms and Computing           ,DG04,Postage - General                       ,550.26,15/12/2014,REV,STREETWISE COURIERS           
258,Central Services,SupS Facilities,Post Room,E02220,Supplies & Services           ,Comms and Computing           ,DG04,Postage - General                       ,"1,599.30",30/11/2014,REV,PARKER CARS LTD               
259,Central Services,SupS Facilities,Post Room,E02220,Supplies & Services           ,Comms and Computing           ,DG04,Postage - General                       ,575.87,24/11/2014,REV,STREETWISE COURIERS           
260,Central Services,SupS Facilities,Post Room,E02220,Supplies & Services           ,Comms and Computing           ,DG04,Postage - General                       ,505.44,08/12/2014,REV,STREETWISE COURIERS           
261,Central Services,SupS Facilities,Security Services,E02221,Employees                     ,Direct Employee Expenses      ,AA17,Agency Staff & Casual Paymts            ,"2,203.76",01/12/2014,REV,REDACTED
262,Central Services,SupS Facilities,Security Services,E02221,Employees                     ,Direct Employee Expenses      ,AA17,Agency Staff & Casual Paymts            ,"1,989.00",01/12/2014,REV,REDACTED
263,Central Services,SupS Facilities,Security Services,E02221,Employees                     ,Direct Employee Expenses      ,AA17,Agency Staff & Casual Paymts            ,"1,989.00",01/12/2014,REV,REDACTED
264,Central Services,SupS Facilities,Security Services,E02221,Employees                     ,Direct Employee Expenses      ,AA17,Agency Staff & Casual Paymts            ,"1,977.30",01/12/2014,REV,REDACTED
265,Central Services,SupS Facilities,Security Services,E02221,Employees                     ,Direct Employee Expenses      ,AA17,Agency Staff & Casual Paymts            ,"2,111.85",01/12/2014,REV,REDACTED
266,Central Services,SupS Facilities,Civic Centre,E02222,Premises Related Expenditure  ,RepairsAlterations&MtceOfBldgs,BA01,DDM - General Building                  ,"2,450.00",02/11/2014,REV,KH FLOORING LTD               
267,Central Services,SupS Facilities,Civic Centre,E02222,Premises Related Expenditure  ,RepairsAlterations&MtceOfBldgs,BA29,BUILD MAINT MGT FEES                    ,519.76,27/11/2014,REV,UNIQUE OFFICE SOLUTIONS LTD   
268,Central Services,SupS Facilities,Civic Centre,E02222,Premises Related Expenditure  ,RepairsAlterations&MtceOfBldgs,BA29,BUILD MAINT MGT FEES                    ,679.46,27/11/2014,REV,UNIQUE OFFICE SOLUTIONS LTD   
269,Central Services,SupS Facilities,Civic Centre,E02222,Premises Related Expenditure  ,RepairsAlterations&MtceOfBldgs,BA29,BUILD MAINT MGT FEES                    ,"2,530.68",31/03/2014,REV,SALTASH ENTERPRISES LTD       
270,Central Services,SupS Facilities,Civic Centre,E02222,Premises Related Expenditure  ,RepairsAlterations&MtceOfBldgs,BA29,BUILD MAINT MGT FEES                    ,"2,554.60",27/11/2014,REV,UNIQUE OFFICE SOLUTIONS LTD   
271,Central Services,SupS Facilities,Civic Centre,E02222,Premises Related Expenditure  ,RepairsAlterations&MtceOfBldgs,BA29,BUILD MAINT MGT FEES                    ,"9,594.18",15/12/2014,REV,SALTASH ENTERPRISES LTD       
272,Central Services,SupS Facilities,Civic Centre,E02222,Premises Related Expenditure  ,RepairsAlterations&MtceOfBldgs,BA29,BUILD MAINT MGT FEES                    ,"1,570.92",27/11/2014,REV,UNIQUE OFFICE SOLUTIONS LTD   
273,Central Services,SupS Facilities,Civic Centre,E02222,Premises Related Expenditure  ,RepairsAlterations&MtceOfBldgs,BA29,BUILD MAINT MGT FEES                    ,676.28,27/11/2014,REV,UNIQUE OFFICE SOLUTIONS LTD   
274,Central Services,SupS Facilities,Facilities,E02231,Premises Related Expenditure  ,RepairsAlterations&MtceOfBldgs,BA02,ENERGY CONSERVATION                     ,600,21/11/2014,REV,STARK SOFTWARE INTERNATIONAL  
275,Central Services,SupS Facilities,Facilities,E02231,Premises Related Expenditure  ,RepairsAlterations&MtceOfBldgs,BA02,ENERGY CONSERVATION                     ,"1,917.00",01/12/2014,REV,BERGEN ENERGI                 
276,Central Services,SupS Facilities,Facilities,E02231,Premises Related Expenditure  ,RepairsAlterations&MtceOfBldgs,BA02,ENERGY CONSERVATION                     ,"1,944.10",14/11/2014,REV,STARK SOFTWARE INTERNATIONAL  
277,Central Services,SupS Facilities,Facilities,E02231,Premises Related Expenditure  ,RepairsAlterations&MtceOfBldgs,BA02,ENERGY CONSERVATION                     ,"1,125.00",27/11/2014,REV,STARK SOFTWARE INTERNATIONAL  
278,Central Services,SupS Facilities,Facilities,E02231,Premises Related Expenditure  ,RepairsAlterations&MtceOfBldgs,BA02,ENERGY CONSERVATION                     ,"1,200.00",12/12/2014,REV,JOJU SOLAR                    
279,Central Services,SupS Facilities,Facilities,E02231,Premises Related Expenditure  ,RepairsAlterations&MtceOfBldgs,BA02,ENERGY CONSERVATION                     ,525,01/12/2014,REV,ENERGY SAVING LIGHTING (UK) LT
280,Central Services,SupS Facilities,Facilities,E02231,Premises Related Expenditure  ,RepairsAlterations&MtceOfBldgs,BA03,DDM - Mechanical                        ,"1,314.50",12/12/2014,REV,EUROPA NATIONWIDE TECH.SER.LTD
281,Central Services,SupS Facilities,Facilities,E02231,Premises Related Expenditure  ,RepairsAlterations&MtceOfBldgs,BA90,Water Hygiene                           ,"1,350.00",10/11/2014,REV,REDACTED
282,Central Services,SupS Facilities,FM External Fees,E02239,Premises Related Expenditure  ,RepairsAlterations&MtceOfBldgs,BA29,Build Maint Mgt Fees                    ,"1,000.00",23/12/2014,REV,POLE STRUCTURAL ENGINEERS     
283,Central Services,SupS Facilities,Corporate Services Buildings,E02240,Premises Related Expenditure  ,RepairsAlterations&MtceOfBldgs,BA01,DDM - General Building                  ,510,11/12/2014,REV,KH FLOORING LTD               
284,Central Services,SupS Facilities,Corporate Services Buildings,E02240,Premises Related Expenditure  ,RepairsAlterations&MtceOfBldgs,BA01,DDM - General Building                  ,865,11/12/2014,REV,KH FLOORING LTD               
285,Central Services,SupS Facilities,Corporate Services Buildings,E02240,Premises Related Expenditure  ,RepairsAlterations&MtceOfBldgs,BA03,DDM - Mechanical                        ,"3,875.62",09/12/2014,REV,EUROPA NATIONWIDE TECH.SER.LTD
286,Central Services,SupS Facilities,Corporate Services Buildings,E02240,Premises Related Expenditure  ,RepairsAlterations&MtceOfBldgs,BA06,Repairs & Maintenance General           ,860,02/12/2014,REV,BUTLER & YOUNG LIFT CONSULTANT
287,Central Services,SupS Facilities,Corporate Services Buildings,E02240,Premises Related Expenditure  ,RepairsAlterations&MtceOfBldgs,BA29,Build Maint Mgt Fees                    ,"2,518.61",09/12/2014,REV,EUROPA NATIONWIDE TECH.SER.LTD
288,Central Services,SupS Facilities,Corporate Services Buildings,E02240,Premises Related Expenditure  ,RepairsAlterations&MtceOfBldgs,BA29,Build Maint Mgt Fees                    ,541.2,14/11/2014,REV,SHENTON GROUP                 
289,Central Services,SupS Facilities,Corporate Services Buildings,E02240,Premises Related Expenditure  ,Energy Costs                  ,BB02,Electricity                             ,"12,372.73",05/12/2014,REV,SCOTTISHPOWER                 
290,Central Services,SupS Facilities,Corporate Services Buildings,E02240,Premises Related Expenditure  ,Energy Costs                  ,BB02,Electricity                             ,525.23,01/12/2014,REV,SCOTTISHPOWER                 
291,Central Services,SupS Facilities,Corporate Services Buildings,E02240,Premises Related Expenditure  ,Energy Costs                  ,BB03,Gas (incl. Butane)                      ,"7,721.78",04/12/2014,REV,GAZPROM MARKETING&TRADING LTD 
292,Central Services,SupS Facilities,Corporate Services Buildings,E02240,Premises Related Expenditure  ,Energy Costs                  ,BB03,Gas (incl. Butane)                      ,"8,700.41",12/11/2014,REV,GAZPROM MARKETING&TRADING LTD 
293,Central Services,SupS Facilities,Corporate Services Buildings,E02240,Premises Related Expenditure  ,Water Services                ,BE01,Use of Water (Metered)                  ,"1,478.20",28/11/2014,REV,SUTTON AND EAST SURREY WATER  
294,Childrens & Education Services,Strategic Management,PDC,E02254,Premises Related Expenditure  ,Energy Costs                  ,BB02,Electricity                             ,789.35,01/12/2014,REV,SCOTTISHPOWER                 
295,Childrens & Education Services,Strategic Management,PDC,E02254,Premises Related Expenditure  ,Energy Costs                  ,BB03,Gas (incl. Butane)                      ,594.8,04/12/2014,REV,GAZPROM MARKETING&TRADING LTD 
296,Childrens & Education Services,Strategic Management,CSF Buildings,E02256,Premises Related Expenditure  ,RepairsAlterations&MtceOfBldgs,BA01,DDM - General Building                  ,502.5,21/11/2014,REV,SALTASH ENTERPRISES LTD       
297,Childrens & Education Services,Strategic Management,CSF Buildings,E02256,Premises Related Expenditure  ,RepairsAlterations&MtceOfBldgs,BA03,DDM - Mechanical                        ,"1,036.52",10/11/2014,REV,EUROPA NATIONWIDE TECH.SER.LTD
298,Childrens & Education Services,Strategic Management,CSF Buildings,E02256,Premises Related Expenditure  ,RepairsAlterations&MtceOfBldgs,BA05,DDM - Electrical                        ,616,28/11/2014,REV,EUROPA NATIONWIDE TECH.SER.LTD
299,Adult Social Care,OP 65 & Over Day Care,Pollards Hill Day Centre,E02270,Premises Related Expenditure  ,RepairsAlterations&MtceOfBldgs,BA06,Repairs & Maintenance General           ,940,26/11/2014,REV,INDEPTH HYGIENE SERVICES LTD  
300,Adult Social Care,OP 65 & Over Day Care,Pollards Hill Day Centre,E02270,Premises Related Expenditure  ,Cleaning and Domestic Supplies,BH03,Cleaning Services                       ,835.04,01/12/2014,REV,BIRKIN CLEANING SERVICES LTD  
301,Adult Social Care,OP 65 & Over Day Care,Pollards Hill Day Centre,E02270,Premises Related Expenditure  ,Cleaning and Domestic Supplies,BH03,Cleaning Services                       ,"1,540.02",01/12/2014,REV,BIRKIN CLEANING SERVICES LTD  
302,Adult Social Care,OP 65 & Over Day Care,Pollards Hill Day Centre,E02270,Premises Related Expenditure  ,Cleaning and Domestic Supplies,BH03,Cleaning Services                       ,"1,492.52",01/12/2014,REV,BIRKIN CLEANING SERVICES LTD  
303,Adult Social Care,OP 65 & Over Day Care,Pollards Hill Day Centre,E02270,Premises Related Expenditure  ,Cleaning and Domestic Supplies,BH03,Cleaning Services                       ,"1,222.20",01/12/2014,REV,BIRKIN CLEANING SERVICES LTD  
304,Adult Social Care,OP 65 & Over Day Care,Pollards Hill Day Centre,E02270,Premises Related Expenditure  ,Cleaning and Domestic Supplies,BH03,Cleaning Services                       ,"1,239.08",01/12/2014,REV,BIRKIN CLEANING SERVICES LTD  
305,Adult Social Care,OP 65 & Over Day Care,Pollards Hill Day Centre,E02270,Premises Related Expenditure  ,Cleaning and Domestic Supplies,BH03,Cleaning Services                       ,"1,673.61",01/12/2014,REV,BIRKIN CLEANING SERVICES LTD  
306,Adult Social Care,OP 65 & Over Day Care,Pollards Hill Day Centre,E02270,Premises Related Expenditure  ,Cleaning and Domestic Supplies,BH03,Cleaning Services                       ,816.35,01/12/2014,REV,BIRKIN CLEANING SERVICES LTD  
307,Adult Social Care,OP 65 & Over Day Care,Pollards Hill Day Centre,E02270,Premises Related Expenditure  ,Cleaning and Domestic Supplies,BH03,Cleaning Services                       ,"1,421.80",01/12/2014,REV,BIRKIN CLEANING SERVICES LTD  
308,Adult Social Care,OP 65 & Over Day Care,Pollards Hill Day Centre,E02270,Premises Related Expenditure  ,Cleaning and Domestic Supplies,BH03,Cleaning Services                       ,"6,596.17",01/12/2014,REV,BIRKIN CLEANING SERVICES LTD  
309,Adult Social Care,OP 65 & Over Day Care,Pollards Hill Day Centre,E02270,Premises Related Expenditure  ,Cleaning and Domestic Supplies,BH03,Cleaning Services                       ,"3,093.61",01/12/2014,REV,BIRKIN CLEANING SERVICES LTD  
310,Cultural Env Reg&Plan Services,Parks & Open Spaces,E & R Buildings,E02344,Premises Related Expenditure  ,RepairsAlterations&MtceOfBldgs,BA03,DDM - Mechanical                        ,502.88,13/11/2014,REV,EUROPA NATIONWIDE TECH.SER.LTD
311,Cultural Env Reg&Plan Services,Parks & Open Spaces,E & R Buildings,E02344,Premises Related Expenditure  ,RepairsAlterations&MtceOfBldgs,BA03,DDM - Mechanical                        ,525.06,13/11/2014,REV,EUROPA NATIONWIDE TECH.SER.LTD
312,Cultural Env Reg&Plan Services,Parks & Open Spaces,E & R Buildings,E02344,Premises Related Expenditure  ,RepairsAlterations&MtceOfBldgs,BA03,DDM - Mechanical                        ,"2,863.84",16/10/2014,REV,EUROPA NATIONWIDE TECH.SER.LTD
313,Cultural Env Reg&Plan Services,Parks & Open Spaces,E & R Buildings,E02344,Premises Related Expenditure  ,RepairsAlterations&MtceOfBldgs,BA03,DDM - Mechanical                        ,502.88,09/12/2014,REV,EUROPA NATIONWIDE TECH.SER.LTD
314,Cultural Env Reg&Plan Services,Parks & Open Spaces,E & R Buildings,E02344,Premises Related Expenditure  ,RepairsAlterations&MtceOfBldgs,BA03,DDM - Mechanical                        ,525.06,09/12/2014,REV,EUROPA NATIONWIDE TECH.SER.LTD
315,Cultural Env Reg&Plan Services,Parks & Open Spaces,E & R Buildings,E02344,Premises Related Expenditure  ,RepairsAlterations&MtceOfBldgs,BA05,DDM - Electrical                        ,782.37,25/09/2014,REV,CROWN SECURITY SYSTEMS LTD    
316,Adult Social Care,PS u65 Day Care,C & H Buildings,E02345,Premises Related Expenditure  ,RepairsAlterations&MtceOfBldgs,BA01,DDM - General Building                  ,981.25,28/11/2014,REV,SALTASH ENTERPRISES LTD       
317,Adult Social Care,PS u65 Day Care,C & H Buildings,E02345,Premises Related Expenditure  ,RepairsAlterations&MtceOfBldgs,BA05,DDM - Electrical                        ,664.65,28/10/2014,REV,ACCESS ASSURED                
318,Adult Social Care,PS u65 Day Care,C & H Buildings,E02345,Premises Related Expenditure  ,RepairsAlterations&MtceOfBldgs,BA05,DDM - Electrical                        ,661.51,28/11/2014,REV,EUROPA NATIONWIDE TECH.SER.LTD
319,Adult Social Care,PS u65 Day Care,C & H Buildings,E02345,Premises Related Expenditure  ,RepairsAlterations&MtceOfBldgs,BA05,DDM - Electrical                        ,"1,399.39",10/11/2014,REV,EUROPA NATIONWIDE TECH.SER.LTD
320,Adult Social Care,PS u65 Day Care,C & H Buildings,E02345,Premises Related Expenditure  ,RepairsAlterations&MtceOfBldgs,BA05,DDM - Electrical                        ,701.83,25/09/2014,REV,CROWN SECURITY SYSTEMS LTD    
321,Adult Social Care,PS u65 Day Care,C & H Buildings,E02345,Premises Related Expenditure  ,RepairsAlterations&MtceOfBldgs,BA05,DDM - Electrical                        ,"1,234.35",04/12/2014,REV,ACCESS ASSURED                
322,Adult Social Care,PS u65 Day Care,C & H Buildings,E02345,Premises Related Expenditure  ,RepairsAlterations&MtceOfBldgs,BA05,DDM - Electrical                        ,696.3,28/11/2014,REV,EUROPA NATIONWIDE TECH.SER.LTD
323,Adult Social Care,PS u65 Day Care,C & H Buildings,E02345,Premises Related Expenditure  ,RepairsAlterations&MtceOfBldgs,BA05,DDM - Electrical                        ,708.02,10/11/2014,REV,EUROPA NATIONWIDE TECH.SER.LTD
324,Cultural Env Reg&Plan Services,Parks & Open Spaces,Leisure Buildings,E02350,Premises Related Expenditure  ,RepairsAlterations&MtceOfBldgs,BA01,DDM - General Building                  ,560.38,28/11/2014,REV,SALTASH ENTERPRISES LTD       
325,Cultural Env Reg&Plan Services,Parks & Open Spaces,Leisure Buildings,E02350,Premises Related Expenditure  ,RepairsAlterations&MtceOfBldgs,BA03,DDM - Mechanical                        ,"1,181.66",27/06/2014,REV,EUROPA NATIONWIDE TECH.SER.LTD
326,Cultural Env Reg&Plan Services,Parks & Open Spaces,Leisure Buildings,E02350,Premises Related Expenditure  ,RepairsAlterations&MtceOfBldgs,BA03,DDM - Mechanical                        ,546.02,09/12/2014,REV,EUROPA NATIONWIDE TECH.SER.LTD
327,Central Services,SupS DOF,AD RESOURCES,E04061,Supplies & Services           ,Services                      ,DF03,CONSULTANTS                             ,"8,510.00",01/12/2014,REV,PUBLIC SECTOR CONSULTANTS     
328,Central Services,SupS Audit and Fraud,Internal Audit&Service Review,E05101,Supplies & Services           ,Comms and Computing           ,DG09,Computer Purchases - Misc               ,670,04/12/2014,REV,AUDITWARE SYSTEMS LTD         
329,Housing Services,Fraud Investigation,Benefits Investigation Section,E05103,Supplies & Services           ,Services                      ,DF11,Counsel's Fees                          ,"1,440.00",08/10/2014,REV,REDACTED
330,Central Services,SupS Corporate Finance,Corporate Accountancy,E06209,Supplies & Services           ,Services                      ,DF58,Audit Fee                               ,"2,600.00",12/12/2014,REV,ERNST & YOUNG LLP             
331,Central Services,SupS Corporate Finance,Corporate Accountancy,E06209,Supplies & Services           ,Expenses                      ,DH02,Conferences                             ,877.5,16/12/2014,REV,LAVAT CONSULTING LIMITED      
332,Central Services,SupS Strategic Finance,Business Planning,E06221,Employees                     ,Direct Employee Expenses      ,AA17,Agency Staff & Casual Paymts            ,"1,750.00",25/11/2014,REV,REDACTED
333,Central Services,SupS Strategic Finance,Business Planning,E06221,Employees                     ,Direct Employee Expenses      ,AA17,Agency Staff & Casual Paymts            ,"2,225.00",08/12/2014,REV,REDACTED
334,Central Services,SupS Strategic Finance,Business Planning,E06221,Employees                     ,Indirect Employee Expenses    ,AB02,Recruitment Adverts                     ,"1,020.00",09/12/2014,REV,PENNA COMMUNICATIONS (NO 2 A/C
335,Central Services,SupS Strategic Finance,Business Planning,E06221,Supplies & Services           ,Comms and Computing           ,DG50,Other IT Expenditure                    ,625,17/11/2014,REV,REAL ASSET MANAGEMENT PLC     
336,Central Services,SupS Strategic Finance,Business Planning,E06221,Supplies & Services           ,Comms and Computing           ,DG50,Other IT Expenditure                    ,625,28/11/2014,REV,REAL ASSET MANAGEMENT PLC     
337,Central Services,SupS Strategic Finance,Treasury & Insurance,E06222,Employees                     ,Direct Employee Expenses      ,AA17,Agency Staff & Casual Paymts            ,"9,400.00",15/12/2014,REV,REDACTED
338,Central Services,GENERATED ACCOUNT,Parking Cash Collect'n Contrct,E06225,Third Party Payments          ,Private Contractors           ,EH02,Miscellaneous Hired Services            ,"9,691.58",31/10/2014,REV,BANKING AUTOMATION LTD        
339,Central Services,SupS DOF,Service Accountancy,E06227,Employees                     ,Direct Employee Expenses      ,AA17,Agency Staff & Casual Paymts            ,"8,050.00",15/12/2014,REV,REDACTED
340,Central Services,SupS DOF,Service Accountancy,E06227,Transfer Payments             ,Housing Benefits              ,FA50,Burial and Cremation                    ,"1,169.50",29/10/2014,REV,F.W. PAINE                    
341,Central Services,SupS Legal,Legal Services,E10282,Supplies & Services           ,Services                      ,DF28,Court Fees                              ,"2,830.00",01/12/2014,REV,REDACTED
342,Central Services,SupS Legal,Legal Services,E10282,Supplies & Services           ,Services                      ,DF28,Court Fees                              ,"20,670.00",01/12/2014,REV,REDACTED
343,Central Services,SupS Legal,Legal Services,E10282,Supplies & Services           ,Services                      ,DF28,Court Fees                              ,560,16/12/2014,REV,REDACTED
344,Central Services,SupS Legal,Legal Services,E10282,Supplies & Services           ,Services                      ,DF28,Court Fees                              ,840,03/12/2014,REV,REDACTED
345,Central Services,SupS Legal,Legal Services,E10282,Supplies & Services           ,Services                      ,DF28,Court Fees                              ,"4,390.00",01/12/2014,REV,REDACTED
346,Central Services,SupS Legal,Legal Services,E10282,Supplies & Services           ,Services                      ,DF28,Court Fees                              ,"6,835.00",01/12/2014,REV,REDACTED
347,Central Services,Land Charges,Land Charges,E10283,Supplies & Services           ,Services                      ,DF11,Counsel's fees                          ,"1,852.24",30/11/2014,REV,LOCAL GOVERNMENT ASSOCIATION  
348,Central Services,Registration of electors,Electoral Registration,E10285,Supplies & Services           ,Prntng Stnry Gen Off Exp      ,DE03,Stationery                              ,"1,217.70",31/10/2014,REV,FINANCIAL DATA MANAGEMENT PLC 
349,Central Services,Registration of electors,Electoral Registration,E10285,Supplies & Services           ,Prntng Stnry Gen Off Exp      ,DE03,Stationery                              ,"16,694.92",01/10/2014,REV,FINANCIAL DATA MANAGEMENT PLC 
350,Central Services,Registration of electors,Electoral Registration,E10285,Supplies & Services           ,Services                      ,DF02,Misc Advertising/Publicity              ,"1,857.52",09/12/2014,REV,L.B.LAMBETH                   
351,Central Services,Registration of electors,Electoral Registration,E10285,Supplies & Services           ,Comms and Computing           ,DG04,Postage - General                       ,509.85,31/10/2014,REV,FINANCIAL DATA MANAGEMENT PLC 
352,Central Services,Registration of electors,Electoral Registration,E10285,Supplies & Services           ,Comms and Computing           ,DG04,Postage - General                       ,"3,893.82",19/11/2014,REV,FINANCIAL DATA MANAGEMENT PLC 
353,Central Services,Registration of electors,Electoral Registration,E10285,Supplies & Services           ,Comms and Computing           ,DG04,Postage - General                       ,840.18,19/11/2014,REV,FINANCIAL DATA MANAGEMENT PLC 
354,Central Services,SupS Legal,Shared Legal Service,E10288,Supplies & Services           ,Equip Furniture/Materials     ,DA80,Books                                   ,"22,769.50",19/12/2014,REV,LEXIS NEXIS                   
355,Central Services,SupS Legal,Shared Legal Service,E10288,Supplies & Services           ,Prntng Stnry Gen Off Exp      ,DE03,Stationery                              ,604,12/12/2014,REV,OFFICE DEPOT UK LTD           
356,Central Services,SupS Legal,Shared Legal Service,E10288,Supplies & Services           ,Services                      ,DF11,Counsel's Fees                          ,950,26/11/2014,REV,REDACTED
357,Central Services,SupS Legal,Shared Legal Service,E10288,Supplies & Services           ,Comms and Computing           ,DG02,Software Licences                       ,"1,250.00",19/12/2014,REV,LEXIS NEXIS                   
358,Central Services,SupS Legal,Shared Legal Service,E10288,Supplies & Services           ,Comms and Computing           ,DG50,Other IT Expenditure                    ,"2,400.00",09/10/2014,REV,LEXIS NEXIS                   
359,Central Services,SupS Legal,Shared Legal Service,E10288,Supplies & Services           ,Expenses                      ,DH16,Compensation Payments                   ,"1,500.00",19/12/2014,REV,REDACTED
360,Central Services,SupS Legal,K&S Shared Legal                        ,E10291,Employees                     ,Indirect Employee Expenses    ,AB57,External Training Costs                 ,640,28/11/2014,REV,ILEX                          
361,Central Services,SupS Legal,K&S Shared Legal                        ,E10291,Employees                     ,Indirect Employee Expenses    ,AB57,External Training Costs                 ,640,28/11/2014,REV,ILEX                          
362,Central Services,SupS Legal,K&S Shared Legal                        ,E10291,Employees                     ,Indirect Employee Expenses    ,AB57,External Training Costs                 ,-640,28/11/2014,REV,ILEX                          
363,Central Services,SupS Legal,K&S Shared Legal                        ,E10291,Supplies & Services           ,Equip Furniture/Materials     ,DA09,Equip-Purchases                         ,535,11/12/2014,REV,UNIQUE OFFICE SOLUTIONS LTD   
364,Central Services,SupS Legal,K&S Shared Legal                        ,E10291,Supplies & Services           ,Equip Furniture/Materials     ,DA80,Books                                   ,"22,769.50",19/12/2014,REV,LEXIS NEXIS                   
365,Central Services,SupS Legal,K&S Shared Legal                        ,E10291,Supplies & Services           ,Services                      ,DF95,Services from Provider                  ,"1,501.50",28/11/2014,REV,REDACTED
366,Central Services,SupS Legal,K&S Shared Legal                        ,E10291,Supplies & Services           ,Comms and Computing           ,DG02,Software Licences                       ,"1,250.00",19/12/2014,REV,LEXIS NEXIS                   
367,Central Services,SupS Legal,K&S Shared Legal                        ,E10291,Supplies & Services           ,Comms and Computing           ,DG50,Other IT Expenditure                    ,"2,400.00",09/10/2014,REV,LEXIS NEXIS                   
368,Central Services,SupS Legal,K&S Shared Legal                        ,E10291,Supplies & Services           ,Expenses                      ,DH16,Compensation Payments                   ,788.9,30/12/2014,REV,ROYAL BOROUGH OF KINGSTON UPON
369,Central Services,SupS Legal,Kingston Legal                          ,E10292,Supplies & Services           ,Services                      ,DF11,Counsel's Fees                          ,"1,500.00",16/12/2014,REV,REDACTED
370,Central Services,SupS Legal,Kingston Legal                          ,E10292,Supplies & Services           ,Services                      ,DF11,Counsel's Fees                          ,"10,450.00",18/12/2014,REV,REDACTED
371,Central Services,SupS Legal,Sutton Legal                            ,E10293,Supplies & Services           ,Services                      ,DF11,Counsel's Fees                          ,650,06/12/2014,REV,REDACTED
372,Central Services,SupS Legal,Sutton Legal                            ,E10293,Supplies & Services           ,Services                      ,DF11,Counsel's Fees                          ,"1,000.00",01/12/2014,REV,REDACTED
373,Central Services,SupS Legal,Sutton Legal                            ,E10293,Supplies & Services           ,Services                      ,DF11,Counsel's Fees                          ,810,16/11/2014,REV,REDACTED
374,Central Services,SupS Legal,Sutton Legal                            ,E10293,Supplies & Services           ,Services                      ,DF11,Counsel's Fees                          ,925,26/11/2014,REV,REDACTED
375,Central Services,SupS Legal,Sutton Legal                            ,E10293,Supplies & Services           ,Services                      ,DF11,Counsel's Fees                          ,607.5,26/11/2014,REV,REDACTED
376,Central Services,SupS Legal,Sutton Legal                            ,E10293,Supplies & Services           ,Services                      ,DF11,Counsel's Fees                          ,590,15/09/2014,REV,REDACTED
377,Central Services,SupS Legal,Sutton Legal                            ,E10293,Supplies & Services           ,Services                      ,DF11,Counsel's Fees                          ,"3,350.00",28/11/2014,REV,REDACTED
378,Central Services,SupS Legal,Sutton Legal                            ,E10293,Supplies & Services           ,Services                      ,DF11,Counsel's Fees                          ,750,25/11/2014,REV,REDACTED
379,Central Services,SupS Legal,Sutton Legal                            ,E10293,Supplies & Services           ,Services                      ,DF11,Counsel's Fees                          ,825,20/11/2014,REV,REDACTED
380,Central Services,SupS Legal,Sutton Legal                            ,E10293,Supplies & Services           ,Services                      ,DF11,Counsel's Fees                          ,875,29/10/2014,REV,REDACTED
381,Central Services,SupS Legal,Sutton Legal                            ,E10293,Supplies & Services           ,Services                      ,DF11,Counsel's Fees                          ,520,20/10/2014,REV,REDACTED
382,Central Services,SupS Legal,Sutton Legal                            ,E10293,Supplies & Services           ,Services                      ,DF11,Counsel's Fees                          ,"1,300.00",03/12/2014,REV,REDACTED
383,Central Services,SupS Legal,Sutton Legal                            ,E10293,Supplies & Services           ,Services                      ,DF11,Counsel's Fees                          ,"3,541.66",24/11/2014,REV,REDACTED
384,Central Services,SupS Legal,Sutton Legal                            ,E10293,Supplies & Services           ,Services                      ,DF11,Counsel's Fees                          ,"1,000.00",18/09/2014,REV,REDACTED
385,Central Services,SupS Legal,Sutton Legal                            ,E10293,Supplies & Services           ,Services                      ,DF11,Counsel's Fees                          ,"3,750.00",27/11/2014,REV,REDACTED
386,Central Services,SupS Legal,Sutton Legal                            ,E10293,Supplies & Services           ,Services                      ,DF11,Counsel's Fees                          ,500,27/11/2014,REV,REDACTED
387,Central Services,SupS Legal,Sutton Legal                            ,E10293,Supplies & Services           ,Services                      ,DF14,Doctors and Other Fees                  ,"1,795.67",17/11/2014,REV,CF SOCIAL WORK                
388,Central Services,SupS Legal,Sutton Legal                            ,E10293,Supplies & Services           ,Services                      ,DF14,Doctors and Other Fees                  ,587.6,15/11/2014,REV,REDACTED
389,Central Services,SupS Legal,Sutton Legal                            ,E10293,Supplies & Services           ,Services                      ,DF14,Doctors and Other Fees                  ,"1,886.06",17/11/2014,REV,CF SOCIAL WORK                
390,Central Services,SupS Legal,Sutton Legal                            ,E10293,Supplies & Services           ,Services                      ,DF95,Services from Provider                  ,"9,480.00",16/10/2014,REV,FREEMANS SOLICITORS           
391,Central Services,SupS Legal,Sutton Legal                            ,E10293,Supplies & Services           ,Services                      ,DF95,Services from Provider                  ,749.95,06/11/2014,REV,SEARCHFLOW LTD                
392,Central Services,SupS Legal,Sutton Legal                            ,E10293,Supplies & Services           ,Services                      ,DF95,Services from Provider                  ,"13,000.00",15/12/2014,REV,SHARPE PRITCHARD SOLICITORS   
393,Central Services,SupS Legal,Sutton Legal                            ,E10293,Supplies & Services           ,Services                      ,DF95,Services from Provider                  ,"6,280.00",16/10/2014,REV,FREEMANS SOLICITORS           
394,Central Services,SupS Legal,Sutton Legal                            ,E10293,Supplies & Services           ,Services                      ,DF95,Services from Provider                  ,"10,020.31",14/11/2014,REV,THE PLANNING INSPECTORATE     
395,Central Services,SupS Legal,Sutton Housing Partnership(SHP          ,E10294,Supplies & Services           ,Services                      ,DF11,Counsel's Fees                          ,"1,250.00",25/08/2014,REV,REDACTED
396,Central Services,SupS Legal,Achieving for Children (AFC),E10295,Supplies & Services           ,Services                      ,DF11,Counsel's Fees                          ,"1,030.00",04/12/2014,REV,REDACTED
397,Central Services,SupS Legal,Achieving for Children (AFC),E10295,Supplies & Services           ,Services                      ,DF11,Counsel's Fees                          ,520,23/12/2014,REV,REDACTED
398,Central Services,SupS Legal,Achieving for Children (AFC),E10295,Supplies & Services           ,Services                      ,DF11,Counsel's Fees                          ,"8,825.00",05/12/2014,REV,REDACTED
399,Central Services,SupS Legal,Achieving for Children (AFC),E10295,Supplies & Services           ,Services                      ,DF11,Counsel's Fees                          ,960,20/11/2014,REV,REDACTED
400,Central Services,SupS Legal,Achieving for Children (AFC),E10295,Supplies & Services           ,Services                      ,DF11,Counsel's Fees                          ,890,27/10/2014,REV,REDACTED
401,Central Services,SupS Legal,Achieving for Children (AFC),E10295,Supplies & Services           ,Services                      ,DF11,Counsel's Fees                          ,602.5,13/11/2014,REV,REDACTED
402,Central Services,SupS Legal,Achieving for Children (AFC),E10295,Supplies & Services           ,Services                      ,DF11,Counsel's Fees                          ,500,10/12/2014,REV,REDACTED
403,Central Services,SupS Legal,Achieving for Children (AFC),E10295,Supplies & Services           ,Services                      ,DF11,Counsel's Fees                          ,"1,135.02",03/12/2014,REV,DUNCAN LEWIS (SOLICITORS) LTD 
404,Central Services,SupS Legal,Achieving for Children (AFC),E10295,Supplies & Services           ,Services                      ,DF11,Counsel's Fees                          ,"1,260.00",13/10/2014,REV,REDACTED
405,Central Services,SupS Legal,Achieving for Children (AFC),E10295,Supplies & Services           ,Services                      ,DF11,Counsel's Fees                          ,510,23/12/2014,REV,REDACTED
406,Central Services,SupS Legal,Achieving for Children (AFC),E10295,Supplies & Services           ,Services                      ,DF11,Counsel's Fees                          ,510,23/12/2014,REV,REDACTED
407,Central Services,SupS Legal,Achieving for Children (AFC),E10295,Supplies & Services           ,Services                      ,DF11,Counsel's Fees                          ,"2,520.00",04/12/2014,REV,REDACTED
408,Central Services,SupS Legal,Achieving for Children (AFC),E10295,Supplies & Services           ,Services                      ,DF11,Counsel's Fees                          ,-890,27/10/2014,REV,REDACTED
409,Central Services,SupS Legal,Achieving for Children (AFC),E10295,Supplies & Services           ,Services                      ,DF11,Counsel's Fees                          ,890,27/10/2014,REV,REDACTED
410,Central Services,SupS Legal,Achieving for Children (AFC),E10295,Supplies & Services           ,Services                      ,DF11,Counsel's Fees                          ,550,10/12/2014,REV,REDACTED
411,Central Services,SupS Legal,Achieving for Children (AFC),E10295,Supplies & Services           ,Services                      ,DF11,Counsel's Fees                          ,720,17/12/2014,REV,REDACTED
412,Central Services,SupS Legal,Achieving for Children (AFC),E10295,Supplies & Services           ,Services                      ,DF11,Counsel's Fees                          ,"1,400.00",24/11/2014,REV,REDACTED
413,Central Services,SupS Legal,Achieving for Children (AFC),E10295,Supplies & Services           ,Services                      ,DF11,Counsel's Fees                          ,"3,190.00",04/12/2014,REV,REDACTED
414,Central Services,SupS Legal,Achieving for Children (AFC),E10295,Supplies & Services           ,Services                      ,DF14,Doctors and Other Fees                  ,840.68,01/11/2014,REV,KALEIDOSCOPE PSYCHOLOGY SERV  
415,Central Services,SupS Legal,Achieving for Children (AFC),E10295,Supplies & Services           ,Services                      ,DF14,Doctors and Other Fees                  ,701.27,09/12/2014,REV,REDACTED
416,Central Services,SupS Legal,Achieving for Children (AFC),E10295,Supplies & Services           ,Services                      ,DF14,Doctors and Other Fees                  ,"2,212.80",18/09/2014,REV,THE PETER BRANSTON CONSULTANCY
417,Central Services,SupS Legal,Achieving for Children (AFC),E10295,Supplies & Services           ,Services                      ,DF95,Services from Provider                  ,"1,642.00",31/10/2014,REV,HEALD NICKINSON               
418,Central Services,SupS IT,Social Care Info System (SCI)           ,E14357,Employees                     ,Direct Employee Expenses      ,AA17,Agency Staff & Casual Paymts            ,"3,025.00",26/11/2014,REV,HAYS RECRUITING EXPERTS       
419,Central Services,SupS IT,Social Care Info System (SCI)           ,E14357,Employees                     ,Direct Employee Expenses      ,AA17,Agency Staff & Casual Paymts            ,"7,182.40",08/12/2014,REV,REDACTED
420,Central Services,SupS IT,Social Care Info System (SCI)           ,E14357,Employees                     ,Direct Employee Expenses      ,AA17,Agency Staff & Casual Paymts            ,"2,910.00",03/12/2014,REV,HAYS RECRUITING EXPERTS       
421,Central Services,SupS IT,Social Care Info System (SCI)           ,E14357,Employees                     ,Direct Employee Expenses      ,AA17,Agency Staff & Casual Paymts            ,"2,722.50",12/11/2014,REV,HAYS RECRUITING EXPERTS       
422,Central Services,SupS IT,Social Care Info System (SCI)           ,E14357,Employees                     ,Direct Employee Expenses      ,AA17,Agency Staff & Casual Paymts            ,"6,823.28",01/12/2014,REV,REDACTED
423,Central Services,SupS IT,BI IT Projects,E14360,Employees                     ,Direct Employee Expenses      ,AA17,Agency Staff & Casual Paymts            ,"1,900.00",29/10/2014,REV,REDACTED
424,Central Services,SupS IT,BI IT Projects,E14360,Employees                     ,Direct Employee Expenses      ,AA17,Agency Staff & Casual Paymts            ,"1,900.00",11/11/2014,REV,REDACTED
425,Central Services,SupS IT,BI IT Projects,E14360,Employees                     ,Direct Employee Expenses      ,AA17,Agency Staff & Casual Paymts            ,"3,040.00",02/12/2014,REV,REDACTED
426,Central Services,SupS IT,BI IT Projects,E14360,Employees                     ,Direct Employee Expenses      ,AA17,Agency Staff & Casual Paymts            ,"3,240.00",15/12/2014,REV,REDACTED
427,Central Services,SupS IT,BI IT Projects,E14360,Employees                     ,Direct Employee Expenses      ,AA17,Agency Staff & Casual Paymts            ,"1,140.00",10/12/2014,REV,REDACTED
428,Central Services,SupS IT,BI IT Projects,E14360,Supplies & Services           ,Services                      ,DF03,Consultants                             ,"9,435.33",31/10/2014,REV,NORTHGATE INFORMATION SOLUTION
429,Central Services,SupS IT,BI IT Projects,E14360,Supplies & Services           ,Services                      ,DF03,Consultants                             ,"30,114.67",31/10/2014,REV,NORTHGATE INFORMATION SOLUTION
430,Central Services,SupS IT,AD I&T,E14363,Employees                     ,Direct Employee Expenses      ,AA17,Agency Staff & Casual Paymts            ,"11,900.00",08/12/2014,REV,GATENBYSANDERSON LIMITED      
431,Central Services,SupS IT,AD I&T,E14363,Supplies & Services           ,Services                      ,DF01,General Office Expenses                 ,"2,664.75",19/11/2014,REV,SETON                         
432,Central Services,SupS IT,Systems & Projects,E14366,Employees                     ,Direct Employee Expenses      ,AA17,Agency Staff & Casual Paymts            ,878.63,04/12/2014,REV,NUMBER 10 INTERIM LTD         
433,Central Services,SupS IT,Systems & Projects,E14366,Employees                     ,Direct Employee Expenses      ,AA17,Agency Staff & Casual Paymts            ,"1,500.10",19/11/2014,REV,NUMBER 10 INTERIM LTD         
434,Central Services,SupS IT,Systems & Projects,E14366,Employees                     ,Direct Employee Expenses      ,AA17,Agency Staff & Casual Paymts            ,"1,500.10",08/12/2014,REV,NUMBER 10 INTERIM LTD         
435,Central Services,SupS IT,Systems & Projects,E14366,Employees                     ,Direct Employee Expenses      ,AA17,Agency Staff & Casual Paymts            ,"1,500.10",11/12/2014,REV,NUMBER 10 INTERIM LTD         
436,Central Services,SupS IT,Systems & Projects,E14366,Employees                     ,Direct Employee Expenses      ,AA17,Agency Staff & Casual Paymts            ,"1,500.10",18/12/2014,REV,NUMBER 10 INTERIM LTD         
437,Central Services,SupS IT,Systems & Projects,E14366,Employees                     ,Direct Employee Expenses      ,AA17,Agency Staff & Casual Paymts            ,535.5,17/12/2014,REV,REDACTED
438,Central Services,SupS IT,Systems & Projects,E14366,Employees                     ,Direct Employee Expenses      ,AA17,Agency Staff & Casual Paymts            ,"1,328.66",01/12/2014,REV,NUMBER 10 INTERIM LTD         
439,Central Services,SupS IT,Systems & Projects,E14366,Employees                     ,Direct Employee Expenses      ,AA17,Agency Staff & Casual Paymts            ,"1,478.67",24/11/2014,REV,NUMBER 10 INTERIM LTD         
440,Central Services,SupS IT,Systems & Projects,E14366,Employees                     ,Direct Employee Expenses      ,AA17,Agency Staff & Casual Paymts            ,"1,100.00",25/07/2014,REV,REDACTED
441,Central Services,SupS IT,Systems & Projects,E14366,Employees                     ,Direct Employee Expenses      ,AA17,Agency Staff & Casual Paymts            ,835.77,26/11/2014,REV,NUMBER 10 INTERIM LTD         
442,Central Services,SupS IT,Systems & Projects,E14366,Employees                     ,Direct Employee Expenses      ,AA17,Agency Staff & Casual Paymts            ,"1,500.10",23/12/2014,REV,NUMBER 10 INTERIM LTD         
443,Central Services,SupS IT,Systems & Projects,E14366,Employees                     ,Direct Employee Expenses      ,AA17,Agency Staff & Casual Paymts            ,"3,000.20",22/12/2014,REV,NUMBER 10 INTERIM LTD         
444,Central Services,SupS IT,Systems & Projects,E14366,Employees                     ,Direct Employee Expenses      ,AA17,Agency Staff & Casual Paymts            ,"1,500.10",11/12/2014,REV,NUMBER 10 INTERIM LTD         
445,Central Services,SupS IT,Systems & Projects,E14366,Supplies & Services           ,Comms and Computing           ,DG02,Software Licences                       ,"4,364.00",31/10/2014,REV,FIRMSTEP                      
446,Central Services,SupS IT,Systems & Projects,E14366,Supplies & Services           ,Comms and Computing           ,DG02,Software Licences                       ,"48,819.64",01/12/2014,REV,PROACTIS GROUP LTD            
447,Central Services,SupS IT,Systems & Projects,E14366,Supplies & Services           ,Comms and Computing           ,DG02,Software Licences                       ,"1,227.94",04/11/2014,REV,METACOMPLIANCE.COM            
448,Central Services,SupS IT,Systems & Projects,E14366,Supplies & Services           ,Comms and Computing           ,DG07,Computer Software                       ,928.47,19/11/2014,REV,CIVICA UK LIMITED             
449,Central Services,SupS IT,Systems & Projects,E14366,Supplies & Services           ,Comms and Computing           ,DG07,Computer Software                       ,"6,778.99",19/11/2014,REV,CIVICA UK LIMITED             
450,Central Services,SupS IT,Systems & Projects,E14366,Supplies & Services           ,Comms and Computing           ,DG07,Computer Software                       ,"10,815.00",01/12/2014,REV,ALIGNED ASSETS                
451,Central Services,SupS IT,Systems & Projects,E14366,Supplies & Services           ,Comms and Computing           ,DG08,Computer Hardware                       ,"1,341.54",19/11/2014,REV,CIVICA UK LIMITED             
452,Central Services,SupS IT,Systems & Projects,E14366,Supplies & Services           ,Comms and Computing           ,DG65,Application Licences                    ,"16,594.65",18/12/2014,REV,OPEN TEXT UK LTD              
453,Central Services,SupS IT,Systems & Projects,E14366,Supplies & Services           ,Grants and Subscriptions      ,DJ04,Subscriptions                           ,"1,310.00",03/11/2014,REV,SOCITM LTD                    
454,Central Services,SupS IT,Operations & Telecomms,E14367,Supplies & Services           ,Comms and Computing           ,DG54,Corporate Telephones                    ,"5,105.48",02/06/2014,REV,BRITISH TELECOMMUNICATIONS PLC
455,Central Services,SupS IT,Operations & Telecomms,E14367,Supplies & Services           ,Comms and Computing           ,DG54,Corporate Telephones                    ,"57,688.62",27/11/2014,REV,BRITISH TELECOMMUNICATIONS PLC
456,Central Services,SupS IT,Operations & Telecomms,E14367,Supplies & Services           ,Comms and Computing           ,DG54,Corporate Telephones                    ,"2,044.13",02/09/2014,REV,BRITISH TELECOMMUNICATIONS PLC
457,Central Services,SupS IT,Operations & Telecomms,E14367,Supplies & Services           ,Comms and Computing           ,DG54,Corporate Telephones                    ,"-1,500.00",25/11/2014,REV,BRITISH TELECOMMUNICATIONS PLC
458,Central Services,SupS IT,Operations & Telecomms,E14367,Supplies & Services           ,Comms and Computing           ,DG54,Corporate Telephones                    ,507.27,02/11/2014,REV,COLT TELECOMMUNICATIONS       
459,Central Services,SupS IT,Distributed Services,E14368,Supplies & Services           ,Comms and Computing           ,DG63,Software Licences - Data                ,"3,168.00",09/12/2014,REV,NETWORLD UK                   
460,Central Services,SupS IT,Distributed Services,E14368,Supplies & Services           ,Comms and Computing           ,DG63,Software Licences - Data                ,"3,503.81",09/12/2014,REV,NETWORLD UK                   
461,Central Services,SupS IT,Distributed Services,E14368,Supplies & Services           ,Comms and Computing           ,DG63,Software Licences - Data                ,"5,089.50",09/12/2014,REV,NETWORLD UK                   
462,Central Services,SupS IT,Distributed Services,E14368,Supplies & Services           ,Comms and Computing           ,DG65,Application Licences                    ,"13,706.82",11/12/2014,REV,RANDOMSTORM LTD               
463,Central Services,SupS IT,Corp Saving-IT Consolidation,E14370,Premises Related Expenditure  ,RepairsAlterations&MtceOfBldgs,BA01,DDM - General Building                  ,"3,856.00",05/11/2014,REV,PAYE STONEWK & RESTORATION LTD
464,Central Services,SupS IT,Corp Saving-IT Consolidation,E14370,Premises Related Expenditure  ,RepairsAlterations&MtceOfBldgs,BA01,DDM - General Building                  ,"7,181.23",02/12/2014,REV,SALTASH ENTERPRISES LTD       
465,Central Services,SupS IT,No longer used,E14371,Employees                     ,Direct Employee Expenses      ,AA17,Agency Staff & Casual Paymts            ,"2,060.00",21/10/2014,REV,CYBERTEAM                     
466,Central Services,SupS IT,No longer used,E14371,Employees                     ,Direct Employee Expenses      ,AA17,Agency Staff & Casual Paymts            ,"3,390.00",10/12/2014,REV,HAYS RECRUITING EXPERTS       
467,Central Services,SupS IT,No longer used,E14371,Employees                     ,Direct Employee Expenses      ,AA17,Agency Staff & Casual Paymts            ,"2,060.00",07/10/2014,REV,CYBERTEAM                     
468,Central Services,SupS IT,No longer used,E14371,Employees                     ,Direct Employee Expenses      ,AA17,Agency Staff & Casual Paymts            ,"12,000.00",05/12/2014,REV,MILESTONES COMMUNICATIONS LTD 
469,Central Services,SupS IT,No longer used,E14371,Employees                     ,Direct Employee Expenses      ,AA17,Agency Staff & Casual Paymts            ,"2,060.00",25/11/2014,REV,CYBERTEAM                     
470,Central Services,SupS IT,No longer used,E14371,Employees                     ,Direct Employee Expenses      ,AA17,Agency Staff & Casual Paymts            ,"2,060.00",11/11/2014,REV,CYBERTEAM                     
471,Central Services,SupS IT,No longer used,E14371,Employees                     ,Direct Employee Expenses      ,AA17,Agency Staff & Casual Paymts            ,"3,390.00",12/11/2014,REV,HAYS RECRUITING EXPERTS       
472,Central Services,SupS IT,No longer used,E14371,Employees                     ,Direct Employee Expenses      ,AA17,Agency Staff & Casual Paymts            ,"2,060.00",28/10/2014,REV,CYBERTEAM                     
473,Central Services,SupS IT,No longer used,E14371,Employees                     ,Direct Employee Expenses      ,AA17,Agency Staff & Casual Paymts            ,"2,060.00",14/10/2014,REV,CYBERTEAM                     
474,Central Services,SupS IT,No longer used,E14371,Supplies & Services           ,Services                      ,DF03,Consultants                             ,"6,340.00",17/11/2014,REV,V4 SERVICES LIMITED           
475,Central Services,SupS IT,No longer used,E14371,Supplies & Services           ,Services                      ,DF03,Consultants                             ,"10,427.50",15/12/2014,REV,V4 SERVICES LIMITED           
476,Central Services,SupS IT,Business Systems - Deptl Supt,E14377,Supplies & Services           ,Comms and Computing           ,DG15,Network Maintenance                     ,"6,630.00",09/12/2014,REV,AXIAL SYSTEMS                 
477,Central Services,SupS IT,Business Systems - Deptl Supt,E14377,Supplies & Services           ,Comms and Computing           ,DG15,Network Maintenance                     ,"1,492.50",24/11/2014,REV,NETWORK TECHNOLOGY SOLUTIONS  
478,Central Services,SupS IT,Business Systems - Deptl Supt,E14377,Supplies & Services           ,Comms and Computing           ,DG15,Network Maintenance                     ,"5,190.00",09/12/2014,REV,AXIAL SYSTEMS                 
479,Central Services,SupS IT,Business Systems - Deptl Supt,E14377,Supplies & Services           ,Comms and Computing           ,DG15,Network Maintenance                     ,"6,469.08",09/12/2014,REV,AXIAL SYSTEMS                 
480,Cultural Env Reg&Plan Services,Mgt & Support (Env),Senior Mgt. - E.S.C.,G00100,Supplies & Services           ,Grants and Subscriptions      ,DJ04,Subscriptions                           ,"1,500.00",01/12/2014,REV,LEDNET                        
481,Highways & Transport Services,Hwys/Rds (struct) not split,Surf Water Drainage,G00123,Third Party Payments          ,Private Contractors           ,EH56,Carriageway/Fway Maint                  ,670.76,12/12/2014,REV,FM CONWAY LTD                 
482,Highways & Transport Services,Repair prin/oth rds not split,Carriageway Patching,G00125,Third Party Payments          ,Private Contractors           ,EH56,Carriageway/Fway Maint                  ,"1,271.44",19/12/2014,REV,FM CONWAY LTD                 
483,Highways & Transport Services,Repair prin/oth rds not split,Carriageway Patching,G00125,Third Party Payments          ,Private Contractors           ,EH56,Carriageway/Fway Maint                  ,"3,000.86",05/12/2014,REV,FM CONWAY LTD                 
484,Highways & Transport Services,Repair prin/oth rds not split,Carriageway Patching,G00125,Third Party Payments          ,Private Contractors           ,EH56,Carriageway/Fway Maint                  ,836.47,12/12/2014,REV,FM CONWAY LTD                 
485,Highways & Transport Services,Repair prin/oth rds not split,Carriageway Patching,G00125,Third Party Payments          ,Private Contractors           ,EH56,Carriageway/Fway Maint                  ,"3,123.34",19/12/2014,REV,FM CONWAY LTD                 
486,Highways & Transport Services,Repair prin/oth rds not split,Walk Sheets,G00127,Third Party Payments          ,Private Contractors           ,EH56,Carriageway/Fway Maint                  ,"9,254.18",19/12/2014,REV,FM CONWAY LTD                 
487,Highways & Transport Services,Repair prin/oth rds not split,Walk Sheets,G00127,Third Party Payments          ,Private Contractors           ,EH56,Carriageway/Fway Maint                  ,"36,776.46",19/12/2014,REV,FM CONWAY LTD                 
488,Highways & Transport Services,Repair prin/oth rds not split,Walk Sheets,G00127,Third Party Payments          ,Private Contractors           ,EH56,Carriageway/Fway Maint                  ,"7,325.62",19/12/2014,REV,FM CONWAY LTD                 
489,Highways & Transport Services,Repair prin/oth rds not split,Walk Sheets,G00127,Third Party Payments          ,Private Contractors           ,EH56,Carriageway/Fway Maint                  ,"31,180.93",01/12/2014,REV,FM CONWAY LTD                 
490,Highways & Transport Services,Repair prin/oth rds not split,Walk Sheets,G00127,Third Party Payments          ,Private Contractors           ,EH56,Carriageway/Fway Maint                  ,545.1,12/12/2014,REV,FM CONWAY LTD                 
491,Highways & Transport Services,Repair prin/oth rds not split,Walk Sheets,G00127,Third Party Payments          ,Private Contractors           ,EH56,Carriageway/Fway Maint                  ,"5,994.46",19/12/2014,REV,FM CONWAY LTD                 
492,Highways & Transport Services,Repair prin/oth rds not split,Walk Sheets,G00127,Third Party Payments          ,Private Contractors           ,EH56,Carriageway/Fway Maint                  ,"3,332.15",19/12/2014,REV,FM CONWAY LTD                 
493,Highways & Transport Services,Repair prin/oth rds not split,Walk Sheets,G00127,Third Party Payments          ,Private Contractors           ,EH56,Carriageway/Fway Maint                  ,"1,698.56",01/12/2014,REV,FM CONWAY LTD                 
494,Highways & Transport Services,Repair prin/oth rds not split,Walk Sheets,G00127,Third Party Payments          ,Private Contractors           ,EH56,Carriageway/Fway Maint                  ,"4,079.27",01/12/2014,REV,FM CONWAY LTD                 
495,Highways & Transport Services,Saf mtc prin/oth rds not split,Traffic Signs.,G00160,Premises Related Expenditure  ,Energy Costs                  ,BB02,Electricity                             ,"48,529.95",04/12/2014,REV,SCOTTISHPOWER                 
496,Highways & Transport Services,Saf mtc prin/oth rds not split,Traffic Signs.,G00160,Third Party Payments          ,Private Contractors           ,EH01,Miscellaneous Agency Services           ,"1,000.31",19/12/2014,REV,FM CONWAY LTD                 
497,Highways & Transport Services,Saf mtc prin/oth rds not split,Traffic Signs.,G00160,Third Party Payments          ,Private Contractors           ,EH01,Miscellaneous Agency Services           ,"1,293.98",19/12/2014,REV,FM CONWAY LTD                 
498,Highways & Transport Services,,TRAF & HWYS CAPITAL PROJECTS,G00210,Supplies & Services           ,Services                      ,DF05,Surveys (General)                       ,"2,495.00",08/12/2014,REV,TRAFFICWATCH (UK) LTD.        
499,Highways & Transport Services,,TRAF & HWYS CAPITAL PROJECTS,G00210,Supplies & Services           ,Services                      ,DF05,Surveys (General)                       ,"7,870.53",15/12/2014,REV,L. B. OF HAMMERSMITH & FULHAM 
500,Highways & Transport Services,Transport Plg/Policy/Strategy,CPZ implementation & Consultat,G00211,Third Party Payments          ,Private Contractors           ,EH56,Carriageway/Fway Maint                  ,"1,819.71",19/12/2014,REV,FM CONWAY LTD                 
501,Highways & Transport Services,Transport Plg/Policy/Strategy,CPZ implementation & Consultat,G00211,Third Party Payments          ,Private Contractors           ,EH56,Carriageway/Fway Maint                  ,507.9,19/12/2014,REV,FM CONWAY LTD                 
502,Highways & Transport Services,Transport Plg/Policy/Strategy,CPZ implementation & Consultat,G00211,Third Party Payments          ,Private Contractors           ,EH56,Carriageway/Fway Maint                  ,"1,639.49",01/12/2014,REV,FM CONWAY LTD                 
503,Highways & Transport Services,Street Lighting.,Street Lighting .,G00260,Premises Related Expenditure  ,Energy Costs                  ,BB02,Electricity                             ,870.66,04/12/2014,REV,SCOTTISHPOWER                 
504,Highways & Transport Services,Street Lighting.,Street Lighting .,G00260,Third Party Payments          ,Private Contractors           ,EH01,Miscellaneous Agency Services           ,544.74,28/11/2014,REV,MAY GURNEY LTD T/A CARTLEDGE  
505,Highways & Transport Services,Street Lighting.,Street Lighting .,G00260,Third Party Payments          ,Private Contractors           ,EH01,Miscellaneous Agency Services           ,"2,534.66",28/11/2014,REV,MAY GURNEY LTD T/A CARTLEDGE  
506,Highways & Transport Services,Street Lighting.,Street Lighting .,G00260,Third Party Payments          ,Private Contractors           ,EH01,Miscellaneous Agency Services           ,656.4,19/12/2014,REV,MAY GURNEY LTD T/A CARTLEDGE  
507,Highways & Transport Services,Street Lighting.,Street Lighting .,G00260,Third Party Payments          ,Private Contractors           ,EH01,Miscellaneous Agency Services           ,"3,518.90",19/12/2014,REV,MAY GURNEY LTD T/A CARTLEDGE  
508,Highways & Transport Services,Street Lighting.,Street Lighting .,G00260,Third Party Payments          ,Private Contractors           ,EH01,Miscellaneous Agency Services           ,"13,182.00",28/11/2014,REV,MAY GURNEY LTD T/A CARTLEDGE  
509,Highways & Transport Services,Street Lighting.,Street Lighting .,G00260,Third Party Payments          ,Private Contractors           ,EH01,Miscellaneous Agency Services           ,"13,182.00",19/12/2014,REV,MAY GURNEY LTD T/A CARTLEDGE  
510,Highways & Transport Services,Street Lighting.,Street Lighting .,G00260,Third Party Payments          ,Private Contractors           ,EH01,Miscellaneous Agency Services           ,"1,605.00",01/12/2014,REV,UK POWER NETWORKS (OPERATIONS)
511,Highways & Transport Services,Off-street parking,Car Parks (Unloc),G00291,Premises Related Expenditure  ,RepairsAlterations&MtceOfBldgs,BA06,REPAIRS & MAINTENANCE GENERAL           ,"2,067.86",19/12/2014,REV,FM CONWAY LTD                 
512,Highways & Transport Services,Off-street parking,Car Parks (Unloc),G00291,Premises Related Expenditure  ,RepairsAlterations&MtceOfBldgs,BA06,REPAIRS & MAINTENANCE GENERAL           ,910.06,19/12/2014,REV,MAY GURNEY LTD T/A CARTLEDGE  
513,Highways & Transport Services,Off-street parking,Car Parks (Unloc),G00291,Premises Related Expenditure  ,RepairsAlterations&MtceOfBldgs,BA06,REPAIRS & MAINTENANCE GENERAL           ,"1,593.75",20/11/2014,REV,FACTOR 21                     
514,Highways & Transport Services,Off-street parking,Car Parks (Unloc),G00291,Third Party Payments          ,Private Contractors           ,EH02,Miscellaneous Hired Services            ,"3,666.00",30/11/2014,REV,COBALT TELEPHONE TECHNOLOGIES 
515,Highways & Transport Services,Off-street parking,Coombe Lane,G00292,Premises Related Expenditure  ,Energy Costs                  ,BB02,Electricity                             ,556.69,17/12/2014,REV,SCOTTISHPOWER                 
516,Highways & Transport Services,Off-street parking,Coombe Lane,G00292,Premises Related Expenditure  ,Energy Costs                  ,BB02,Electricity                             ,556.69,17/12/2014,REV,SCOTTISHPOWER                 
517,Highways & Transport Services,Off-street parking,Coombe Lane,G00292,Premises Related Expenditure  ,Rents                         ,BC01,Miscellaneous Rents                     ,"9,562.50",19/11/2014,REV,CAPITA PROP'TY & INFRASTRUCT'R
518,Highways & Transport Services,Off-street parking,Kenley Road,G00295,Premises Related Expenditure  ,RepairsAlterations&MtceOfBldgs,BA06,Repairs & Maintenance General           ,881.58,20/11/2014,REV,FACTOR 21                     
519,Highways & Transport Services,Off-street parking,York Close CP,G00298,Premises Related Expenditure  ,Rents                         ,BC01,Miscellaneous Rents                     ,"30,460.50",28/11/2014,REV,TRANSPORT TRADING LTD PROP A/C
520,Highways & Transport Services,Off-street parking,St. Georges Car Park EAST,G00300,Premises Related Expenditure  ,Rents                         ,BC01,Miscellaneous Rents                     ,889.4,04/12/2014,REV,LLOYDS BANK SF NOMINEES LTD   
521,Highways & Transport Services,Off-street parking,St. Georges Car Park WEST M/S,G00302,Premises Related Expenditure  ,Energy Costs                  ,BB02,Electricity                             ,670.86,01/12/2014,REV,SCOTTISHPOWER                 
522,Highways & Transport Services,Off-street parking,St. Georges Car Park WEST M/S,G00302,Premises Related Expenditure  ,Rents                         ,BC01,Miscellaneous Rents                     ,"1,451.14",16/12/2013,REV,SACKVILLE SPF IV (GP) NO 1 LTD
523,Highways & Transport Services,Off-street parking,Peel Hse C P - Upper,G00303,Premises Related Expenditure  ,Rents                         ,BC01,Miscellaneous Rents                     ,"3,000.00",28/11/2014,REV,TRANSPORT TRADING LTD PROP A/C
524,Highways & Transport Services,Off-street parking,"St. Mks Rd, Multi Sty",G00308,Premises Related Expenditure  ,RepairsAlterations&MtceOfBldgs,BA06,Repairs & Maintenance General           ,554.13,24/09/2014,REV,CHUBB FIRE MECHANICAL         
525,Highways & Transport Services,Off-street parking,"St. Mks Rd, Multi Sty",G00308,Premises Related Expenditure  ,RepairsAlterations&MtceOfBldgs,BA06,Repairs & Maintenance General           ,"1,408.00",04/12/2014,REV,FACTOR 21                     
526,Highways & Transport Services,On-street parking,On Street Parking.,G00311,Premises Related Expenditure  ,RepairsAlterations&MtceOfBldgs,BA06,Repairs & Maintenance General           ,"2,250.93",15/12/2014,REV,FM CONWAY LTD                 
527,Highways & Transport Services,On-street parking,On Street Parking.,G00311,Premises Related Expenditure  ,RepairsAlterations&MtceOfBldgs,BA06,Repairs & Maintenance General           ,"2,295.94",19/12/2014,REV,FM CONWAY LTD                 
528,Highways & Transport Services,On-street parking,On Street Parking.,G00311,Premises Related Expenditure  ,Rents                         ,BC01,Miscellaneous Rents                     ,"51,674.00",28/11/2014,REV,TRANSPORT TRADING LTD PROP A/C
529,Highways & Transport Services,Safe routes inc schl x patrol,DFT Child Pedestrian,G00324,Transport Related Expenditure ,Public Transport              ,CD04,Travel-AP-Creditors                     ,570.8,11/12/2014,REV,LONDON COUNCILS               
530,Highways & Transport Services,Safe routes inc schl x patrol,DFT Child Pedestrian,G00324,Supplies & Services           ,Services                      ,DF03,Consultants                             ,"4,580.00",17/12/2014,REV,VELO MONDIAL                  
531,Highways & Transport Services,Safe routes inc schl x patrol,DFT Child Pedestrian,G00324,Supplies & Services           ,Services                      ,DF03,Consultants                             ,"4,893.96",17/12/2014,REV,REDACTED
532,Highways & Transport Services,Safe routes inc schl x patrol,DFT Child Pedestrian,G00324,Supplies & Services           ,Services                      ,DF03,Consultants                             ,"1,200.00",26/11/2014,REV,TRANSPORT INITIATIVES LLP     
533,Highways & Transport Services,Safe routes inc schl x patrol,DFT Child Pedestrian,G00324,Supplies & Services           ,Expenses                      ,DH50,Special Projects                        ,932.41,18/12/2014,REV,ENFIELD COUNCIL               
534,Highways & Transport Services,CYCLIST TRAINER,CYCLIST TRAINER,G00328,Employees                     ,Indirect Employee Expenses    ,AB57,External Training Costs                 ,"5,000.00",03/11/2014,REV,MERTON COMMUNITY TRANSPORT    
535,Highways & Transport Services,Repair prin/oth rds not split,Sewers - LBM,G00340,Third Party Payments          ,Private Contractors           ,EH56,Carriageway/Fway Maint                  ,"11,330.00",12/12/2014,REV,FM CONWAY LTD                 
536,Highways & Transport Services,Repair prin/oth rds not split,Flood Risk Management,G00350,Third Party Payments          ,Private Contractors           ,EH56,Carriageway/Fway Maint                  ,"21,000.00",12/12/2014,REV,FM CONWAY LTD                 
537,Highways & Transport Services,Repair prin/oth rds not split,Flood Risk Management,G00350,Third Party Payments          ,Private Contractors           ,EH56,Carriageway/Fway Maint                  ,"3,670.00",12/12/2014,REV,FM CONWAY LTD                 
538,Highways & Transport Services,Hwys/Rds (struct) not split,NRSWA Permitting (LoPS),G00385,Employees                     ,Indirect Employee Expenses    ,AB57,External Training Costs                 ,"1,090.00",12/12/2014,REV,WILBAR ASSOCIATES             
539,Highways & Transport Services,Hwys/Rds (struct) not split,Footpath Crossings.,G00390,Third Party Payments          ,Private Contractors           ,EH56,Carriageway/Fway Maint                  ,814.06,12/12/2014,REV,FM CONWAY LTD                 
540,Highways & Transport Services,Hwys/Rds (struct) not split,Footpath Crossings.,G00390,Third Party Payments          ,Private Contractors           ,EH56,Carriageway/Fway Maint                  ,"2,024.86",19/12/2014,REV,FM CONWAY LTD                 
541,Highways & Transport Services,Hwys/Rds (struct) not split,Footpath Crossings.,G00390,Third Party Payments          ,Private Contractors           ,EH56,Carriageway/Fway Maint                  ,"2,174.62",19/12/2014,REV,FM CONWAY LTD                 
542,Highways & Transport Services,Hwys/Rds (struct) not split,Footpath Crossings.,G00390,Third Party Payments          ,Private Contractors           ,EH56,Carriageway/Fway Maint                  ,"5,764.95",19/12/2014,REV,FM CONWAY LTD                 
543,Highways & Transport Services,Hwys/Rds (struct) not split,Footpath Crossings.,G00390,Third Party Payments          ,Private Contractors           ,EH56,Carriageway/Fway Maint                  ,"2,917.03",05/12/2014,REV,FM CONWAY LTD                 
544,Highways & Transport Services,Hwys/Rds (struct) not split,Footpath Crossings.,G00390,Third Party Payments          ,Private Contractors           ,EH56,Carriageway/Fway Maint                  ,"4,020.69",15/12/2014,REV,FM CONWAY LTD                 
545,Highways & Transport Services,Hwys/Rds (struct) not split,Footpath Crossings.,G00390,Third Party Payments          ,Private Contractors           ,EH56,Carriageway/Fway Maint                  ,"12,878.48",15/12/2014,REV,FM CONWAY LTD                 
546,Highways & Transport Services,Hwys/Rds (struct) not split,Footpath Crossings.,G00390,Third Party Payments          ,Private Contractors           ,EH56,Carriageway/Fway Maint                  ,894.65,19/12/2014,REV,FM CONWAY LTD                 
547,Highways & Transport Services,Hwys/Rds (struct) not split,Footpath Crossings.,G00390,Third Party Payments          ,Private Contractors           ,EH56,Carriageway/Fway Maint                  ,"2,953.60",19/12/2014,REV,FM CONWAY LTD                 
548,Highways & Transport Services,Hwys/Rds (struct) not split,Footpath Crossings.,G00390,Third Party Payments          ,Private Contractors           ,EH56,Carriageway/Fway Maint                  ,"5,454.10",19/12/2014,REV,FM CONWAY LTD                 
549,Highways & Transport Services,Hwys/Rds (struct) not split,Footpath Crossings.,G00390,Third Party Payments          ,Private Contractors           ,EH56,Carriageway/Fway Maint                  ,763.67,19/12/2014,REV,FM CONWAY LTD                 
550,Highways & Transport Services,Hwys/Rds (struct) not split,Footpath Crossings.,G00390,Third Party Payments          ,Private Contractors           ,EH56,Carriageway/Fway Maint                  ,630.03,15/12/2014,REV,FM CONWAY LTD                 
551,Highways & Transport Services,Hwys/Rds (struct) not split,Footpath Crossings.,G00390,Third Party Payments          ,Private Contractors           ,EH56,Carriageway/Fway Maint                  ,"1,507.05",15/12/2014,REV,FM CONWAY LTD                 
552,Highways & Transport Services,Hwys/Rds (struct) not split,Footpath Crossings.,G00390,Third Party Payments          ,Private Contractors           ,EH56,Carriageway/Fway Maint                  ,"10,873.53",15/12/2014,REV,FM CONWAY LTD                 
553,Highways & Transport Services,Hwys/Rds (struct) not split,Footpath Crossings.,G00390,Third Party Payments          ,Private Contractors           ,EH56,Carriageway/Fway Maint                  ,"1,228.01",12/12/2014,REV,FM CONWAY LTD                 
554,Highways & Transport Services,Hwys/Rds (struct) not split,Footpath Crossings.,G00390,Third Party Payments          ,Private Contractors           ,EH56,Carriageway/Fway Maint                  ,936.85,19/12/2014,REV,FM CONWAY LTD                 
555,Cultural Env Reg&Plan Services,Street Clean - Not highways,Street Cleansing (Inc. Gully),G00492,Premises Related Expenditure  ,Rents                         ,BC01,Miscellaneous Rents                     ,990.34,11/11/2014,REV,MERTON PRIORY HOMES (RENT)    
556,Cultural Env Reg&Plan Services,Street Clean - Not highways,Street Cleansing (Inc. Gully),G00492,Supplies & Services           ,Equip Furniture/Materials     ,DA32,Wheeled Bins                            ,"1,285.00",17/11/2014,REV,UK CONTAINER MAINTENANCE LTD  
557,Cultural Env Reg&Plan Services,Street Clean - Not highways,Street Cleansing (Inc. Gully),G00492,Supplies & Services           ,Equip Furniture/Materials     ,DA32,Wheeled Bins                            ,"1,405.00",23/10/2014,REV,UK CONTAINER MAINTENANCE LTD  
558,Cultural Env Reg&Plan Services,Street Clean - Not highways,Street Cleansing (Inc. Gully),G00492,Supplies & Services           ,Equip Furniture/Materials     ,DA32,Wheeled Bins                            ,"1,115.00",17/11/2014,REV,UK CONTAINER MAINTENANCE LTD  
559,Cultural Env Reg&Plan Services,Street Clean - Not highways,Graffiti,G00495,Supplies & Services           ,Equip Furniture/Materials     ,DA04,Materials                               ,519.57,15/12/2014,REV,GRAFFITIHOTLINE               
560,Adult Social Care,Supported/Sheltered Employment,Shltd Placement Sch.,G00520,Supplies & Services           ,Clothing Unfrms Laundry       ,DC02,Clothing & Uniforms                     ,"3,722.50",08/10/2014,REV,SAFETY MANAGEMENT             
561,Cultural Env Reg&Plan Services,Waste Disposal (not separated),Waste Disposal .,G00550,Third Party Payments          ,Private Contractors           ,EH04,C1 Viridor SLWP Landfill Contract       ,"389,932.80",28/11/2014,REV,KINGSTON CORPORATION          
562,Cultural Env Reg&Plan Services,Waste Disposal (not separated),Waste Disposal .,G00550,Third Party Payments          ,Private Contractors           ,EH63,SLWP C3 EFW Gate Fees                   ,"13,231.44",28/11/2014,REV,KINGSTON CORPORATION          
563,Cultural Env Reg&Plan Services,Waste Disposal (not separated),Waste Disposal .,G00550,Third Party Payments          ,Private Contractors           ,EH66,Clinical Waste Disposal                 ,767.6,30/11/2014,REV,S.GRUNDON (WASTE) LTD.        
564,Cultural Env Reg&Plan Services,Civic Amenity Sites,Garth Road Site,G00580,Third Party Payments          ,Private Contractors           ,EH01,MISCELLANEOUS AGENCY SERVICES           ,"251,362.55",10/12/2014,REV,KINGSTON CORPORATION          
565,Cultural Env Reg&Plan Services,Civic Amenity Sites,Garth Road Site,G00580,Third Party Payments          ,Private Contractors           ,EH65,TRANSPORT FEE - COMPOST                 ,"52,769.42",10/12/2014,REV,KINGSTON CORPORATION          
566,Cultural Env Reg&Plan Services,Public Health,Dog Control.,G00620,Third Party Payments          ,Private Contractors           ,EH02,Miscellaneous Hired Services            ,"2,745.00",13/10/2014,REV,NOAH'S ARK ENVIRONMENTAL SERV.
567,Cultural Env Reg&Plan Services,Public Health,Dog Control.,G00620,Third Party Payments          ,Private Contractors           ,EH02,Miscellaneous Hired Services            ,"3,101.50",16/12/2014,REV,NOAH'S ARK ENVIRONMENTAL SERV.
568,Cultural Env Reg&Plan Services,Recycling (Collection),Recycling Activities,G00640,Supplies & Services           ,Equip Furniture/Materials     ,DA32,Wheeled Bins                            ,"5,824.00",19/11/2014,REV,ESE                           
569,Cultural Env Reg&Plan Services,Recycling (Collection),Recycling Activities,G00640,Supplies & Services           ,Services                      ,DF03,Consultants                             ,"3,900.00",30/09/2014,REV,M.E.L RESEARCH LTD.           
570,Cultural Env Reg&Plan Services,Recycling (Collection),Recycling Activities,G00640,Supplies & Services           ,Services                      ,DF03,Consultants                             ,"6,955.00",31/10/2014,REV,M.E.L RESEARCH LTD.           
571,Cultural Env Reg&Plan Services,Recycling (Collection),Recycling Activities,G00640,Supplies & Services           ,Services                      ,DF03,Consultants                             ,"6,955.00",31/10/2014,REV,M.E.L RESEARCH LTD.           
572,Cultural Env Reg&Plan Services,Recycling (Collection),Recycling Activities,G00640,Third Party Payments          ,Private Contractors           ,EH08,SLWP C1 Haulage Dry Recyclable          ,"32,071.46",28/11/2014,REV,KINGSTON CORPORATION          
573,Cultural Env Reg&Plan Services,Recycling (Collection),Recycling Activities,G00640,Third Party Payments          ,Private Contractors           ,EH61,Green Waste Disposal                    ,"4,204.70",28/11/2014,REV,KINGSTON CORPORATION          
574,Cultural Env Reg&Plan Services,Recycling (Collection),Recycling Activities,G00640,Third Party Payments          ,Private Contractors           ,EH61,Green Waste Disposal                    ,"11,662.18",28/11/2014,REV,KINGSTON CORPORATION          
575,Cultural Env Reg&Plan Services,Recycling (Collection),Recycling Activities,G00640,Third Party Payments          ,Private Contractors           ,EH94,C1 DRY RECYCLING ACCEPTANCE & BULK      ,"6,982.29",28/11/2014,REV,KINGSTON CORPORATION          
576,Cultural Env Reg&Plan Services,Recycling (Collection),Garden Waste Service,G00647,Supplies & Services           ,Equip Furniture/Materials     ,DA32,Wheeled Bins (GARDEN BINS)              ,"4,278.00",02/12/2014,REV,SSI SCHAEFER LTD              
577,Cultural Env Reg&Plan Services,Recycling (Collection),Food Waste Service,G00648,Supplies & Services           ,Clothing Unfrms Laundry       ,DC02,Clothing & Uniforms                     ,"2,000.00",08/12/2014,REV,SAFETY MANAGEMENT             
578,Cultural Env Reg&Plan Services,Recycling (Collection),Food Waste Service,G00648,Third Party Payments          ,Private Contractors           ,EH18,SLWP C3 Food Waste Gate Fees            ,"8,443.18",28/11/2014,REV,KINGSTON CORPORATION          
579,Cultural Env Reg&Plan Services,Recycling (Collection),Food Waste Service,G00648,Third Party Payments          ,Private Contractors           ,EH18,SLWP C3 Food Waste Gate Fees            ,"-18,302.46",28/11/2014,REV,KINGSTON CORPORATION          
580,Cultural Env Reg&Plan Services,Recycling (Collection),Food Waste Service,G00648,Third Party Payments          ,Private Contractors           ,EH19,SLWP C3 FOOD WASTE HAULAGE              ,"5,986.31",28/11/2014,REV,KINGSTON CORPORATION          
581,Cultural Env Reg&Plan Services,Recycling (Collection),WCSS Recycl Encourgmnt&Incentv          ,G00650,Supplies & Services           ,Prntng Stnry Gen Off Exp      ,DE22,Marketing                               ,931.5,08/12/2014,REV,SUSTAINABLE MERTON            
582,Cultural Env Reg&Plan Services,Recycling (Collection),WCSS Recycl Encourgmnt&Incentv          ,G00650,Supplies & Services           ,Expenses                      ,DH14,Prizes and Awards                       ,"3,000.00",02/12/2014,REV,GLEBE COURT MGMT ORGANISATION 
583,Cultural Env Reg&Plan Services,Household Waste Collection,Refuse Collection (Operations),G00661,Supplies & Services           ,Equip Furniture/Materials     ,DA01,Equipment - R & M                       ,"1,431.13",03/12/2014,REV,BELL BRUSH                    
584,Cultural Env Reg&Plan Services,Household Waste Collection,Refuse Collection (Operations),G00661,Supplies & Services           ,Equip Furniture/Materials     ,DA08,Tools-Purchase                          ,597.82,16/12/2014,REV,BELL BRUSH                    
585,Cultural Env Reg&Plan Services,Household Waste Collection,Refuse Collection (Operations),G00661,Supplies & Services           ,Equip Furniture/Materials     ,DA31,Waste Sacks & Bags                      ,728,28/10/2014,REV,IMPERIAL POLYTHENE PRODUCTS LT
586,Cultural Env Reg&Plan Services,Household Waste Collection,Refuse Collection (Operations),G00661,Supplies & Services           ,Clothing Unfrms Laundry       ,DC02,Clothing & Uniforms                     ,"1,606.00",16/12/2014,REV,SAFETY MANAGEMENT             
587,Cultural Env Reg&Plan Services,Trade Waste Collection,Commercial Waste Collection,G00665,Supplies & Services           ,Equip Furniture/Materials     ,DA32,Wheeled Bins                            ,"4,680.00",29/10/2014,REV,UK CONTAINER MAINTENANCE LTD  
588,Cultural Env Reg&Plan Services,Trade Waste Collection,Commercial Waste Collection,G00665,Supplies & Services           ,Clothing Unfrms Laundry       ,DC02,Clothing & Uniforms                     ,"2,691.85",20/11/2014,REV,SAFETY MANAGEMENT             
589,Cultural Env Reg&Plan Services,Street Clean - Not highways,Waste Enforcement,G00680,Supplies & Services           ,Equip Furniture/Materials     ,DA09,Equip-Purchases                         ,"2,170.00",28/11/2014,REV,COMMUNICATION SPECIALISTS     
590,Cultural Env Reg&Plan Services,Street Clean - Not highways,Waste Enforcement,G00680,Third Party Payments          ,Private Contractors           ,EH02,Miscellaneous Hired Services            ,"17,840.40",30/11/2014,REV,PCL SECURITY LTD              
591,Cultural Env Reg&Plan Services,Inspect/Enforce (Consumer P),Trading Standards,G00690,Employees                     ,Direct Employee Expenses      ,AA17,Agency Staff & Casual Paymts            ,600,08/09/2014,REV,REDACTED
592,Cultural Env Reg&Plan Services,Inspect/Enforce (Consumer P),Trading Standards,G00690,Employees                     ,Direct Employee Expenses      ,AA17,Agency Staff & Casual Paymts            ,740,08/09/2014,REV,REDACTED
593,Cultural Env Reg&Plan Services,Inspect/Enforce (Consumer P),Trading Standards,G00690,Employees                     ,Direct Employee Expenses      ,AA17,Agency Staff & Casual Paymts            ,740,08/09/2014,REV,REDACTED
594,Cultural Env Reg&Plan Services,Inspect/Enforce (Consumer P),Trading Standards,G00690,Supplies & Services           ,Services                      ,DF11,Counsel's Fees                          ,"2,820.00",29/10/2014,REV,REDACTED
595,Cultural Env Reg&Plan Services,Housing Standards,Housing/Env,G00730,Supplies & Services           ,Equip Furniture/Materials     ,DA09,Equip-Purchases                         ,906.69,12/12/2014,REV,WECARE4AIR                    
596,Cultural Env Reg&Plan Services,Housing Standards,Contaminated Land Grant,G00734,Supplies & Services           ,Services                      ,DF03,Consultants                             ,800,12/12/2014,REV,STM ENVIRONMENTAL CONSULTANTS 
597,Cultural Env Reg&Plan Services,Mgt & Support (Env),Waste Management,G00900,Supplies & Services           ,Equip Furniture/Materials     ,DA01,Equipment - R & M                       ,740,17/12/2014,REV,SAFE AIR QUALITY LTD          
598,Central Services,Grants - Voluntary Groups,Vestry Hall,G19290,Employees                     ,Direct Employee Expenses      ,AA17,Agency Staff & Casual Paymts            ,652.95,30/11/2014,REV,REDACTED
599,Central Services,Grants - Voluntary Groups,Vestry Hall,G19290,Employees                     ,Direct Employee Expenses      ,AA17,Agency Staff & Casual Paymts            ,"5,148.13",10/12/2014,REV,REDACTED
600,Central Services,Grants - Voluntary Groups,Vestry Hall,G19290,Premises Related Expenditure  ,RepairsAlterations&MtceOfBldgs,BA06,Repairs & Maintenance General           ,"3,590.00",10/11/2014,REV,REDACTED
601,Central Services,Grants - Voluntary Groups,Vestry Hall,G19290,Premises Related Expenditure  ,Energy Costs                  ,BB02,Electricity                             ,717.2,01/12/2014,REV,SCOTTISHPOWER                 
602,Central Services,Grants - Voluntary Groups,Vestry Hall,G19290,Premises Related Expenditure  ,Energy Costs                  ,BB03,Gas (incl. Butane)                      ,646.47,04/12/2014,REV,GAZPROM MARKETING&TRADING LTD 
603,Central Services,Grants - Voluntary Groups,Vestry Hall,G19290,Premises Related Expenditure  ,Water Services                ,BE01,Use of Water (Metered)                  ,561.39,03/12/2014,REV,THAMES WATER UTILITIES LTD    
604,Central Services,Grants - Voluntary Groups,Vestry Hall,G19290,Premises Related Expenditure  ,Cleaning and Domestic Supplies,BH03,Cleaning Services                       ,"1,383.56",01/12/2014,REV,BIRKIN CLEANING SERVICES LTD  
605,CS -Oth Operating Inc & Expend,Extraordinary Items & PY Adj.,326 London Road,G40312,Supplies & Services           ,Services                      ,DF02,Misc Advertising/Publicity              ,"3,780.00",14/11/2014,REV,REED BUSINESS INFORMATION     
606,CS -Oth Operating Inc & Expend,Extraordinary Items & PY Adj.,Edenvale Com Cntr (NE Mitcham),G40316,Premises Related Expenditure  ,RepairsAlterations&MtceOfBldgs,BA03,DDM - Mechanical                        ,531.04,16/10/2014,REV,EUROPA NATIONWIDE TECH.SER.LTD
607,Highways & Transport Services,Transport Plg/Policy/Strategy,Transport Planning,H01070,Supplies & Services           ,Services                      ,DF03,Consultants                             ,"1,100.00",12/12/2014,REV,STEER DAVIES GLEAS            
608,Highways & Transport Services,Transport Plg/Policy/Strategy,Elec Vehic/Scooter Infrastruct TFL      ,H01076,Employees                     ,Indirect Employee Expenses    ,AB57,External Training Costs                 ,"5,000.00",03/11/2014,REV,MERTON COMMUNITY TRANSPORT    
609,Highways & Transport Services,Transport Plg/Policy/Strategy,Strategic Corridor Mitcham TFL          ,H01077,Employees                     ,Direct Employee Expenses      ,AA17,Agency Staff & Casual Paymts            ,"1,250.00",11/12/2014,REV,REDACTED
610,Highways & Transport Services,Safe routes inc schl x patrol,School & Road Safety TFL                ,H01083,Supplies & Services           ,Equip Furniture/Materials     ,DA04,Materials                               ,918,08/12/2014,REV,BLAKES DRIVER TRAINING        
611,Highways & Transport Services,Safe routes inc schl x patrol,School & Road Safety TFL                ,H01083,Supplies & Services           ,Equip Furniture/Materials     ,DA04,Materials                               ,"26,457.59",20/10/2014,REV,POLKA THEATRE FOR CHILDREN    
612,Highways & Transport Services,Safe routes inc schl x patrol,School & Road Safety TFL                ,H01083,Supplies & Services           ,Equip Furniture/Materials     ,DA83,Projects                                ,"1,250.00",19/11/2014,REV,PERFORMANCE IN EDUCATION LLP  
613,Cultural Env Reg&Plan Services,DC Advice Apps & Reg not split,Development Control,H01130,Supplies & Services           ,Services                      ,DF02,Misc Advertising/Publicity              ,678.6,21/11/2014,REV,NEWSQUEST (LONDON)LTD         
614,Cultural Env Reg&Plan Services,DC Advice Apps & Reg not split,Development Control,H01130,Supplies & Services           ,Services                      ,DF03,Consultants                             ,"1,745.29",12/12/2014,REV,VALUATION OFFICE AGENCY       
615,Cultural Env Reg&Plan Services,DC Advice Apps & Reg not split,Development Control,H01130,Supplies & Services           ,Services                      ,DF03,Consultants                             ,"2,029.39",12/12/2014,REV,VALUATION OFFICE AGENCY       
616,Cultural Env Reg&Plan Services,DC Advice Apps & Reg not split,Development Control,H01130,Supplies & Services           ,Services                      ,DF03,Consultants                             ,800,01/08/2014,REV,LITTLE OAK ENVIORNMENTAL MGMNT
617,Cultural Env Reg&Plan Services,DC Advice Apps & Reg not split,Development Control,H01130,Supplies & Services           ,Services                      ,DF03,Consultants                             ,"1,200.00",31/08/2014,REV,AFFORDABLE 106                
618,Cultural Env Reg&Plan Services,DC Advice Apps & Reg not split,Development Control,H01130,Supplies & Services           ,Services                      ,DF03,Consultants                             ,"2,750.00",12/12/2014,REV,VALUATION OFFICE AGENCY       
619,Cultural Env Reg&Plan Services,DC Advice Apps & Reg not split,Development Control,H01130,Supplies & Services           ,Comms and Computing           ,DG09,Computer Purchases - Misc               ,750,16/12/2014,REV,NORTHGATE INFORMATION SOLUTION
620,Cultural Env Reg&Plan Services,DC Advice Apps & Reg not split,Development Control,H01130,Supplies & Services           ,Grants and Subscriptions      ,DJ04,Subscriptions                           ,"1,423.00",02/12/2014,REV,THOMSON REUTERS               
621,Cultural Env Reg&Plan Services,DC Advice Apps & Reg not split,Development Control,H01130,Oth Grants Reimbmnts/Contribs ,Cost recharges to other bodies,QC10,Recovery of misc expenses (X)           ,500,19/12/2014,REV,AXIOMSTONE                    
622,Cultural Env Reg&Plan Services,Planning Policy not split,Spatial Policy,H01173,Third Party Payments          ,Private Contractors           ,EH10,Contract Payments                       ,"4,500.00",13/11/2014,REV,BBP REGENERATION              
623,Cultural Env Reg&Plan Services,Planning Policy not split,HPDG - Physical Regeneration,H01178,Supplies & Services           ,Services                      ,DF03,Consultants                             ,"3,595.00",03/12/2014,REV,WHITE LABEL CONSULTANTS       
624,Cultural Env Reg&Plan Services,Planning Policy not split,HPDG - Physical Regeneration,H01178,Supplies & Services           ,Services                      ,DF03,Consultants                             ,"12,910.00",05/12/2014,REV,DESIGN COUNCIL                
625,Cultural Env Reg&Plan Services,Planning Policy not split,HPDG - Physical Regeneration,H01178,Supplies & Services           ,Services                      ,DF03,Consultants                             ,"1,204.88",17/12/2014,REV,COLLIERS INTERNATIONAL        
626,Cultural Env Reg&Plan Services,Planning Policy not split,HPDG - Physical Regeneration,H01178,Supplies & Services           ,Services                      ,DF03,Consultants                             ,"2,450.00",31/10/2014,REV,THE FIFTH SECTOR LTD          
627,Cultural Env Reg&Plan Services,Planning Policy not split,HPDG - Spatial Policy,H01183,Supplies & Services           ,Services                      ,DF03,Consultants                             ,"1,500.00",18/12/2014,REV,SWBA                          
628,Cultural Env Reg&Plan Services,Economic Dev (Not separated),REG &  PARTNERSHIPS STAFFING,H01200,Third Party Payments          ,Private Contractors           ,EH10,Contract Payments                       ,"4,950.00",16/12/2014,REV,BURNS OWENS PARTNERSHIP       
629,CS -Oth Operating Inc & Expend,Extraordinary Items & PY Adj.,MILES RD GENERATOR,H01203,Premises Related Expenditure  ,Rents                         ,BC01,Miscellaneous Rents                     ,"8,000.00",20/11/2014,REV,W&R BUXTON LTD PENSION FUND   
630,CS -Oth Operating Inc & Expend,Extraordinary Items & PY Adj.,MILES RD GENERATOR,H01203,Premises Related Expenditure  ,Rents                         ,BC01,Miscellaneous Rents                     ,"5,065.66",03/12/2014,REV,W & R BUXTON LTD PENSION FUND 
631,Cultural Env Reg&Plan Services,Economic Dev (Not separated),(LABGI)-BUSINESS SUPPORT,H01210,Supplies & Services           ,Grants and Subscriptions      ,DJ01,Grants                                  ,"28,180.00",18/12/2014,REV,DEEN CITY FARM                
632,Cultural Env Reg&Plan Services,Economic Dev (Not separated),(LABGI)-BUSINESS SUPPORT,H01210,Third Party Payments          ,Private Contractors           ,EH10,Contract Payments                       ,700,30/11/2014,REV,STUDIO WEAVE LTD              
633,Cultural Env Reg&Plan Services,Economic Dev (Not separated),LABGI-BUSINESS SUPPORT SERVICE,H01219,Third Party Payments          ,Private Contractors           ,EH02,Miscellaneous Hired Services            ,"9,000.00",16/12/2014,REV,MERTON CHAMBER OF COMMERCE    
634,Cultural Env Reg&Plan Services,Economic Dev (Not separated),LABGI-BUSINESS SUPPORT SERVICE,H01219,Third Party Payments          ,Private Contractors           ,EH10,Contract Payments                       ,"4,975.00",25/11/2014,REV,SHARED INTELLIGENCE LTD       
635,Cultural Env Reg&Plan Services,Economic Dev (Not separated),GO GREEN PLUS (S106),H01225,Supplies & Services           ,Grants and Subscriptions      ,DJ54,Contributions                           ,"2,085.04",27/11/2014,REV,MERTON CHAMBER OF COMMERCE    
636,Cultural Env Reg&Plan Services,Economic Dev (Not separated),GO GREEN PLUS (S106),H01225,Supplies & Services           ,Grants and Subscriptions      ,DJ54,Contributions                           ,"2,207.59",27/11/2014,REV,MERTON CHAMBER OF COMMERCE    
637,Cultural Env Reg&Plan Services,Economic Dev (Not separated),Mitcham Means Business,H01230,Supplies & Services           ,Services                      ,DF03,Consultants                             ,"1,500.00",30/09/2014,REV,STUDIO WEAVE LTD              
638,Cultural Env Reg&Plan Services,Economic Dev (Not separated),Mitcham Means Business,H01230,Supplies & Services           ,Services                      ,DF03,Consultants                             ,"1,050.00",31/10/2014,REV,STUDIO WEAVE LTD              
639,Cultural Env Reg&Plan Services,Economic Dev (Not separated),Capt Ambition-Suburban Opprt Z,H01231,Supplies & Services           ,Services                      ,DF03,Consultants                             ,"4,800.00",11/12/2014,REV,ADROIT ECONOMICS              
640,Cultural Env Reg&Plan Services,Economic Dev (Not separated),Capt Ambition-Suburban Opprt Z,H01231,Supplies & Services           ,Services                      ,DF03,Consultants                             ,"4,850.00",11/12/2014,REV,ADROIT ECONOMICS              
641,CS -Oth Operating Inc & Expend,T/A Vehicle Maintenance etc,Transport-Contract Hire,J01374,Transport Related Expenditure ,Direct Transport Costs        ,CA01,Petrol Derv & Oil                       ,"34,358.40",11/12/2014,REV,HARVEST ENERGY LIMITED        
642,CS -Oth Operating Inc & Expend,T/A Vehicle Maintenance etc,Transport-Contract Hire,J01374,Transport Related Expenditure ,Direct Transport Costs        ,CA01,Petrol Derv & Oil                       ,"35,385.44",25/11/2014,REV,HARVEST ENERGY LIMITED        
643,CS -Oth Operating Inc & Expend,T/A Vehicle Maintenance etc,Transport-Contract Hire,J01374,Transport Related Expenditure ,Direct Transport Costs        ,CA01,Petrol Derv & Oil                       ,600,20/11/2014,REV,EUROCAR PARTS                 
644,CS -Oth Operating Inc & Expend,T/A Vehicle Maintenance etc,Transport-Contract Hire,J01374,Transport Related Expenditure ,Direct Transport Costs        ,CA01,Petrol Derv & Oil                       ,815.98,09/12/2014,REV,B P OIL UK LIMITED            
645,CS -Oth Operating Inc & Expend,T/A Vehicle Maintenance etc,Transport-Contract Hire,J01374,Transport Related Expenditure ,Direct Transport Costs        ,CA52,Reps Vehicles Ins Claims                ,500,30/10/2014,REV,FLEETSPEED COACHWORKS LTD.    
646,CS -Oth Operating Inc & Expend,T/A Vehicle Maintenance etc,Transport-Contract Hire,J01374,Transport Related Expenditure ,Contract Hire and Op Leasing  ,CC53,Plant Hire for MRCS                     ,925,19/12/2014,REV,DRM MUNICIPAL SERVICES LIMITED
647,CS -Oth Operating Inc & Expend,T/A Vehicle Maintenance etc,Transport-Contract Hire,J01374,Transport Related Expenditure ,Contract Hire and Op Leasing  ,CC53,Plant Hire for MRCS                     ,610,02/12/2014,REV,PFB HIRE LTD                  
648,CS -Oth Operating Inc & Expend,T/A Vehicle Maintenance etc,Transport-Contract Hire,J01374,Transport Related Expenditure ,Contract Hire and Op Leasing  ,CC53,Plant Hire for MRCS                     ,660,30/11/2014,REV,REDACTED
649,CS -Oth Operating Inc & Expend,T/A Vehicle Maintenance etc,Transport-Contract Hire,J01374,Transport Related Expenditure ,Contract Hire and Op Leasing  ,CC53,Plant Hire for MRCS                     ,660,30/11/2014,REV,REDACTED
650,CS -Oth Operating Inc & Expend,T/A Vehicle Maintenance etc,Transport-Contract Hire,J01374,Transport Related Expenditure ,Contract Hire and Op Leasing  ,CC53,Plant Hire for MRCS                     ,550,11/12/2014,REV,PFB HIRE LTD                  
651,CS -Oth Operating Inc & Expend,T/A Vehicle Maintenance etc,Transport-Contract Hire,J01374,Transport Related Expenditure ,Contract Hire and Op Leasing  ,CC53,Plant Hire for MRCS                     ,925,12/12/2014,REV,DRM MUNICIPAL SERVICES LIMITED
652,CS -Oth Operating Inc & Expend,T/A Vehicle Maintenance etc,Transport-Contract Hire,J01374,Transport Related Expenditure ,Contract Hire and Op Leasing  ,CC53,Plant Hire for MRCS                     ,"1,100.00",30/11/2014,REV,B&T PLANT HIRE LTD            
653,CS -Oth Operating Inc & Expend,T/A Vehicle Maintenance etc,Transport-Contract Hire,J01374,Transport Related Expenditure ,Contract Hire and Op Leasing  ,CC53,Plant Hire for MRCS                     ,610,09/12/2014,REV,PFB HIRE LTD                  
654,CS -Oth Operating Inc & Expend,T/A Vehicle Maintenance etc,Transport-Contract Hire,J01374,Transport Related Expenditure ,Contract Hire and Op Leasing  ,CC53,Plant Hire for MRCS                     ,925,28/11/2014,REV,DRM MUNICIPAL SERVICES LIMITED
655,CS -Oth Operating Inc & Expend,T/A Vehicle Maintenance etc,Transport-Contract Hire,J01374,Transport Related Expenditure ,Contract Hire and Op Leasing  ,CC53,Plant Hire for MRCS                     ,780,04/12/2014,REV,PFB HIRE LTD                  
656,CS -Oth Operating Inc & Expend,T/A Vehicle Maintenance etc,Transport-Contract Hire,J01374,Transport Related Expenditure ,Contract Hire and Op Leasing  ,CC53,Plant Hire for MRCS                     ,925,05/12/2014,REV,DRM MUNICIPAL SERVICES LIMITED
657,CS -Oth Operating Inc & Expend,T/A Vehicle Maintenance etc,Transport-Contract Hire,J01374,Transport Related Expenditure ,Contract Hire and Op Leasing  ,CC56,Plant Hire for Leisure                  ,"1,755.00",30/11/2014,REV,REDACTED
658,CS -Oth Operating Inc & Expend,T/A Vehicle Maintenance etc,Transport-Contract Hire,J01374,Transport Related Expenditure ,Contract Hire and Op Leasing  ,CC57,Pland Hire for Housing                  ,940,30/11/2014,REV,REDACTED
659,CS -Oth Operating Inc & Expend,T/A Vehicle Maintenance etc,Transport-Contract Hire,J01374,Transport Related Expenditure ,Contract Hire and Op Leasing  ,CC59,HIRING TRANSPORT OPERATIONS             ,"1,320.00",28/11/2014,REV,BURNT TREE VEHICLE RENTAL     
660,CS -Oth Operating Inc & Expend,T/A Vehicle Maintenance etc,Transport-Contract Hire,J01374,Transport Related Expenditure ,Contract Hire and Op Leasing  ,CC59,HIRING TRANSPORT OPERATIONS             ,"1,320.00",28/11/2014,REV,BURNT TREE VEHICLE RENTAL     
661,CS -Oth Operating Inc & Expend,T/A Vehicle Maintenance etc,Transport-Contract Hire,J01374,Transport Related Expenditure ,Contract Hire and Op Leasing  ,CC59,HIRING TRANSPORT OPERATIONS             ,"2,238.32",30/11/2014,REV,REDACTED
662,CS -Oth Operating Inc & Expend,T/A Vehicle Maintenance etc,Transport-Contract Hire,J01374,Transport Related Expenditure ,Contract Hire and Op Leasing  ,CC59,HIRING TRANSPORT OPERATIONS             ,"1,320.00",28/11/2014,REV,BURNT TREE VEHICLE RENTAL     
663,CS -Oth Operating Inc & Expend,T/A Vehicle Maintenance etc,Transport-Contract Hire,J01374,Transport Related Expenditure ,Contract Hire and Op Leasing  ,CC64,HIRING TRANSPORT SEN CABS               ,"1,196.70",31/12/2014,REV,KINGSTON ACCESSIBILITY TRAN LT
664,CS -Oth Operating Inc & Expend,T/A Vehicle Maintenance etc,Transport-Contract Hire,J01374,Transport Related Expenditure ,Contract Hire and Op Leasing  ,CC64,HIRING TRANSPORT SEN CABS               ,"1,920.00",30/11/2014,REV,CAPITAL CARS                  
665,CS -Oth Operating Inc & Expend,T/A Vehicle Maintenance etc,Transport-Contract Hire,J01374,Transport Related Expenditure ,Contract Hire and Op Leasing  ,CC64,HIRING TRANSPORT SEN CABS               ,"2,837.70",31/12/2014,REV,KINGSTON ACCESSIBILITY TRAN LT
666,CS -Oth Operating Inc & Expend,T/A Vehicle Maintenance etc,Transport-Contract Hire,J01374,Transport Related Expenditure ,Contract Hire and Op Leasing  ,CC64,HIRING TRANSPORT SEN CABS               ,"1,880.00",30/11/2014,REV,CAPITAL CARS                  
667,CS -Oth Operating Inc & Expend,T/A Vehicle Maintenance etc,Transport-Contract Hire,J01374,Transport Related Expenditure ,Contract Hire and Op Leasing  ,CC64,HIRING TRANSPORT SEN CABS               ,"3,700.00",30/11/2014,REV,THE IMPACT GROUP PLC          
668,CS -Oth Operating Inc & Expend,T/A Vehicle Maintenance etc,Transport-Contract Hire,J01374,Transport Related Expenditure ,Contract Hire and Op Leasing  ,CC64,HIRING TRANSPORT SEN CABS               ,"1,296.00",30/11/2014,REV,KINGSTON ACCESSIBILITY TRAN LT
669,CS -Oth Operating Inc & Expend,T/A Vehicle Maintenance etc,Transport-Contract Hire,J01374,Transport Related Expenditure ,Contract Hire and Op Leasing  ,CC64,HIRING TRANSPORT SEN CABS               ,"1,800.00",30/11/2014,REV,SHERWOOD TRANSPORT GROUP      
670,CS -Oth Operating Inc & Expend,T/A Vehicle Maintenance etc,Transport-Contract Hire,J01374,Transport Related Expenditure ,Contract Hire and Op Leasing  ,CC64,HIRING TRANSPORT SEN CABS               ,"3,239.60",30/11/2014,REV,KINGSTON ACCESSIBILITY TRAN LT
671,CS -Oth Operating Inc & Expend,T/A Vehicle Maintenance etc,Transport-Contract Hire,J01374,Transport Related Expenditure ,Contract Hire and Op Leasing  ,CC64,HIRING TRANSPORT SEN CABS               ,780,30/11/2014,REV,CAPITAL CARS                  
672,CS -Oth Operating Inc & Expend,T/A Vehicle Maintenance etc,Transport-Contract Hire,J01374,Transport Related Expenditure ,Contract Hire and Op Leasing  ,CC64,HIRING TRANSPORT SEN CABS               ,"3,120.00",28/11/2014,REV,BRUNSWICK CARS LTD            
673,CS -Oth Operating Inc & Expend,T/A Vehicle Maintenance etc,Transport-Contract Hire,J01374,Transport Related Expenditure ,Contract Hire and Op Leasing  ,CC64,HIRING TRANSPORT SEN CABS               ,"2,248.50",31/12/2014,REV,KINGSTON ACCESSIBILITY TRAN LT
674,CS -Oth Operating Inc & Expend,T/A Vehicle Maintenance etc,Transport-Contract Hire,J01374,Transport Related Expenditure ,Contract Hire and Op Leasing  ,CC64,HIRING TRANSPORT SEN CABS               ,"1,960.00",30/11/2014,REV,NVCAR HIRE LTD                
675,CS -Oth Operating Inc & Expend,T/A Vehicle Maintenance etc,Transport-Contract Hire,J01374,Transport Related Expenditure ,Contract Hire and Op Leasing  ,CC64,HIRING TRANSPORT SEN CABS               ,"1,960.00",30/11/2014,REV,SHERWOOD TRANSPORT GROUP      
676,CS -Oth Operating Inc & Expend,T/A Vehicle Maintenance etc,Transport-Contract Hire,J01374,Transport Related Expenditure ,Contract Hire and Op Leasing  ,CC64,HIRING TRANSPORT SEN CABS               ,"1,980.00",30/11/2014,REV,SHERWOOD TRANSPORT GROUP      
677,CS -Oth Operating Inc & Expend,T/A Vehicle Maintenance etc,Transport-Contract Hire,J01374,Transport Related Expenditure ,Contract Hire and Op Leasing  ,CC64,HIRING TRANSPORT SEN CABS               ,"1,560.00",30/11/2014,REV,CAPITAL CARS                  
678,CS -Oth Operating Inc & Expend,T/A Vehicle Maintenance etc,Transport-Contract Hire,J01374,Transport Related Expenditure ,Contract Hire and Op Leasing  ,CC64,HIRING TRANSPORT SEN CABS               ,"2,800.00",30/11/2014,REV,NVCAR HIRE LTD                
679,CS -Oth Operating Inc & Expend,T/A Vehicle Maintenance etc,Transport-Contract Hire,J01374,Transport Related Expenditure ,Contract Hire and Op Leasing  ,CC64,HIRING TRANSPORT SEN CABS               ,"3,000.00",30/11/2014,REV,BARCLAYS ASSET & SALES FINANCE
680,CS -Oth Operating Inc & Expend,T/A Vehicle Maintenance etc,Transport-Contract Hire,J01374,Transport Related Expenditure ,Contract Hire and Op Leasing  ,CC64,HIRING TRANSPORT SEN CABS               ,"1,792.50",31/12/2014,REV,KINGSTON ACCESSIBILITY TRAN LT
681,CS -Oth Operating Inc & Expend,T/A Vehicle Maintenance etc,Transport-Contract Hire,J01374,Transport Related Expenditure ,Contract Hire and Op Leasing  ,CC64,HIRING TRANSPORT SEN CABS               ,"1,992.00",30/11/2014,REV,NVCAR HIRE LTD                
682,CS -Oth Operating Inc & Expend,T/A Vehicle Maintenance etc,Transport-Contract Hire,J01374,Transport Related Expenditure ,Contract Hire and Op Leasing  ,CC64,HIRING TRANSPORT SEN CABS               ,"1,560.00",28/11/2014,REV,SILVERBURN FINANCE (UK) LTD   
683,CS -Oth Operating Inc & Expend,T/A Vehicle Maintenance etc,Transport-Contract Hire,J01374,Transport Related Expenditure ,Contract Hire and Op Leasing  ,CC64,HIRING TRANSPORT SEN CABS               ,"1,800.00",30/11/2014,REV,CHEAM STATION CARS            
684,CS -Oth Operating Inc & Expend,T/A Vehicle Maintenance etc,Transport-Contract Hire,J01374,Transport Related Expenditure ,Contract Hire and Op Leasing  ,CC64,HIRING TRANSPORT SEN CABS               ,"1,595.60",30/11/2014,REV,KINGSTON ACCESSIBILITY TRAN LT
685,CS -Oth Operating Inc & Expend,T/A Vehicle Maintenance etc,Transport-Contract Hire,J01374,Transport Related Expenditure ,Contract Hire and Op Leasing  ,CC64,HIRING TRANSPORT SEN CABS               ,"2,080.00",30/11/2014,REV,A STAR TRANSPORT LIMITED      
686,CS -Oth Operating Inc & Expend,T/A Vehicle Maintenance etc,Transport-Contract Hire,J01374,Transport Related Expenditure ,Contract Hire and Op Leasing  ,CC64,HIRING TRANSPORT SEN CABS               ,"3,000.00",28/11/2014,REV,WALLINGTON CARS & COURIERS LTD
687,CS -Oth Operating Inc & Expend,T/A Vehicle Maintenance etc,Transport-Contract Hire,J01374,Transport Related Expenditure ,Contract Hire and Op Leasing  ,CC64,HIRING TRANSPORT SEN CABS               ,"1,520.00",30/11/2014,REV,CAPITAL CARS                  
688,CS -Oth Operating Inc & Expend,T/A Vehicle Maintenance etc,Transport-Contract Hire,J01374,Transport Related Expenditure ,Contract Hire and Op Leasing  ,CC64,HIRING TRANSPORT SEN CABS               ,"1,920.00",30/11/2014,REV,BARCLAYS ASSET & SALES FINANCE
689,CS -Oth Operating Inc & Expend,T/A Vehicle Maintenance etc,Transport-Contract Hire,J01374,Transport Related Expenditure ,Contract Hire and Op Leasing  ,CC64,HIRING TRANSPORT SEN CABS               ,"1,760.00",28/11/2014,REV,SILVERBURN FINANCE (UK) LTD   
690,CS -Oth Operating Inc & Expend,T/A Vehicle Maintenance etc,Transport-Contract Hire,J01374,Transport Related Expenditure ,Contract Hire and Op Leasing  ,CC64,HIRING TRANSPORT SEN CABS               ,570,30/11/2014,REV,SHERWOOD TRANSPORT GROUP      
691,CS -Oth Operating Inc & Expend,T/A Vehicle Maintenance etc,Transport-Contract Hire,J01374,Transport Related Expenditure ,Contract Hire and Op Leasing  ,CC64,HIRING TRANSPORT SEN CABS               ,"1,350.00",30/11/2014,REV,NVCAR HIRE LTD                
692,CS -Oth Operating Inc & Expend,T/A Vehicle Maintenance etc,Transport-Contract Hire,J01374,Transport Related Expenditure ,Contract Hire and Op Leasing  ,CC64,HIRING TRANSPORT SEN CABS               ,880,01/12/2014,REV,AERIAL CAR SERVICES LTD       
693,CS -Oth Operating Inc & Expend,T/A Vehicle Maintenance etc,Transport-Contract Hire,J01374,Transport Related Expenditure ,Contract Hire and Op Leasing  ,CC64,HIRING TRANSPORT SEN CABS               ,"2,808.00",30/11/2014,REV,CAPITAL CARS                  
694,CS -Oth Operating Inc & Expend,T/A Vehicle Maintenance etc,Transport-Contract Hire,J01374,Transport Related Expenditure ,Contract Hire and Op Leasing  ,CC64,HIRING TRANSPORT SEN CABS               ,"2,600.00",30/11/2014,REV,CAPITAL CARS                  
695,CS -Oth Operating Inc & Expend,T/A Vehicle Maintenance etc,Transport-Contract Hire,J01374,Transport Related Expenditure ,Contract Hire and Op Leasing  ,CC64,HIRING TRANSPORT SEN CABS               ,"1,399.72",31/12/2014,REV,KINGSTON ACCESSIBILITY TRAN LT
696,CS -Oth Operating Inc & Expend,T/A Vehicle Maintenance etc,Transport-Contract Hire,J01374,Transport Related Expenditure ,Contract Hire and Op Leasing  ,CC64,HIRING TRANSPORT SEN CABS               ,"1,699.20",31/10/2014,REV,SHERWOOD TRANSPORT GROUP      
697,CS -Oth Operating Inc & Expend,T/A Vehicle Maintenance etc,Transport-Contract Hire,J01374,Transport Related Expenditure ,Contract Hire and Op Leasing  ,CC64,HIRING TRANSPORT SEN CABS               ,"1,216.00",28/11/2014,REV,SILVERBURN FINANCE (UK) LTD   
698,CS -Oth Operating Inc & Expend,T/A Vehicle Maintenance etc,Transport-Contract Hire,J01374,Transport Related Expenditure ,Contract Hire and Op Leasing  ,CC64,HIRING TRANSPORT SEN CABS               ,720,28/11/2014,REV,SILVERBURN FINANCE (UK) LTD   
699,CS -Oth Operating Inc & Expend,T/A Vehicle Maintenance etc,Transport-Contract Hire,J01374,Transport Related Expenditure ,Contract Hire and Op Leasing  ,CC64,HIRING TRANSPORT SEN CABS               ,"1,596.00",30/11/2014,REV,CAPITAL CARS                  
700,CS -Oth Operating Inc & Expend,T/A Vehicle Maintenance etc,Transport-Contract Hire,J01374,Transport Related Expenditure ,Contract Hire and Op Leasing  ,CC64,HIRING TRANSPORT SEN CABS               ,"1,980.48",31/12/2014,REV,KINGSTON ACCESSIBILITY TRAN LT
701,CS -Oth Operating Inc & Expend,T/A Vehicle Maintenance etc,Transport-Contract Hire,J01374,Transport Related Expenditure ,Contract Hire and Op Leasing  ,CC64,HIRING TRANSPORT SEN CABS               ,"1,350.00",30/11/2014,REV,NVCAR HIRE LTD                
702,CS -Oth Operating Inc & Expend,T/A Vehicle Maintenance etc,Transport-Contract Hire,J01374,Transport Related Expenditure ,Contract Hire and Op Leasing  ,CC64,HIRING TRANSPORT SEN CABS               ,-925,30/11/2014,REV,KENDALL CARS                  
703,CS -Oth Operating Inc & Expend,T/A Vehicle Maintenance etc,Transport-Contract Hire,J01374,Transport Related Expenditure ,Contract Hire and Op Leasing  ,CC64,HIRING TRANSPORT SEN CABS               ,"2,117.70",31/12/2014,REV,KINGSTON ACCESSIBILITY TRAN LT
704,CS -Oth Operating Inc & Expend,T/A Vehicle Maintenance etc,Transport-Contract Hire,J01374,Transport Related Expenditure ,Contract Hire and Op Leasing  ,CC64,HIRING TRANSPORT SEN CABS               ,"1,120.00",30/11/2014,REV,NVCAR HIRE LTD                
705,CS -Oth Operating Inc & Expend,T/A Vehicle Maintenance etc,Transport-Contract Hire,J01374,Transport Related Expenditure ,Contract Hire and Op Leasing  ,CC64,HIRING TRANSPORT SEN CABS               ,"2,237.70",31/12/2014,REV,KINGSTON ACCESSIBILITY TRAN LT
706,CS -Oth Operating Inc & Expend,T/A Vehicle Maintenance etc,Transport-Contract Hire,J01374,Transport Related Expenditure ,Contract Hire and Op Leasing  ,CC64,HIRING TRANSPORT SEN CABS               ,"1,464.12",31/12/2014,REV,KINGSTON ACCESSIBILITY TRAN LT
707,CS -Oth Operating Inc & Expend,T/A Vehicle Maintenance etc,Transport-Contract Hire,J01374,Transport Related Expenditure ,Contract Hire and Op Leasing  ,CC64,HIRING TRANSPORT SEN CABS               ,"2,560.00",30/11/2014,REV,A STAR TRANSPORT LIMITED      
708,CS -Oth Operating Inc & Expend,T/A Vehicle Maintenance etc,Transport-Contract Hire,J01374,Transport Related Expenditure ,Contract Hire and Op Leasing  ,CC64,HIRING TRANSPORT SEN CABS               ,596,30/11/2014,REV,NVCAR HIRE LTD                
709,CS -Oth Operating Inc & Expend,T/A Vehicle Maintenance etc,Transport-Contract Hire,J01374,Transport Related Expenditure ,Contract Hire and Op Leasing  ,CC64,HIRING TRANSPORT SEN CABS               ,"1,580.00",30/11/2014,REV,SHERWOOD TRANSPORT GROUP      
710,CS -Oth Operating Inc & Expend,T/A Vehicle Maintenance etc,Transport-Contract Hire,J01374,Transport Related Expenditure ,Contract Hire and Op Leasing  ,CC64,HIRING TRANSPORT SEN CABS               ,"3,000.00",30/11/2014,REV,BARCLAYS ASSET & SALES FINANCE
711,CS -Oth Operating Inc & Expend,T/A Vehicle Maintenance etc,Transport-Contract Hire,J01374,Transport Related Expenditure ,Contract Hire and Op Leasing  ,CC64,HIRING TRANSPORT SEN CABS               ,"1,400.00",30/11/2014,REV,CAPITAL CARS                  
712,CS -Oth Operating Inc & Expend,T/A Vehicle Maintenance etc,Transport-Contract Hire,J01374,Transport Related Expenditure ,Contract Hire and Op Leasing  ,CC64,HIRING TRANSPORT SEN CABS               ,"1,582.00",28/11/2014,REV,SILVERBURN FINANCE (UK) LTD   
713,CS -Oth Operating Inc & Expend,T/A Vehicle Maintenance etc,Transport-Contract Hire,J01374,Transport Related Expenditure ,Contract Hire and Op Leasing  ,CC64,HIRING TRANSPORT SEN CABS               ,"1,620.00",30/11/2014,REV,NVCAR HIRE LTD                
714,CS -Oth Operating Inc & Expend,T/A Vehicle Maintenance etc,Transport-Contract Hire,J01374,Transport Related Expenditure ,Contract Hire and Op Leasing  ,CC64,HIRING TRANSPORT SEN CABS               ,"3,040.00",30/11/2014,REV,BARCLAYS ASSET & SALES FINANCE
715,CS -Oth Operating Inc & Expend,T/A Vehicle Maintenance etc,Transport-Contract Hire,J01374,Transport Related Expenditure ,Contract Hire and Op Leasing  ,CC64,HIRING TRANSPORT SEN CABS               ,"2,280.00",30/11/2014,REV,CAPITAL CARS                  
716,CS -Oth Operating Inc & Expend,T/A Vehicle Maintenance etc,Transport-Contract Hire,J01374,Transport Related Expenditure ,Contract Hire and Op Leasing  ,CC64,HIRING TRANSPORT SEN CABS               ,"1,040.00",30/11/2014,REV,NVCAR HIRE LTD                
717,CS -Oth Operating Inc & Expend,T/A Vehicle Maintenance etc,Transport-Contract Hire,J01374,Transport Related Expenditure ,Contract Hire and Op Leasing  ,CC64,HIRING TRANSPORT SEN CABS               ,"1,770.00",31/12/2014,REV,KINGSTON ACCESSIBILITY TRAN LT
718,CS -Oth Operating Inc & Expend,T/A Vehicle Maintenance etc,Transport-Contract Hire,J01374,Transport Related Expenditure ,Contract Hire and Op Leasing  ,CC64,HIRING TRANSPORT SEN CABS               ,"2,687.70",31/12/2014,REV,KINGSTON ACCESSIBILITY TRAN LT
719,CS -Oth Operating Inc & Expend,T/A Vehicle Maintenance etc,Transport-Contract Hire,J01374,Transport Related Expenditure ,Contract Hire and Op Leasing  ,CC64,HIRING TRANSPORT SEN CABS               ,"2,600.00",30/11/2014,REV,CAPITAL CARS                  
720,CS -Oth Operating Inc & Expend,T/A Vehicle Maintenance etc,Transport-Contract Hire,J01374,Transport Related Expenditure ,Contract Hire and Op Leasing  ,CC64,HIRING TRANSPORT SEN CABS               ,"1,080.00",05/12/2014,REV,PREMIER CARS                  
721,CS -Oth Operating Inc & Expend,T/A Vehicle Maintenance etc,Transport-Contract Hire,J01374,Transport Related Expenditure ,Contract Hire and Op Leasing  ,CC64,HIRING TRANSPORT SEN CABS               ,"3,180.00",30/11/2014,REV,SHERWOOD TRANSPORT GROUP      
722,CS -Oth Operating Inc & Expend,T/A Vehicle Maintenance etc,Transport-Contract Hire,J01374,Transport Related Expenditure ,Contract Hire and Op Leasing  ,CC64,HIRING TRANSPORT SEN CABS               ,522.5,30/11/2014,REV,SHERWOOD TRANSPORT GROUP      
723,CS -Oth Operating Inc & Expend,T/A Vehicle Maintenance etc,Transport-Contract Hire,J01374,Transport Related Expenditure ,Contract Hire and Op Leasing  ,CC64,HIRING TRANSPORT SEN CABS               ,"2,080.00",30/11/2014,REV,BARCLAYS ASSET & SALES FINANCE
724,CS -Oth Operating Inc & Expend,T/A Vehicle Maintenance etc,Transport-Contract Hire,J01374,Transport Related Expenditure ,Contract Hire and Op Leasing  ,CC64,HIRING TRANSPORT SEN CABS               ,912,30/11/2014,REV,GALPINS SERVICE               
725,CS -Oth Operating Inc & Expend,T/A Vehicle Maintenance etc,Transport-Contract Hire,J01374,Transport Related Expenditure ,Contract Hire and Op Leasing  ,CC64,HIRING TRANSPORT SEN CABS               ,800,30/11/2014,REV,NVCAR HIRE LTD                
726,CS -Oth Operating Inc & Expend,T/A Vehicle Maintenance etc,Transport-Contract Hire,J01374,Transport Related Expenditure ,Contract Hire and Op Leasing  ,CC64,HIRING TRANSPORT SEN CABS               ,"1,250.00",30/11/2014,REV,NVCAR HIRE LTD                
727,CS -Oth Operating Inc & Expend,T/A Vehicle Maintenance etc,Transport-Contract Hire,J01374,Transport Related Expenditure ,Contract Hire and Op Leasing  ,CC64,HIRING TRANSPORT SEN CABS               ,"1,000.00",30/11/2014,REV,NVCAR HIRE LTD                
728,CS -Oth Operating Inc & Expend,T/A Vehicle Maintenance etc,Transport-Contract Hire,J01374,Transport Related Expenditure ,Contract Hire and Op Leasing  ,CC64,HIRING TRANSPORT SEN CABS               ,"1,416.00",30/11/2014,REV,BARCLAYS ASSET & SALES FINANCE
729,CS -Oth Operating Inc & Expend,T/A Vehicle Maintenance etc,Transport-Contract Hire,J01374,Transport Related Expenditure ,Contract Hire and Op Leasing  ,CC64,HIRING TRANSPORT SEN CABS               ,"1,026.00",30/11/2014,REV,SHERWOOD TRANSPORT GROUP      
730,CS -Oth Operating Inc & Expend,T/A Vehicle Maintenance etc,Transport-Contract Hire,J01374,Transport Related Expenditure ,Contract Hire and Op Leasing  ,CC64,HIRING TRANSPORT SEN CABS               ,950,30/11/2014,REV,PREMIER CARS                  
731,CS -Oth Operating Inc & Expend,T/A Vehicle Maintenance etc,Transport-Contract Hire,J01374,Transport Related Expenditure ,Contract Hire and Op Leasing  ,CC64,HIRING TRANSPORT SEN CABS               ,"2,600.00",30/11/2014,REV,CAPITAL CARS                  
732,CS -Oth Operating Inc & Expend,T/A Vehicle Maintenance etc,Transport-Contract Hire,J01374,Transport Related Expenditure ,Contract Hire and Op Leasing  ,CC64,HIRING TRANSPORT SEN CABS               ,"1,800.00",30/11/2014,REV,CAPITAL CARS                  
733,CS -Oth Operating Inc & Expend,T/A Vehicle Maintenance etc,Transport-Contract Hire,J01374,Transport Related Expenditure ,Contract Hire and Op Leasing  ,CC64,HIRING TRANSPORT SEN CABS               ,"1,000.00",28/11/2014,REV,WALLINGTON CARS & COURIERS LTD
734,CS -Oth Operating Inc & Expend,T/A Vehicle Maintenance etc,Transport-Contract Hire,J01374,Transport Related Expenditure ,Contract Hire and Op Leasing  ,CC64,HIRING TRANSPORT SEN CABS               ,620,30/11/2014,REV,NVCAR HIRE LTD                
735,CS -Oth Operating Inc & Expend,T/A Vehicle Maintenance etc,Transport-Contract Hire,J01374,Transport Related Expenditure ,Contract Hire and Op Leasing  ,CC64,HIRING TRANSPORT SEN CABS               ,"2,091.60",30/11/2014,REV,KINGSTON ACCESSIBILITY TRAN LT
736,CS -Oth Operating Inc & Expend,T/A Vehicle Maintenance etc,Transport-Contract Hire,J01374,Transport Related Expenditure ,Contract Hire and Op Leasing  ,CC64,HIRING TRANSPORT SEN CABS               ,"1,169.70",31/12/2014,REV,KINGSTON ACCESSIBILITY TRAN LT
737,CS -Oth Operating Inc & Expend,T/A Vehicle Maintenance etc,Transport-Contract Hire,J01374,Transport Related Expenditure ,Contract Hire and Op Leasing  ,CC64,HIRING TRANSPORT SEN CABS               ,"2,368.00",30/11/2014,REV,KINGSTON ACCESSIBILITY TRAN LT
738,CS -Oth Operating Inc & Expend,T/A Vehicle Maintenance etc,Transport-Contract Hire,J01374,Transport Related Expenditure ,Contract Hire and Op Leasing  ,CC64,HIRING TRANSPORT SEN CABS               ,672,30/11/2014,REV,CAPITAL CARS                  
739,CS -Oth Operating Inc & Expend,T/A Vehicle Maintenance etc,Transport-Contract Hire,J01374,Transport Related Expenditure ,Contract Hire and Op Leasing  ,CC64,HIRING TRANSPORT SEN CABS               ,"1,343.00",28/11/2014,REV,SILVERBURN FINANCE (UK) LTD   
740,CS -Oth Operating Inc & Expend,T/A Vehicle Maintenance etc,Transport-Contract Hire,J01374,Transport Related Expenditure ,Contract Hire and Op Leasing  ,CC64,HIRING TRANSPORT SEN CABS               ,907.2,31/12/2014,REV,KINGSTON ACCESSIBILITY TRAN LT
741,CS -Oth Operating Inc & Expend,T/A Vehicle Maintenance etc,Transport-Contract Hire,J01374,Transport Related Expenditure ,Contract Hire and Op Leasing  ,CC64,HIRING TRANSPORT SEN CABS               ,"1,340.00",30/11/2014,REV,CHEAM STATION CARS            
742,CS -Oth Operating Inc & Expend,T/A Vehicle Maintenance etc,Transport-Contract Hire,J01374,Transport Related Expenditure ,Contract Hire and Op Leasing  ,CC64,HIRING TRANSPORT SEN CABS               ,"1,024.00",30/11/2014,REV,CAPITAL CARS                  
743,CS -Oth Operating Inc & Expend,T/A Vehicle Maintenance etc,Transport-Contract Hire,J01374,Transport Related Expenditure ,Contract Hire and Op Leasing  ,CC64,HIRING TRANSPORT SEN CABS               ,"1,492.00",30/11/2014,REV,NVCAR HIRE LTD                
744,CS -Oth Operating Inc & Expend,T/A Vehicle Maintenance etc,Transport-Contract Hire,J01374,Transport Related Expenditure ,Contract Hire and Op Leasing  ,CC64,HIRING TRANSPORT SEN CABS               ,"1,755.00",30/11/2014,REV,SHERWOOD TRANSPORT GROUP      
745,CS -Oth Operating Inc & Expend,T/A Vehicle Maintenance etc,Transport-Contract Hire,J01374,Transport Related Expenditure ,Contract Hire and Op Leasing  ,CC64,HIRING TRANSPORT SEN CABS               ,"2,380.00",28/11/2014,REV,BRUNSWICK CARS LTD            
746,CS -Oth Operating Inc & Expend,T/A Vehicle Maintenance etc,Transport-Contract Hire,J01374,Transport Related Expenditure ,Contract Hire and Op Leasing  ,CC64,HIRING TRANSPORT SEN CABS               ,"1,563.00",31/10/2014,REV,A STAR TRANSPORT LIMITED      
747,CS -Oth Operating Inc & Expend,T/A Vehicle Maintenance etc,Transport-Contract Hire,J01374,Transport Related Expenditure ,Contract Hire and Op Leasing  ,CC64,HIRING TRANSPORT SEN CABS               ,925,30/11/2014,REV,KENDALL CARS                  
748,CS -Oth Operating Inc & Expend,T/A Vehicle Maintenance etc,Transport-Contract Hire,J01374,Transport Related Expenditure ,Contract Hire and Op Leasing  ,CC64,HIRING TRANSPORT SEN CABS               ,"5,000.00",30/11/2014,REV,SHERWOOD TRANSPORT GROUP      
749,CS -Oth Operating Inc & Expend,T/A Vehicle Maintenance etc,Transport-Contract Hire,J01374,Transport Related Expenditure ,Contract Hire and Op Leasing  ,CC64,HIRING TRANSPORT SEN CABS               ,"1,936.00",30/11/2014,REV,SHERWOOD TRANSPORT GROUP      
750,CS -Oth Operating Inc & Expend,T/A Vehicle Maintenance etc,Transport-Contract Hire,J01374,Transport Related Expenditure ,Contract Hire and Op Leasing  ,CC64,HIRING TRANSPORT SEN CABS               ,"1,372.00",30/11/2014,REV,NVCAR HIRE LTD                
751,CS -Oth Operating Inc & Expend,T/A Vehicle Maintenance etc,Transport-Contract Hire,J01374,Transport Related Expenditure ,Contract Hire and Op Leasing  ,CC64,HIRING TRANSPORT SEN CABS               ,"3,360.00",28/11/2014,REV,SILVERBURN FINANCE (UK) LTD   
752,CS -Oth Operating Inc & Expend,T/A Vehicle Maintenance etc,Transport-Contract Hire,J01374,Transport Related Expenditure ,Contract Hire and Op Leasing  ,CC64,HIRING TRANSPORT SEN CABS               ,"1,400.00",28/11/2014,REV,SILVERBURN FINANCE (UK) LTD   
753,CS -Oth Operating Inc & Expend,T/A Vehicle Maintenance etc,Transport-Contract Hire,J01374,Transport Related Expenditure ,Contract Hire and Op Leasing  ,CC64,HIRING TRANSPORT SEN CABS               ,"1,404.00",30/11/2014,REV,NVCAR HIRE LTD                
754,CS -Oth Operating Inc & Expend,T/A Vehicle Maintenance etc,Transport-Contract Hire,J01374,Transport Related Expenditure ,Contract Hire and Op Leasing  ,CC64,HIRING TRANSPORT SEN CABS               ,"1,980.00",30/11/2014,REV,KINGSTON ACCESSIBILITY TRAN LT
755,CS -Oth Operating Inc & Expend,T/A Vehicle Maintenance etc,Transport-Contract Hire,J01374,Transport Related Expenditure ,Contract Hire and Op Leasing  ,CC64,HIRING TRANSPORT SEN CABS               ,960,30/11/2014,REV,CHEAM STATION CARS            
756,CS -Oth Operating Inc & Expend,T/A Vehicle Maintenance etc,Transport-Contract Hire,J01374,Transport Related Expenditure ,Contract Hire and Op Leasing  ,CC64,HIRING TRANSPORT SEN CABS               ,"2,475.60",30/11/2014,REV,KINGSTON ACCESSIBILITY TRAN LT
757,CS -Oth Operating Inc & Expend,T/A Vehicle Maintenance etc,Transport-Contract Hire,J01374,Transport Related Expenditure ,Contract Hire and Op Leasing  ,CC64,HIRING TRANSPORT SEN CABS               ,650,28/11/2014,REV,SILVERBURN FINANCE (UK) LTD   
758,CS -Oth Operating Inc & Expend,T/A Vehicle Maintenance etc,Transport-Contract Hire,J01374,Transport Related Expenditure ,Contract Hire and Op Leasing  ,CC64,HIRING TRANSPORT SEN CABS               ,901,30/11/2014,REV,SHERWOOD TRANSPORT GROUP      
759,CS -Oth Operating Inc & Expend,T/A Vehicle Maintenance etc,Transport-Contract Hire,J01374,Transport Related Expenditure ,Contract Hire and Op Leasing  ,CC64,HIRING TRANSPORT SEN CABS               ,"2,760.00",28/11/2014,REV,WALLINGTON CARS & COURIERS LTD
760,CS -Oth Operating Inc & Expend,T/A Vehicle Maintenance etc,Transport-Contract Hire,J01374,Transport Related Expenditure ,Contract Hire and Op Leasing  ,CC64,HIRING TRANSPORT SEN CABS               ,"2,438.00",30/11/2014,REV,KINGSTON ACCESSIBILITY TRAN LT
761,CS -Oth Operating Inc & Expend,T/A Vehicle Maintenance etc,Transport-Contract Hire,J01374,Transport Related Expenditure ,Contract Hire and Op Leasing  ,CC64,HIRING TRANSPORT SEN CABS               ,"2,694.50",30/11/2014,REV,SHERWOOD TRANSPORT GROUP      
762,CS -Oth Operating Inc & Expend,T/A Vehicle Maintenance etc,Transport-Contract Hire,J01374,Transport Related Expenditure ,Contract Hire and Op Leasing  ,CC64,HIRING TRANSPORT SEN CABS               ,"1,184.22",31/12/2014,REV,KINGSTON ACCESSIBILITY TRAN LT
763,CS -Oth Operating Inc & Expend,T/A Vehicle Maintenance etc,Transport-Contract Hire,J01374,Transport Related Expenditure ,Contract Hire and Op Leasing  ,CC64,HIRING TRANSPORT SEN CABS               ,"2,000.00",30/11/2014,REV,KINGSTON ACCESSIBILITY TRAN LT
764,CS -Oth Operating Inc & Expend,T/A Vehicle Maintenance etc,Transport-Contract Hire,J01374,Transport Related Expenditure ,Contract Hire and Op Leasing  ,CC64,HIRING TRANSPORT SEN CABS               ,"1,653.00",30/11/2014,REV,A STAR TRANSPORT LIMITED      
765,CS -Oth Operating Inc & Expend,T/A Vehicle Maintenance etc,Transport-Contract Hire,J01374,Transport Related Expenditure ,Contract Hire and Op Leasing  ,CC64,HIRING TRANSPORT SEN CABS               ,630,01/12/2014,REV,AERIAL CAR SERVICES LTD       
766,CS -Oth Operating Inc & Expend,T/A Vehicle Maintenance etc,Transport-Contract Hire,J01374,Transport Related Expenditure ,Contract Hire and Op Leasing  ,CC64,HIRING TRANSPORT SEN CABS               ,630,30/11/2014,REV,NVCAR HIRE LTD                
767,CS -Oth Operating Inc & Expend,T/A Vehicle Maintenance etc,Transport-Contract Hire,J01374,Transport Related Expenditure ,Contract Hire and Op Leasing  ,CC64,HIRING TRANSPORT SEN CABS               ,880,30/11/2014,REV,CAPITAL CARS                  
768,CS -Oth Operating Inc & Expend,T/A Vehicle Maintenance etc,Transport-Contract Hire,J01374,Transport Related Expenditure ,Contract Hire and Op Leasing  ,CC64,HIRING TRANSPORT SEN CABS               ,"2,280.00",30/11/2014,REV,NVCAR HIRE LTD                
769,CS -Oth Operating Inc & Expend,T/A Vehicle Maintenance etc,Transport-Contract Hire,J01374,Transport Related Expenditure ,Contract Hire and Op Leasing  ,CC64,HIRING TRANSPORT SEN CABS               ,880,30/11/2014,REV,NVCAR HIRE LTD                
770,CS -Oth Operating Inc & Expend,T/A Vehicle Maintenance etc,Transport-Contract Hire,J01374,Transport Related Expenditure ,Contract Hire and Op Leasing  ,CC64,HIRING TRANSPORT SEN CABS               ,"2,429.70",31/12/2014,REV,KINGSTON ACCESSIBILITY TRAN LT
771,CS -Oth Operating Inc & Expend,T/A Vehicle Maintenance etc,Transport-Contract Hire,J01374,Transport Related Expenditure ,Contract Hire and Op Leasing  ,CC64,HIRING TRANSPORT SEN CABS               ,"1,102.00",28/11/2014,REV,SILVERBURN FINANCE (UK) LTD   
772,CS -Oth Operating Inc & Expend,T/A Vehicle Maintenance etc,Transport-Contract Hire,J01374,Transport Related Expenditure ,Contract Hire and Op Leasing  ,CC64,HIRING TRANSPORT SEN CABS               ,"2,823.60",30/11/2014,REV,KINGSTON ACCESSIBILITY TRAN LT
773,CS -Oth Operating Inc & Expend,T/A Vehicle Maintenance etc,Transport-Contract Hire,J01374,Transport Related Expenditure ,Contract Hire and Op Leasing  ,CC64,HIRING TRANSPORT SEN CABS               ,925,30/11/2014,REV,KENDALL CARS                  
774,CS -Oth Operating Inc & Expend,T/A Vehicle Maintenance etc,Transport-Contract Hire,J01374,Transport Related Expenditure ,Contract Hire and Op Leasing  ,CC64,HIRING TRANSPORT SEN CABS               ,"1,200.00",30/11/2014,REV,CAPITAL CARS                  
775,CS -Oth Operating Inc & Expend,T/A Vehicle Maintenance etc,Transport-Contract Hire,J01374,Transport Related Expenditure ,Contract Hire and Op Leasing  ,CC64,HIRING TRANSPORT SEN CABS               ,"1,908.00",30/11/2014,REV,CAPITAL CARS                  
776,CS -Oth Operating Inc & Expend,T/A Vehicle Maintenance etc,Transport-Contract Hire,J01374,Transport Related Expenditure ,Contract Hire and Op Leasing  ,CC64,HIRING TRANSPORT SEN CABS               ,"1,898.00",30/11/2014,REV,KINGSTON ACCESSIBILITY TRAN LT
777,CS -Oth Operating Inc & Expend,T/A Vehicle Maintenance etc,Transport-Contract Hire,J01374,Transport Related Expenditure ,Contract Hire and Op Leasing  ,CC64,HIRING TRANSPORT SEN CABS               ,"1,040.00",30/11/2014,REV,NVCAR HIRE LTD                
778,CS -Oth Operating Inc & Expend,T/A Vehicle Maintenance etc,Transport-Contract Hire,J01374,Transport Related Expenditure ,Contract Hire and Op Leasing  ,CC64,HIRING TRANSPORT SEN CABS               ,"1,824.00",30/11/2014,REV,CAPITAL CARS                  
779,CS -Oth Operating Inc & Expend,T/A Vehicle Maintenance etc,Transport-Contract Hire,J01374,Transport Related Expenditure ,Contract Hire and Op Leasing  ,CC64,HIRING TRANSPORT SEN CABS               ,"1,440.00",30/11/2014,REV,NVCAR HIRE LTD                
780,CS -Oth Operating Inc & Expend,T/A Vehicle Maintenance etc,Transport-Contract Hire,J01374,Transport Related Expenditure ,Contract Hire and Op Leasing  ,CC64,HIRING TRANSPORT SEN CABS               ,"1,600.00",30/11/2014,REV,CAPITAL CARS                  
781,CS -Oth Operating Inc & Expend,T/A Vehicle Maintenance etc,Transport-Contract Hire,J01374,Transport Related Expenditure ,Contract Hire and Op Leasing  ,CC64,HIRING TRANSPORT SEN CABS               ,"1,785.00",31/12/2014,REV,BRUNSWICK CARS LTD            
782,CS -Oth Operating Inc & Expend,T/A Vehicle Maintenance etc,Transport-Contract Hire,J01374,Transport Related Expenditure ,Contract Hire and Op Leasing  ,CC64,HIRING TRANSPORT SEN CABS               ,"1,564.00",30/11/2014,REV,CAPITAL CARS                  
783,CS -Oth Operating Inc & Expend,T/A Vehicle Maintenance etc,Transport-Contract Hire,J01374,Transport Related Expenditure ,Contract Hire and Op Leasing  ,CC64,HIRING TRANSPORT SEN CABS               ,"1,060.00",30/11/2014,REV,BARCLAYS ASSET & SALES FINANCE
784,CS -Oth Operating Inc & Expend,T/A Vehicle Maintenance etc,Transport-Contract Hire,J01374,Transport Related Expenditure ,Contract Hire and Op Leasing  ,CC64,HIRING TRANSPORT SEN CABS               ,"2,983.60",30/11/2014,REV,KINGSTON ACCESSIBILITY TRAN LT
785,CS -Oth Operating Inc & Expend,T/A Vehicle Maintenance etc,Transport-Contract Hire,J01374,Transport Related Expenditure ,Contract Hire and Op Leasing  ,CC64,HIRING TRANSPORT SEN CABS               ,"1,542.45",28/11/2014,REV,SILVERBURN FINANCE (UK) LTD   
786,CS -Oth Operating Inc & Expend,T/A Vehicle Maintenance etc,Transport-Contract Hire,J01374,Transport Related Expenditure ,Contract Hire and Op Leasing  ,CC64,HIRING TRANSPORT SEN CABS               ,"3,583.60",30/11/2014,REV,KINGSTON ACCESSIBILITY TRAN LT
787,CS -Oth Operating Inc & Expend,T/A Vehicle Maintenance etc,Transport-Contract Hire,J01374,Transport Related Expenditure ,Contract Hire and Op Leasing  ,CC64,HIRING TRANSPORT SEN CABS               ,"2,609.00",30/11/2014,REV,BARCLAYS ASSET & SALES FINANCE
788,CS -Oth Operating Inc & Expend,T/A Vehicle Maintenance etc,Transport-Contract Hire,J01374,Transport Related Expenditure ,Contract Hire and Op Leasing  ,CC64,HIRING TRANSPORT SEN CABS               ,"1,400.00",30/11/2014,REV,SHERWOOD TRANSPORT GROUP      
789,CS -Oth Operating Inc & Expend,T/A Vehicle Maintenance etc,Transport-Contract Hire,J01374,Transport Related Expenditure ,Contract Hire and Op Leasing  ,CC64,HIRING TRANSPORT SEN CABS               ,"3,898.13",30/11/2014,REV,KINGSTON ACCESSIBILITY TRAN LT
790,CS -Oth Operating Inc & Expend,T/A Vehicle Maintenance etc,Transport-Contract Hire,J01374,Transport Related Expenditure ,Contract Hire and Op Leasing  ,CC64,HIRING TRANSPORT SEN CABS               ,"2,390.00",30/11/2014,REV,KINGSTON ACCESSIBILITY TRAN LT
791,CS -Oth Operating Inc & Expend,T/A Vehicle Maintenance etc,Transport-Contract Hire,J01374,Transport Related Expenditure ,Contract Hire and Op Leasing  ,CC64,HIRING TRANSPORT SEN CABS               ,"2,400.00",30/11/2014,REV,NVCAR HIRE LTD                
792,CS -Oth Operating Inc & Expend,T/A Vehicle Maintenance etc,Transport-Contract Hire,J01374,Transport Related Expenditure ,Contract Hire and Op Leasing  ,CC64,HIRING TRANSPORT SEN CABS               ,"1,559.60",30/11/2014,REV,KINGSTON ACCESSIBILITY TRAN LT
793,CS -Oth Operating Inc & Expend,T/A Vehicle Maintenance etc,Transport-Contract Hire,J01374,Transport Related Expenditure ,Contract Hire and Op Leasing  ,CC64,HIRING TRANSPORT SEN CABS               ,"1,976.00",30/11/2014,REV,CHEAM STATION CARS            
794,CS -Oth Operating Inc & Expend,T/A Vehicle Maintenance etc,Transport-Contract Hire,J01374,Transport Related Expenditure ,Contract Hire and Op Leasing  ,CC64,HIRING TRANSPORT SEN CABS               ,"1,966.00",30/11/2014,REV,SHERWOOD TRANSPORT GROUP      
795,CS -Oth Operating Inc & Expend,T/A Vehicle Maintenance etc,Transport-Contract Hire,J01374,Transport Related Expenditure ,Contract Hire and Op Leasing  ,CC64,HIRING TRANSPORT SEN CABS               ,"1,559.60",28/11/2014,REV,WALLINGTON CARS & COURIERS LTD
796,CS -Oth Operating Inc & Expend,T/A Vehicle Maintenance etc,Transport-Contract Hire,J01374,Transport Related Expenditure ,Contract Hire and Op Leasing  ,CC64,HIRING TRANSPORT SEN CABS               ,"2,700.00",30/11/2014,REV,CAPITAL CARS                  
797,CS -Oth Operating Inc & Expend,T/A Vehicle Maintenance etc,Transport-Contract Hire,J01374,Transport Related Expenditure ,Contract Hire and Op Leasing  ,CC64,HIRING TRANSPORT SEN CABS               ,"2,800.00",30/11/2014,REV,BARCLAYS ASSET & SALES FINANCE
798,CS -Oth Operating Inc & Expend,T/A Vehicle Maintenance etc,Transport-Contract Hire,J01374,Transport Related Expenditure ,Contract Hire and Op Leasing  ,CC64,HIRING TRANSPORT SEN CABS               ,"1,930.00",30/11/2014,REV,CHEAM STATION CARS            
799,CS -Oth Operating Inc & Expend,T/A Vehicle Maintenance etc,Transport-Contract Hire,J01374,Transport Related Expenditure ,Contract Hire and Op Leasing  ,CC64,HIRING TRANSPORT SEN CABS               ,"1,080.00",30/11/2014,REV,NVCAR HIRE LTD                
800,CS -Oth Operating Inc & Expend,T/A Vehicle Maintenance etc,Transport-Contract Hire,J01374,Transport Related Expenditure ,Contract Hire and Op Leasing  ,CC64,HIRING TRANSPORT SEN CABS               ,"2,340.00",31/12/2014,REV,BRUNSWICK CARS LTD            
801,CS -Oth Operating Inc & Expend,T/A Vehicle Maintenance etc,Transport-Contract Hire,J01374,Transport Related Expenditure ,Contract Hire and Op Leasing  ,CC64,HIRING TRANSPORT SEN CABS               ,"1,828.50",31/12/2014,REV,KINGSTON ACCESSIBILITY TRAN LT
802,CS -Oth Operating Inc & Expend,T/A Vehicle Maintenance etc,Transport-Contract Hire,J01374,Transport Related Expenditure ,Contract Hire and Op Leasing  ,CC64,HIRING TRANSPORT SEN CABS               ,"1,880.00",30/11/2014,REV,CAPITAL CARS                  
803,CS -Oth Operating Inc & Expend,T/A Vehicle Maintenance etc,Transport-Contract Hire,J01374,Transport Related Expenditure ,Contract Hire and Op Leasing  ,CC64,HIRING TRANSPORT SEN CABS               ,"1,920.00",28/11/2014,REV,SILVERBURN FINANCE (UK) LTD   
804,CS -Oth Operating Inc & Expend,T/A Vehicle Maintenance etc,Transport-Contract Hire,J01374,Transport Related Expenditure ,Contract Hire and Op Leasing  ,CC64,HIRING TRANSPORT SEN CABS               ,760,30/11/2014,REV,GALPINS SERVICE               
805,CS -Oth Operating Inc & Expend,T/A Vehicle Maintenance etc,Transport-Contract Hire,J01374,Transport Related Expenditure ,Contract Hire and Op Leasing  ,CC64,HIRING TRANSPORT SEN CABS               ,"1,485.00",31/12/2014,REV,KINGSTON ACCESSIBILITY TRAN LT
806,CS -Oth Operating Inc & Expend,T/A Vehicle Maintenance etc,Transport-Contract Hire,J01374,Transport Related Expenditure ,Contract Hire and Op Leasing  ,CC64,HIRING TRANSPORT SEN CABS               ,"1,800.00",30/11/2014,REV,CAPITAL CARS                  
807,CS -Oth Operating Inc & Expend,T/A Vehicle Maintenance etc,Transport-Contract Hire,J01374,Transport Related Expenditure ,Contract Hire and Op Leasing  ,CC64,HIRING TRANSPORT SEN CABS               ,"2,660.00",30/11/2014,REV,BARCLAYS ASSET & SALES FINANCE
808,CS -Oth Operating Inc & Expend,T/A Vehicle Maintenance etc,Transport-Contract Hire,J01374,Transport Related Expenditure ,Contract Hire and Op Leasing  ,CC64,HIRING TRANSPORT SEN CABS               ,"2,000.00",30/11/2014,REV,NVCAR HIRE LTD                
809,CS -Oth Operating Inc & Expend,T/A Vehicle Maintenance etc,Transport-Contract Hire,J01374,Transport Related Expenditure ,Contract Hire and Op Leasing  ,CC64,HIRING TRANSPORT SEN CABS               ,"1,308.80",28/11/2014,REV,SILVERBURN FINANCE (UK) LTD   
810,CS -Oth Operating Inc & Expend,T/A Vehicle Maintenance etc,Transport-Contract Hire,J01374,Transport Related Expenditure ,Contract Hire and Op Leasing  ,CC64,HIRING TRANSPORT SEN CABS               ,"1,423.50",31/12/2014,REV,KINGSTON ACCESSIBILITY TRAN LT
811,CS -Oth Operating Inc & Expend,T/A Vehicle Maintenance etc,Transport-Contract Hire,J01374,Transport Related Expenditure ,Contract Hire and Op Leasing  ,CC64,HIRING TRANSPORT SEN CABS               ,"1,999.60",30/11/2014,REV,KINGSTON ACCESSIBILITY TRAN LT
812,CS -Oth Operating Inc & Expend,T/A Vehicle Maintenance etc,Transport-Contract Hire,J01374,Transport Related Expenditure ,Contract Hire and Op Leasing  ,CC64,HIRING TRANSPORT SEN CABS               ,"1,292.00",05/12/2014,REV,GALPINS SERVICE               
813,CS -Oth Operating Inc & Expend,T/A Vehicle Maintenance etc,Transport-Contract Hire,J01374,Transport Related Expenditure ,Contract Hire and Op Leasing  ,CC67,HIRING TRANSPORT H&SS CAB ADULTS        ,"1,720.00",28/11/2014,REV,SILVERBURN FINANCE (UK) LTD   
814,CS -Oth Operating Inc & Expend,T/A Vehicle Maintenance etc,Transport-Contract Hire,J01374,Transport Related Expenditure ,Contract Hire and Op Leasing  ,CC67,HIRING TRANSPORT H&SS CAB ADULTS        ,"2,392.00",28/11/2014,REV,SILVERBURN FINANCE (UK) LTD   
815,CS -Oth Operating Inc & Expend,T/A Vehicle Maintenance etc,Transport-Contract Hire,J01374,Transport Related Expenditure ,Contract Hire and Op Leasing  ,CC67,HIRING TRANSPORT H&SS CAB ADULTS        ,799.76,31/12/2014,REV,KINGSTON ACCESSIBILITY TRAN LT
816,CS -Oth Operating Inc & Expend,T/A Vehicle Maintenance etc,Transport-Contract Hire,J01374,Transport Related Expenditure ,Contract Hire and Op Leasing  ,CC67,HIRING TRANSPORT H&SS CAB ADULTS        ,800,01/12/2014,REV,AERIAL CAR SERVICES LTD       
817,CS -Oth Operating Inc & Expend,T/A Vehicle Maintenance etc,Transport-Contract Hire,J01374,Transport Related Expenditure ,Contract Hire and Op Leasing  ,CC67,HIRING TRANSPORT H&SS CAB ADULTS        ,525,28/11/2014,REV,SCHOOL TRANSPORT LTD          
818,CS -Oth Operating Inc & Expend,T/A Vehicle Maintenance etc,Transport-Contract Hire,J01374,Transport Related Expenditure ,Contract Hire and Op Leasing  ,CC67,HIRING TRANSPORT H&SS CAB ADULTS        ,"1,192.50",31/12/2014,REV,KINGSTON ACCESSIBILITY TRAN LT
819,CS -Oth Operating Inc & Expend,T/A Vehicle Maintenance etc,Transport-Contract Hire,J01374,Transport Related Expenditure ,Contract Hire and Op Leasing  ,CC67,HIRING TRANSPORT H&SS CAB ADULTS        ,891,01/12/2014,REV,AERIAL CAR SERVICES LTD       
820,CS -Oth Operating Inc & Expend,T/A Vehicle Maintenance etc,Transport-Contract Hire,J01374,Transport Related Expenditure ,Contract Hire and Op Leasing  ,CC67,HIRING TRANSPORT H&SS CAB ADULTS        ,840,31/12/2014,REV,KINGSTON ACCESSIBILITY TRAN LT
821,CS -Oth Operating Inc & Expend,T/A Vehicle Maintenance etc,Transport-Contract Hire,J01374,Transport Related Expenditure ,Contract Hire and Op Leasing  ,CC67,HIRING TRANSPORT H&SS CAB ADULTS        ,"1,599.52",30/11/2014,REV,KINGSTON ACCESSIBILITY TRAN LT
822,CS -Oth Operating Inc & Expend,T/A Vehicle Maintenance etc,Transport-Contract Hire,J01374,Transport Related Expenditure ,Contract Hire and Op Leasing  ,CC67,HIRING TRANSPORT H&SS CAB ADULTS        ,940,30/11/2014,REV,CAPITAL CARS                  
823,CS -Oth Operating Inc & Expend,T/A Vehicle Maintenance etc,Transport-Contract Hire,J01374,Transport Related Expenditure ,Contract Hire and Op Leasing  ,CC67,HIRING TRANSPORT H&SS CAB ADULTS        ,"1,780.00",30/11/2014,REV,SHERWOOD TRANSPORT GROUP      
824,CS -Oth Operating Inc & Expend,T/A Vehicle Maintenance etc,Transport-Contract Hire,J01374,Transport Related Expenditure ,Contract Hire and Op Leasing  ,CC67,HIRING TRANSPORT H&SS CAB ADULTS        ,620,30/11/2014,REV,GALPINS SERVICE               
825,CS -Oth Operating Inc & Expend,T/A Vehicle Maintenance etc,Transport-Contract Hire,J01374,Transport Related Expenditure ,Contract Hire and Op Leasing  ,CC67,HIRING TRANSPORT H&SS CAB ADULTS        ,"1,264.00",30/11/2014,REV,NVCAR HIRE LTD                
826,CS -Oth Operating Inc & Expend,T/A Vehicle Maintenance etc,Transport-Contract Hire,J01374,Transport Related Expenditure ,Contract Hire and Op Leasing  ,CC67,HIRING TRANSPORT H&SS CAB ADULTS        ,944,30/11/2014,REV,CAPITAL CARS                  
827,CS -Oth Operating Inc & Expend,T/A Vehicle Maintenance etc,Transport-Contract Hire,J01374,Transport Related Expenditure ,Contract Hire and Op Leasing  ,CC67,HIRING TRANSPORT H&SS CAB ADULTS        ,608,30/11/2014,REV,NVCAR HIRE LTD                
828,CS -Oth Operating Inc & Expend,T/A Vehicle Maintenance etc,Transport-Contract Hire,J01374,Transport Related Expenditure ,Contract Hire and Op Leasing  ,CC67,HIRING TRANSPORT H&SS CAB ADULTS        ,840,30/11/2014,REV,KINGSTON ACCESSIBILITY TRAN LT
829,CS -Oth Operating Inc & Expend,T/A Vehicle Maintenance etc,Transport-Contract Hire,J01374,Transport Related Expenditure ,Contract Hire and Op Leasing  ,CC67,HIRING TRANSPORT H&SS CAB ADULTS        ,"1,590.00",30/11/2014,REV,KINGSTON ACCESSIBILITY TRAN LT
830,CS -Oth Operating Inc & Expend,T/A Vehicle Maintenance etc,Transport-Contract Hire,J01374,Transport Related Expenditure ,Contract Hire and Op Leasing  ,CC67,HIRING TRANSPORT H&SS CAB ADULTS        ,640,01/12/2014,REV,AERIAL CAR SERVICES LTD       
831,CS -Oth Operating Inc & Expend,T/A Vehicle Maintenance etc,Transport-Contract Hire,J01374,Transport Related Expenditure ,Contract Hire and Op Leasing  ,CC67,HIRING TRANSPORT H&SS CAB ADULTS        ,"1,024.00",30/11/2014,REV,CHEAM STATION CARS            
832,CS -Oth Operating Inc & Expend,T/A Vehicle Maintenance etc,Transport-Contract Hire,J01374,Transport Related Expenditure ,Contract Hire and Op Leasing  ,CC67,HIRING TRANSPORT H&SS CAB ADULTS        ,535,30/11/2014,REV,NVCAR HIRE LTD                
833,CS -Oth Operating Inc & Expend,T/A Vehicle Maintenance etc,Transport-Contract Hire,J01374,Transport Related Expenditure ,Contract Hire and Op Leasing  ,CC67,HIRING TRANSPORT H&SS CAB ADULTS        ,792,30/11/2014,REV,A STAR TRANSPORT LIMITED      
834,CS -Oth Operating Inc & Expend,T/A Vehicle Maintenance etc,Transport-Contract Hire,J01374,Transport Related Expenditure ,Contract Hire and Op Leasing  ,CC67,HIRING TRANSPORT H&SS CAB ADULTS        ,644,30/11/2014,REV,CAPITAL CARS                  
835,CS -Oth Operating Inc & Expend,T/A Vehicle Maintenance etc,Transport-Contract Hire,J01374,Transport Related Expenditure ,Contract Hire and Op Leasing  ,CC67,HIRING TRANSPORT H&SS CAB ADULTS        ,"1,024.00",30/11/2014,REV,A STAR TRANSPORT LIMITED      
836,CS -Oth Operating Inc & Expend,T/A Vehicle Maintenance etc,Transport-Contract Hire,J01374,Transport Related Expenditure ,Contract Hire and Op Leasing  ,CC67,HIRING TRANSPORT H&SS CAB ADULTS        ,"1,840.00",30/11/2014,REV,CAPITAL CARS                  
837,CS -Oth Operating Inc & Expend,T/A Vehicle Maintenance etc,Transport-Contract Hire,J01374,Transport Related Expenditure ,Contract Hire and Op Leasing  ,CC68,HIRING TRANSPORT SEN COLLEGES CABS      ,"1,384.00",28/11/2014,REV,SILVERBURN FINANCE (UK) LTD   
838,CS -Oth Operating Inc & Expend,T/A Vehicle Maintenance etc,Transport-Contract Hire,J01374,Transport Related Expenditure ,Contract Hire and Op Leasing  ,CC68,HIRING TRANSPORT SEN COLLEGES CABS      ,"1,884.00",28/11/2014,REV,SILVERBURN FINANCE (UK) LTD   
839,CS -Oth Operating Inc & Expend,T/A Vehicle Maintenance etc,Transport-Contract Hire,J01374,Transport Related Expenditure ,Contract Hire and Op Leasing  ,CC68,HIRING TRANSPORT SEN COLLEGES CABS      ,"2,631.60",30/11/2014,REV,KINGSTON ACCESSIBILITY TRAN LT
840,CS -Oth Operating Inc & Expend,T/A Vehicle Maintenance etc,Transport-Contract Hire,J01374,Transport Related Expenditure ,Contract Hire and Op Leasing  ,CC68,HIRING TRANSPORT SEN COLLEGES CABS      ,"1,670.00",30/11/2014,REV,PREMIER CARS                  
841,CS -Oth Operating Inc & Expend,T/A Vehicle Maintenance etc,Transport-Contract Hire,J01374,Transport Related Expenditure ,Contract Hire and Op Leasing  ,CC68,HIRING TRANSPORT SEN COLLEGES CABS      ,"2,550.00",30/11/2014,REV,BARCLAYS ASSET & SALES FINANCE
842,CS -Oth Operating Inc & Expend,T/A Vehicle Maintenance etc,Transport-Workshop,J01376,Transport Related Expenditure ,Contract Hire and Op Leasing  ,CC60,Vehicle Hire for LB Sutton              ,"2,280.00",28/11/2014,REV,SCHOOL TRANSPORT LTD          
843,CS -Oth Operating Inc & Expend,T/A Vehicle Maintenance etc,Transport-Workshop,J01376,Transport Related Expenditure ,Contract Hire and Op Leasing  ,CC60,Vehicle Hire for LB Sutton              ,"1,240.00",30/11/2014,REV,BARCLAYS ASSET & SALES FINANCE
844,CS -Oth Operating Inc & Expend,T/A Vehicle Maintenance etc,Transport-Workshop,J01376,Transport Related Expenditure ,Contract Hire and Op Leasing  ,CC60,Vehicle Hire for LB Sutton              ,960,28/11/2014,REV,SCHOOL TRANSPORT LTD          
845,CS -Oth Operating Inc & Expend,T/A Vehicle Maintenance etc,Transport-Workshop,J01376,Transport Related Expenditure ,Contract Hire and Op Leasing  ,CC60,Vehicle Hire for LB Sutton              ,671,28/11/2014,REV,SILVERBURN FINANCE (UK) LTD   
846,CS -Oth Operating Inc & Expend,T/A Vehicle Maintenance etc,Transport-Workshop,J01376,Transport Related Expenditure ,Contract Hire and Op Leasing  ,CC60,Vehicle Hire for LB Sutton              ,"2,480.00",30/11/2014,REV,BARCLAYS ASSET & SALES FINANCE
847,CS -Oth Operating Inc & Expend,T/A Vehicle Maintenance etc,Transport-Workshop,J01376,Transport Related Expenditure ,Contract Hire and Op Leasing  ,CC60,Vehicle Hire for LB Sutton              ,"3,040.00",30/11/2014,REV,CAPITAL CARS                  
848,CS -Oth Operating Inc & Expend,T/A Vehicle Maintenance etc,Transport-Workshop,J01376,Transport Related Expenditure ,Contract Hire and Op Leasing  ,CC60,Vehicle Hire for LB Sutton              ,"4,960.00",30/11/2014,REV,BARCLAYS ASSET & SALES FINANCE
849,CS -Oth Operating Inc & Expend,T/A Vehicle Maintenance etc,Transport-Workshop,J01376,Transport Related Expenditure ,Contract Hire and Op Leasing  ,CC65,Vehicle Hire for Education              ,"1,736.00",30/11/2014,REV,BARCLAYS ASSET & SALES FINANCE
850,CS -Oth Operating Inc & Expend,T/A Vehicle Maintenance etc,Transport-Workshop,J01376,Supplies & Services           ,Equip Furniture/Materials     ,DA01,Equipment - R & M                       ,"1,000.00",20/11/2014,REV,SALTASH ENTERPRISES LTD       
851,CS -Oth Operating Inc & Expend,T/A Vehicle Maintenance etc,Vehicle Workshops,J01378,Employees                     ,Direct Employee Expenses      ,AA17,Agency Staff & Casual Paymts            ,528,10/12/2014,REV,REDACTED
852,CS -Oth Operating Inc & Expend,T/A Vehicle Maintenance etc,Vehicle Workshops,J01378,Employees                     ,Direct Employee Expenses      ,AA17,Agency Staff & Casual Paymts            ,660,22/12/2014,REV,REDACTED
853,CS -Oth Operating Inc & Expend,T/A Vehicle Maintenance etc,Vehicle Workshops,J01378,Employees                     ,Direct Employee Expenses      ,AA17,Agency Staff & Casual Paymts            ,660,26/11/2014,REV,REDACTED
854,CS -Oth Operating Inc & Expend,T/A Vehicle Maintenance etc,Vehicle Workshops,J01378,Transport Related Expenditure ,Direct Transport Costs        ,CA02,Tyres                                   ,"1,685.00",23/12/2014,REV,MORDEN TYRE SERVICES LTD      
855,CS -Oth Operating Inc & Expend,T/A Vehicle Maintenance etc,Vehicle Workshops,J01378,Transport Related Expenditure ,Direct Transport Costs        ,CA02,Tyres                                   ,"2,945.00",28/11/2014,REV,MORDEN TYRE SERVICES LTD      
856,CS -Oth Operating Inc & Expend,T/A Vehicle Maintenance etc,Vehicle Workshops,J01378,Transport Related Expenditure ,Direct Transport Costs        ,CA02,Tyres                                   ,525,08/12/2014,REV,MORDEN TYRE SERVICES LTD      
857,CS -Oth Operating Inc & Expend,T/A Vehicle Maintenance etc,Vehicle Workshops,J01378,Transport Related Expenditure ,Direct Transport Costs        ,CA02,Tyres                                   ,560,15/12/2014,REV,MORDEN TYRE SERVICES LTD      
858,CS -Oth Operating Inc & Expend,T/A Vehicle Maintenance etc,Vehicle Workshops,J01378,Transport Related Expenditure ,Direct Transport Costs        ,CA02,Tyres                                   ,"2,340.00",11/12/2014,REV,MORDEN TYRE SERVICES LTD      
859,CS -Oth Operating Inc & Expend,T/A Vehicle Maintenance etc,Vehicle Workshops,J01378,Transport Related Expenditure ,Direct Transport Costs        ,CA04,R & M of Veh - General                  ,"2,441.49",19/11/2014,REV,FREIGHT TRANSPORT ASSOCIATION 
860,CS -Oth Operating Inc & Expend,T/A Vehicle Maintenance etc,Vehicle Workshops,J01378,Transport Related Expenditure ,Direct Transport Costs        ,CA55,Specialist Maint. (Off Site)            ,544.48,25/11/2014,REV,FLEETSPEED COACHWORKS LTD.    
861,CS -Oth Operating Inc & Expend,T/A Vehicle Maintenance etc,Vehicle Workshops,J01378,Transport Related Expenditure ,Direct Transport Costs        ,CA55,Specialist Maint. (Off Site)            ,"5,682.60",09/12/2014,REV,ROSSETTS COMMERCIALS          
862,CS -Oth Operating Inc & Expend,T/A Vehicle Maintenance etc,Vehicle Workshops,J01378,Transport Related Expenditure ,Direct Transport Costs        ,CA56,Specialist Maint. (On Site)             ,531.07,15/12/2014,REV,GATWICK HOSE T/A HYDRAQUIP    
863,CS -Oth Operating Inc & Expend,T/A Vehicle Maintenance etc,Vehicle Workshops,J01378,Transport Related Expenditure ,Direct Transport Costs        ,CA56,Specialist Maint. (On Site)             ,596.25,12/12/2014,REV,R.J.H.WELDING                 
864,CS -Oth Operating Inc & Expend,T/A Vehicle Maintenance etc,Vehicle Workshops,J01378,Transport Related Expenditure ,Direct Transport Costs        ,CA56,Specialist Maint. (On Site)             ,548.85,03/12/2014,REV,REDACTED
865,CS -Oth Operating Inc & Expend,T/A Vehicle Maintenance etc,Vehicle Workshops,J01378,Transport Related Expenditure ,Direct Transport Costs        ,CA56,Specialist Maint. (On Site)             ,716.75,21/12/2014,REV,REDACTED
866,CS -Oth Operating Inc & Expend,T/A Vehicle Maintenance etc,Vehicle Workshops,J01378,Transport Related Expenditure ,Direct Transport Costs        ,CA56,Specialist Maint. (On Site)             ,935,24/11/2014,REV,GVS HIRE LTD                  
867,CS -Oth Operating Inc & Expend,T/A Vehicle Maintenance etc,Vehicle Workshops,J01378,Transport Related Expenditure ,Direct Transport Costs        ,CA56,Specialist Maint. (On Site)             ,598.05,11/12/2014,REV,R.J.H.WELDING                 
868,CS -Oth Operating Inc & Expend,T/A Vehicle Maintenance etc,Vehicle Workshops,J01378,Transport Related Expenditure ,Direct Transport Costs        ,CA56,Specialist Maint. (On Site)             ,627.1,18/12/2014,REV,R.J.H.WELDING                 
869,CS -Oth Operating Inc & Expend,T/A Vehicle Maintenance etc,Vehicle Workshops,J01378,Transport Related Expenditure ,Direct Transport Costs        ,CA56,Specialist Maint. (On Site)             ,632.5,12/12/2014,REV,R.J.H.WELDING                 
870,CS -Oth Operating Inc & Expend,T/A Vehicle Maintenance etc,Vehicle Workshops,J01378,Transport Related Expenditure ,Direct Transport Costs        ,CA56,Specialist Maint. (On Site)             ,750.11,11/12/2014,REV,R.J.H.WELDING                 
871,CS -Oth Operating Inc & Expend,T/A Vehicle Maintenance etc,Vehicle Workshops,J01378,Transport Related Expenditure ,Direct Transport Costs        ,CA56,Specialist Maint. (On Site)             ,666.7,25/11/2014,REV,REDACTED
872,CS -Oth Operating Inc & Expend,T/A Vehicle Maintenance etc,Vehicle Workshops,J01378,Transport Related Expenditure ,Direct Transport Costs        ,CA56,Specialist Maint. (On Site)             ,568.7,11/12/2014,REV,R.J.H.WELDING                 
873,CS -Oth Operating Inc & Expend,T/A Vehicle Maintenance etc,Vehicle Workshops,J01378,Transport Related Expenditure ,Direct Transport Costs        ,CA56,Specialist Maint. (On Site)             ,506.1,03/12/2014,REV,REDACTED
874,CS -Oth Operating Inc & Expend,T/A Vehicle Maintenance etc,Vehicle Workshops,J01378,Transport Related Expenditure ,Direct Transport Costs        ,CA56,Specialist Maint. (On Site)             ,546.25,12/12/2014,REV,R.J.H.WELDING                 
875,CS -Oth Operating Inc & Expend,T/A Vehicle Maintenance etc,Vehicle Workshops,J01378,Transport Related Expenditure ,Direct Transport Costs        ,CA56,Specialist Maint. (On Site)             ,502.2,21/12/2014,REV,REDACTED
876,CS -Oth Operating Inc & Expend,T/A Vehicle Maintenance etc,Vehicle Workshops,J01378,Transport Related Expenditure ,Direct Transport Costs        ,CA56,Specialist Maint. (On Site)             ,528.15,21/12/2014,REV,REDACTED
877,CS -Oth Operating Inc & Expend,T/A Vehicle Maintenance etc,Vehicle Workshops,J01378,Transport Related Expenditure ,Direct Transport Costs        ,CA56,Specialist Maint. (On Site)             ,807.86,12/12/2014,REV,R.J.H.WELDING                 
878,CS -Oth Operating Inc & Expend,T/A Vehicle Maintenance etc,Vehicle Workshops,J01378,Transport Related Expenditure ,Direct Transport Costs        ,CA72,Vehicle Parts                           ,526.56,15/12/2014,REV,COMMERCIAL & PLANT LTD        
879,CS -Oth Operating Inc & Expend,T/A Vehicle Maintenance etc,Vehicle Workshops,J01378,Transport Related Expenditure ,Direct Transport Costs        ,CA72,Vehicle Parts                           ,872.79,01/12/2014,REV,IVECO RETAIL LTD              
880,CS -Oth Operating Inc & Expend,T/A Vehicle Maintenance etc,Vehicle Workshops,J01378,Transport Related Expenditure ,Direct Transport Costs        ,CA72,Vehicle Parts                           ,560.06,04/12/2014,REV,JD ASSOCIATES                 
881,CS -Oth Operating Inc & Expend,T/A Vehicle Maintenance etc,Vehicle Workshops,J01378,Transport Related Expenditure ,Direct Transport Costs        ,CA72,Vehicle Parts                           ,513.62,22/12/2014,REV,COMMERCIAL & PLANT LTD        
882,CS -Oth Operating Inc & Expend,T/A Vehicle Maintenance etc,Vehicle Workshops,J01378,Transport Related Expenditure ,Direct Transport Costs        ,CA72,Vehicle Parts                           ,871.69,03/12/2014,REV,DENNIS EAGLE LIMITED          
883,CS -Oth Operating Inc & Expend,T/A Vehicle Maintenance etc,Vehicle Workshops,J01378,Transport Related Expenditure ,Direct Transport Costs        ,CA72,Vehicle Parts                           ,"1,629.90",09/12/2014,REV,DENNIS EAGLE LIMITED          
884,CS -Oth Operating Inc & Expend,T/A Vehicle Maintenance etc,Vehicle Workshops,J01378,Transport Related Expenditure ,Direct Transport Costs        ,CA72,Vehicle Parts                           ,507.5,16/12/2014,REV,HITACHI CAPITAL INV. FINANCE  
885,CS -Oth Operating Inc & Expend,T/A Vehicle Maintenance etc,Vehicle Workshops,J01378,Transport Related Expenditure ,Direct Transport Costs        ,CA72,Vehicle Parts                           ,"3,120.00",19/12/2014,REV,CBOC LUBRICANTS               
886,CS -Oth Operating Inc & Expend,Extraordinary Items & PY Adj.,TAYLOR ROAD DAY CENTRE,J01460,Premises Related Expenditure  ,RepairsAlterations&MtceOfBldgs,BA01,DDM - GENERAL BUILDING                  ,799.94,21/11/2014,REV,SALTASH ENTERPRISES LTD       
887,CS -Oth Operating Inc & Expend,Extraordinary Items & PY Adj.,Other Misc Props Budget,J01526,Premises Related Expenditure  ,Energy Costs                  ,BB51,ELECTRICITY RECOV                       ,624.08,20/11/2014,REV,EDF                           
888,CS -Oth Operating Inc & Expend,Extraordinary Items & PY Adj.,Housing Shops,J01533,Premises Related Expenditure  ,RepairsAlterations&MtceOfBldgs,BA01,DDM - GENERAL BUILDING                  ,568.47,28/03/2014,REV,SALTASH ENTERPRISES LTD       
889,CS -Oth Operating Inc & Expend,Extraordinary Items & PY Adj.,Housing Shops,J01533,Premises Related Expenditure  ,RepairsAlterations&MtceOfBldgs,BA01,DDM - GENERAL BUILDING                  ,"3,123.53",28/03/2014,REV,SALTASH ENTERPRISES LTD       
890,CS -Oth Operating Inc & Expend,Extraordinary Items & PY Adj.,Pollards Hill Comm Cntre,J08074,Premises Related Expenditure  ,RepairsAlterations&MtceOfBldgs,BA03,DDM - Mechanical                        ,602.28,09/12/2014,REV,EUROPA NATIONWIDE TECH.SER.LTD
891,CS -Oth Operating Inc & Expend,Extraordinary Items & PY Adj.,Pollards Hill Comm Cntre,J08074,Premises Related Expenditure  ,RepairsAlterations&MtceOfBldgs,BA05,DDM - Electrical                        ,510.27,16/10/2014,REV,EUROPA NATIONWIDE TECH.SER.LTD
892,Childrens & Education Services,Statutory & Regulatory Duties,Senior Mngt & Support Services,K01005,Employees                     ,Indirect Employee Expenses    ,AB02,Recruitment Adverts                     ,"4,166.00",28/11/2014,REV,PENNA COMMUNICATIONS (NO 2 A/C
893,Childrens & Education Services,Statutory & Regulatory Duties,Senior Mngt & Support Services,K01005,Supplies & Services           ,Services                      ,DF11,Counsel's Fees                          ,520,04/12/2014,REV,REDACTED
894,Childrens & Education Services,Statutory & Regulatory Duties,Senior Mngt & Support Services,K01005,Supplies & Services           ,Services                      ,DF11,Counsel's Fees                          ,"1,920.00",09/10/2014,REV,REDACTED
895,Childrens & Education Services,Statutory & Regulatory Duties,Senior Mngt & Support Services,K01005,Supplies & Services           ,Services                      ,DF11,Counsel's Fees                          ,500,09/10/2014,REV,REDACTED
896,Childrens & Education Services,Statutory & Regulatory Duties,Senior Mngt & Support Services,K01005,Supplies & Services           ,Services                      ,DF11,Counsel's Fees                          ,830,29/10/2014,REV,REDACTED
897,Childrens & Education Services,Statutory & Regulatory Duties,Senior Mngt & Support Services,K01005,Supplies & Services           ,Services                      ,DF11,Counsel's Fees                          ,510,23/12/2014,REV,REDACTED
898,Childrens & Education Services,Statutory & Regulatory Duties,Senior Mngt & Support Services,K01005,Supplies & Services           ,Services                      ,DF11,Counsel's Fees                          ,990,28/10/2014,REV,REDACTED
899,Childrens & Education Services,Asset Management,PFI Unitary Charges,K03023,Third Party Payments          ,Private Contractors           ,EH02,Miscellaneous Hired Services            ,654.37,01/11/2014,REV,NEWSCHOOLS (MERTON) LIMITED   
900,Childrens & Education Services,Asset Management,PFI Unitary Charges,K03023,Third Party Payments          ,Private Contractors           ,EH10,Contract Payments                       ,"1,129,402.22",01/12/2014,REV,NEWSCHOOLS (MERTON) LIMITED   
901,Childrens & Education Services,Statutory & Regulatory Duties,Head of Special Educatn Needs,K04017,Supplies & Services           ,Services                      ,DF09,Miscellaneous Fees                      ,750,01/12/2014,REV,GLOBAL MEDIATION LTD          
902,Childrens & Education Services,Education Psychology Service,Education Psychology.,K04018,Employees                     ,Direct Employee Expenses      ,AA17,Agency Staff & Casual Paymts            ,"8,000.00",30/11/2014,REV,REDACTED
903,Childrens & Education Services,Support for SEN Pupils,Statementing-Transport,K04023,Employees                     ,Direct Employee Expenses      ,AA17,Agency Staff & Casual Paymts            ,"1,875.00",22/12/2014,REV,REDACTED
904,Childrens & Education Services,Support for SEN Pupils,Statementing-Transport,K04023,Employees                     ,Direct Employee Expenses      ,AA17,Agency Staff & Casual Paymts            ,"1,400.00",26/11/2014,REV,REDACTED
905,Childrens & Education Services,Support for SEN Pupils,Statementing-Transport,K04023,Transport Related Expenditure ,Public Transport              ,CD50,Home Sch/Coll Trans(Trav Exps)          ,729,15/12/2014,REV,ST MARY'S WRESTWOOD CHILDRENS 
906,Childrens & Education Services,Support for SEN Pupils,Statementing-Transport,K04023,Transport Related Expenditure ,Public Transport              ,CD50,Home Sch/Coll Trans(Trav Exps)          ,563.37,28/11/2014,REV,REDACTED
907,Childrens & Education Services,Support for SEN Pupils,Statementing-Transport,K04023,Transport Related Expenditure ,Public Transport              ,CD50,Home Sch/Coll Trans(Trav Exps)          ,"1,080.00",01/12/2014,REV,REDACTED
908,Childrens & Education Services,Support for SEN Pupils,Statementing-Transport,K04023,Transport Related Expenditure ,Public Transport              ,CD50,Home Sch/Coll Trans(Trav Exps)          ,594,01/12/2014,REV,MASTER TAXIS                  
909,Childrens & Education Services,Behavioural Support,Statement Support Team,K04034,Employees                     ,Direct Employee Expenses      ,AA17,Agency Staff & Casual Paymts            ,"5,495.00",01/11/2014,REV,REDACTED
910,Childrens & Education Services,Behavioural Support,Statement Support Team,K04034,Employees                     ,Direct Employee Expenses      ,AA17,Agency Staff & Casual Paymts            ,"10,000.00",01/11/2014,REV,PERMANENT FUTURES             
911,Childrens & Education Services,Behavioural Support,Statement Support Team,K04034,Employees                     ,Direct Employee Expenses      ,AA17,Agency Staff & Casual Paymts            ,"1,585.00",01/11/2014,REV,REDACTED
912,Childrens & Education Services,Behavioural Support,Statement Support Team,K04034,Employees                     ,Direct Employee Expenses      ,AA17,Agency Staff & Casual Paymts            ,"4,550.00",01/11/2014,REV,REDACTED
913,Childrens & Education Services,Behavioural Support,Statement Support Team,K04034,Employees                     ,Indirect Employee Expenses    ,AB02,Recruitment Adverts                     ,"1,290.00",09/12/2014,REV,PENNA COMMUNICATIONS (NO 2 A/C
914,Childrens & Education Services,Oth U5s Provn Not Prim or Spec,Provider Support,K05078,Supplies & Services           ,Comms and Computing           ,DG02,Software Licences                       ,"1,095.37",19/12/2014,REV,CACI LIMITED                  
915,Childrens & Education Services,Oth U5s Provn Not Prim or Spec,Provider Support,K05078,Supplies & Services           ,Comms and Computing           ,DG02,Software Licences                       ,"1,095.37",19/12/2014,REV,CACI LIMITED                  
916,Childrens & Education Services,Pupil Referral Units,Expanded Pupil Referral Unit,K05099,Third Party Payments          ,Private Contractors           ,EH01,Miscellaneous Agency Services           ,"5,086.94",26/11/2014,REV,SW LONDON ST GEORGES NHS TRUST
917,Childrens & Education Services,Oth U5s Provn Not Prim or Spec,GSSG Workforce Development,K05111,Employees                     ,Indirect Employee Expenses    ,AB56,Internal Training Costs                 ,"1,250.00",16/12/2014,REV,ELIZABETH JARMAN TRAINING LTD 
918,Childrens & Education Services,Oth U5s Provn Not Prim or Spec,GSSG Workforce Development,K05111,Employees                     ,Indirect Employee Expenses    ,AB56,Internal Training Costs                 ,700,27/10/2014,REV,REDACTED
919,Childrens & Education Services,Oth U5s Provn Not Prim or Spec,GSSG Workforce Development,K05111,Employees                     ,Indirect Employee Expenses    ,AB56,Internal Training Costs                 ,"1,575.00",26/11/2014,REV,PERSEID SCHOOL                
920,Childrens & Education Services,Oth U5s Provn Not Prim or Spec,GSSG Workforce Development,K05111,Employees                     ,Indirect Employee Expenses    ,AB56,Internal Training Costs                 ,525,26/11/2014,REV,PERSEID SCHOOL                
921,Childrens & Education Services,Oth U5s Provn Not Prim or Spec,GSSG Workforce Development,K05111,Employees                     ,Indirect Employee Expenses    ,AB56,Internal Training Costs                 ,525,26/11/2014,REV,PERSEID SCHOOL                
922,Childrens & Education Services,Oth U5s Provn Not Prim or Spec,GSSG Workforce Development,K05111,Employees                     ,Indirect Employee Expenses    ,AB56,Internal Training Costs                 ,"1,000.00",31/10/2014,REV,ACTUAL FIRST AID LTD          
923,Childrens & Education Services,Oth U5s Provn Not Prim or Spec,GSSG Workforce Development,K05111,Employees                     ,Indirect Employee Expenses    ,AB56,Internal Training Costs                 ,700,27/10/2014,REV,REDACTED
924,Childrens & Education Services,Oth U5s Provn Not Prim or Spec,GSSG Workforce Development,K05111,Supplies & Services           ,Services                      ,DF03,Consultants                             ,"1,540.00",07/12/2014,REV,REDACTED
925,Childrens & Education Services,Oth U5s Provn Not Prim or Spec,GSSG Workforce Development,K05111,Supplies & Services           ,Services                      ,DF03,Consultants                             ,"3,080.00",24/10/2014,REV,REDACTED
926,Childrens & Education Services,Oth U5s Provn Not Prim or Spec,GSSG Workforce Development,K05111,Supplies & Services           ,Services                      ,DF03,Consultants                             ,"3,960.00",22/10/2014,REV,REDACTED
927,Childrens & Education Services,GENERATED ACCOUNT,Children's centres,K05137,Supplies & Services           ,Services                      ,DF03,Consultants                             ,900,05/08/2014,REV,SKILLS FOR LOCAL AUTHORITIES  
928,Childrens & Education Services,GENERATED ACCOUNT,Children's centres,K05137,Supplies & Services           ,Services                      ,DF30,Activities Programme                    ,"5,840.00",17/12/2014,REV,SUSSEX BABY MASSAGE           
929,Childrens & Education Services,GENERATED ACCOUNT,Mitcham MAT (Premises),K05412,Premises Related Expenditure  ,RepairsAlterations&MtceOfBldgs,BA01,DDM - General Building                  ,650,26/03/2014,REV,PJ HARVEY & CO LTD            
930,Childrens & Education Services,GENERATED ACCOUNT,Mitcham MAT (Premises),K05412,Premises Related Expenditure  ,Cleaning and Domestic Supplies,BH03,Cleaning Services                       ,"1,208.78",01/12/2014,REV,BIRKIN CLEANING SERVICES LTD  
931,Childrens & Education Services,GENERATED ACCOUNT,Wimbledon MAT,K05414,Premises Related Expenditure  ,RepairsAlterations&MtceOfBldgs,BA01,DDM - General Building                  ,910.6,12/12/2014,REV,PW INDUSTRIAL SVCE/S LTD      
